Workbook

Sheet Project Information
A1: RSAP PROJECT INFORMATION
A3: BASIC INFORMATION
A4: Today's date (i.e., run date) | B4: =TODAY() -> 2014-02-11
A5: Title | B5: Concrete Barrier Example Problem | C5: Concrete Barrier Example Problem | D5: Concrete Barrier Example Problem | E5: Concrete Barrier Example Problem | F5: Concrete Barrier Example Problem
A6: Units | B6: USCU | C6: (only USCU units at this time)
A7: Design Life | B7: 25 | C7: YRS
A8: Construction Year | B8: 2003
A9: Rate of Return | B9: 4 | C9: %
A12: CRASH COSTS
A13: Use GDP values during life? | B13: N
A14: Expand to current year by GDP? | B14: N | C14: http://www.gpoaccess.gov/usbudget/fy09/hist.html
A15: GDP Deflator to construction year | B15: 4 | C15: Crash Cost Timeline
B16: Mid-Life
A17: Base year for crash cost data | B17: 2009 | C17: =B8 -> 2003 | D17: =C17+B7/2 -> 2015.5 | E17: =C17+B7 -> 2028 | F17: Cost Used
A18: Value of Statistical Life | B18: 6000000 | C18: =IF($B$14="Y",(B18*(1+$B$15/100)^($C$17-$B$17)),B18) -> 6000000 | D18: =IF($B$13="Y",(C18*(1+$B$15/100)^($D$17-$C$17)),C18) -> 6000000 | E18: =IF($B$13="Y",(C18*(1+$B$15/100)^($E$17-$C$17)),C18) -> 6000000 | F18: =IF($B$16="End of Life",E18,IF($B$16="Mid-Life",D18,C18)) -> 6000000
A19: Reference for VSL | B19: Guidance on Treatment of the Economic Value of a Statistical Life, US Department of Transportation, Washington, D.C., October 4, 2013.
B21: http://www.dot.gov/office-policy/transportation-policy/guidance-treatment-economic-value-statistical-life
A24: RSAP Root Directory: | B24: C:\Program Files\RSAPv3
A26: Notes:

Sheet Traffic Information
A1: =IF('Project Information'!$B$5="","",'Project Information'!$B$5) -> Concrete Barrier Example Problem
A2: TRAFFIC INFORMATION
A3: CONSTRUCTION YEAR ADT: | C3: 47700 | D3: vehicles/day
A4: TRAFFIC GROWTH | C4: 1.7 | D4: % growth/yr
A5: WHICH ADT TO USE? | C5: Mid-Life
A6: MID-LIFE ADT: | C6: =$C$3*(1+$C$4/100)^('Project Information'!$B$7/2) -> 58888.47266 | D6: vehicles/day
A7: END OF LIFE ADT: | C7: =$C$3*(1+$C$4/100)^('Project Information'!$B$7) -> 72701.30425 | D7: vehicles/day
A8: ADT USED BY RSAP | C8: =IF($C$5="Construction",C3,IF($C$5="End of Life",$C$7,$C$6)) -> 58888.47266 | D8: vehicles/day
A9: PERCENT TRUCKS | C9: 15 | D9: %
A10: VEHICLE MIX | E10: TYPICAL CHARACTERISTICS | J10: Crash Cost Adj. | K10: Trajectory Information
A11: RSAP VEHICLES | B11: FHWA CLASS | C11: PERCENT | D11: RSAP TYPE | E11: WEIGHT | F11: LENGTH | G11: WIDTH | H11: C.G. Long. | I11: C.G. Hgt | K11: Trajectory Grid Name | L11: Redirection Grid Name | M11: Encr Multiplier | N11: Mix Multiplier
C12: % | E12: lbs | F12: ft | G12: ft | H12: ft | I12: ft
A13: Motorcycles | B13: 1 | C13: 0 | D13: M | E13: 600 | F13: 7 | G13: 1.5 | H13: 3 | I13: 2.6 | J13: 0.56 | K13: TrajectoryGrid1 | M13: 1 | N13: 0 | O13: 0 | Q13: 75
A14: Passenger Vehicles | B14: 2 | C14: 63.75 | D14: C | E14: 3300 | F14: 15 | G14: 5.4 | H14: 6 | I14: 2 | J14: 1 | K14: TrajectoryGrid2 | L14: RedirectionCars | M14: 1 | N14: -0.75 | O14: 63.75 | Q14: 25
A15: PickupTruck | B15: 3 | C15: 21.25 | D15: PU | E15: 5000 | F15: 19.75 | G15: 6.5 | H15: 8.5 | I15: 2.3 | J15: 1 | K15: TrajectoryGrid2 | L15: RedirectionCars | M15: 1 | N15: -0.25 | O15: 21.25 | Q15: 0
A16: Light Tractor Trailer | B16: 8-9 | C16: 0 | D16: LTT | E16: 16000 | F16: 48 | G16: 8.5 | H16: 12 | I16: 4.8 | J16: 3.52 | K16: TrajectoryGrid3 | L16: RedirectionTrucks | M16: 0.3 | N16: 0 | O16: 0 | Q16: 0
A17: Average Tractor Trailer | B17: 8-13 | C17: 9 | D17: ATT | E17: 22250 | F17: 48 | G17: 8.5 | H17: 20 | I17: 4.8 | J17: 3.52 | K17: TrajectoryGrid3 | L17: RedirectionTrucks | M17: 0.3 | N17: 0.6 | O17: 9 | Q17: 0
A18: Heavy Tractor Trailer | B18: 8-13 | C18: 0 | D18: HTT | E18: 37500 | F18: 48 | G18: 8.5 | H18: 20 | I18: 6 | J18: 3.52 | K18: TrajectoryGrid3 | L18: RedirectionTrucks | M18: 0.3 | N18: 0 | O18: 0 | Q18: 0
A19: Light Single Unit Truck | B19: 5 | C19: 0 | D19: LSUT | E19: 6800 | F19: 35 | G19: 7.77 | H19: 12.5 | I19: 3.4 | J19: 3.52 | K19: TrajectoryGrid4 | L19: RedirectionTrucks | M19: 0.3 | N19: 0 | O19: 0 | Q19: 0
A20: Average Single Unit Truck | B20: 6 | C20: 6 | D20: ASUT | E20: 12000 | F20: 35 | G20: 7.77 | H20: 12.5 | I20: 3.4 | J20: 3.52 | K20: TrajectoryGrid4 | L20: RedirectionTrucks | M20: 0.3 | N20: 0.4 | O20: 6 | Q20: 0
A21: Heavy Single Unit Truck | B21: 7 | C21: 0 | D21: HSUT | E21: 22000 | F21: 35 | G21: 7.77 | H21: 12.5 | I21: 4.2 | J21: 3.52 | K21: TrajectoryGrid4 | L21: RedirectionTrucks | M21: 0.3 | N21: 0 | O21: 0
A26: Total | C26: =SUM(C13:C25) -> 100 | N26: =SUM(N13:N25) -> 0 | Q26: =SUM(Q13:Q25) -> 100
A27: Click here | B27: for the on-line link to the FHWA classification system.

Sheet Road Segments
A1: =IF('Project Information'!$B$5="","",'Project Information'!$B$5) -> Concrete Barrier Example Problem
A2: WHOLE ROADWAY CHARACTERISTICS
A3: PERCENT OF TRAFFIC IN PRIMARY DIRECTION: | E3: 50 | F3: % | H3: PROJECT LIMITS
A4: PERCENT OF TRAFFIC ENCROACHING RIGHT: | E4: 50 | F4: % | H4: Min Sta | I4: =IF(A71="","",MIN(B71:C90)) -> 0 | J4: =IF('Project Information'!$B$6="SI","m","ft") -> ft
A5: HIGHWAY TYPE: | E5: D | H5: Max Sta | I5: =IF(A71="","",MAX(B71:C90)) -> 5280 | J5: =IF('Project Information'!$B$6="SI","m","ft") -> ft
A6: TERRAIN: | E6: F | H6: Max Offset | I6: =IF('Project Information'!$B$6="SI",60,200) -> 200 | J6: =IF('Project Information'!$B$6="SI","m","ft") -> ft
A7: POSTED SPEED LIMIT: | E7: 65 | F7: =IF('Project Information'!B6="USCU","mi/hr","km/hr") -> mi/hr
A8: USER ENROACHMENT ADJUSTMENT: | E8: 1
E10: EXPECTED EQUIVALENT PASSENGER VEHICLE ENCROACHMENTS
A11: ROAD SEGMENT DATA | E11: TOTAL | G11: PRIMARY DIRECTION | I11: OPPOSING DIRECTION
A12: SEG | B12: START STA | C12: END STA | D12: SEGMENT LENGTH | E12: BASE ENCR RATE | F12: MODIFIED ENCR RATE | G12: PRIMARY RIGHT ENCR | H12: PRIMARY LEFT ENCR | I12: OPPOSING RIGHT ENCR | J12: OPPOSING LEFT ENCR
D13: =IF('Project Information'!B6="SI","m","ft") -> ft | E13: encr/yr | F13: encr/yr | G13: =$E$3/100*$E$4/100 -> 0.25 | H13: =($E$3/100)*(1-$E$4/100) -> 0.25 | I13: =(1-$E$3/100)*$E$4/100 -> 0.25 | J13: =(1-$E$3/100)*(1-$E$4/100) -> 0.25
A14: =IF($D$64>0,1,"") -> 1 | B14: 0 | C14: 5280 | D14: 5280 | E14: 12.33201746 | F14: =IF(D14="","",SUM(G14:J14)) -> 12.33201746 | G14: =IF(D14="","",$E14*G$13*PRODUCT(B41:D41,H41:N41)) -> 3.083004365 | H14: =IF(D14="","",$E14*H$13*PRODUCT(B41,F41,D41,H41:N41)) -> 3.083004365 | I14: =IF(D14="","",$E14*I$13*PRODUCT(E41:N41)) -> 3.083004365 | J14: =IF(D14="","",$E14*J$13*PRODUCT(E41,C41,G41:N41)) -> 3.083004365
A15: =IF($D$64>1,2,"") ->  | F15: =IF(D15="","",SUM(G15:J15)) ->  | G15: =IF(D15="","",$E15*G$13*PRODUCT(B42:D42,H42:N42)) ->  | H15: =IF(D15="","",$E15*H$13*PRODUCT(B42,F42,D42,H42:N42)) ->  | I15: =IF(D15="","",$E15*I$13*PRODUCT(E42:N42)) ->  | J15: =IF(D15="","",$E15*J$13*PRODUCT(E42,C42,G42:N42)) -> 
A16: =IF($D$64>2,3,"") ->  | F16: =IF(D16="","",SUM(G16:J16)) ->  | J16: =IF(D16="","",$E16*J$13*PRODUCT(E43,C43,G43:N43)) -> 
A17: =IF($D$64>3,4,"") -> 
A18: =IF($D$64>4,5,"") -> 
A19: =IF($D$64>5,6,"") -> 
A20: =IF($D$64>6,7,"") -> 
A21: =IF($D$64>7,8,"") -> 
A22: =IF($D$64>8,9,"") -> 
A23: =IF($D$64>9,10,"") -> 
A24: =IF($D$64>10,11,"") -> 
A25: =IF($D$64>11,12,"") -> 
A26: =IF($D$64>12,13,"") -> 
A27: =IF($D$64>13,14,"") -> 
A28: =IF($D$64>14,15,"") -> 
A29: =IF($D$64>15,16,"") -> 
A30: =IF($D$64>16,17,"") -> 
A31: =IF($D$64>17,18,"") -> 
A32: =IF($D$64>18,19,"") -> 
A33: =IF($D$64>19,20,"") -> 
A38: ENCROACHMENT ADJUSTMENTS
A39: SEG | B39: PRIM DIR ADJ | E39: OPPOSING DIR ADJ | H39: NON-DIRECTIONAL ADJUSTMENTS
B40: GRADE | C40: HORIZ'L CURVE RADIUS | D40: NUMBER OF LANES | E40: GRADE | F40: HORIZ'L CURVE RADIUS | G40: NUMBER OF LANES | H40: SPEED LIMIT | I40: LANE WIDTH | J40: ACCESS DENSITY | K40: RUMBLE STRIPS | L40: TERRAIN | M40: USER
A41: =IF($D$64>0,1,"") -> 1 | B41: 1 | C41: 1 | D41: 1 | E41: 1 | F41: 1 | G41: 1 | H41: 1 | I41: 1 | J41: 1 | K41: 1 | L41: 1 | M41: 1
A42: =IF($D$64>1,2,"") -> 
A43: =IF($D$64>2,3,"") -> 
A44: =IF($D$64>3,4,"") -> 
A45: =IF($D$64>4,5,"") -> 
A46: =IF($D$64>5,6,"") -> 
A47: =IF($D$64>6,7,"") -> 
A48: =IF($D$64>7,8,"") -> 
A49: =IF($D$64>8,9,"") -> 
A50: =IF($D$64>9,10,"") -> 
A51: =IF($D$64>10,11,"") -> 
A52: =IF($D$64>11,12,"") -> 
A53: =IF($D$64>12,13,"") -> 
A54: =IF($D$64>13,14,"") -> 
A55: =IF($D$64>14,15,"") -> 
A56: =IF($D$64>15,16,"") -> 
A57: =IF($D$64>16,17,"") -> 
A58: =IF($D$64>17,18,"") -> 
A59: =IF($D$64>18,19,"") -> 
A60: =IF($D$64>19,20,"") -> 
A63: ROAD CHARACTERISTICS TABLE
A64: NUMBER OF ROAD SEGMENTS: | D64: 1 | E64: ROAD CHARACTERISTICS BY SEGMENT
A66: WHOLE ROAD CHARACTERISTICS | H66: PRIMARY DIRECTION | K66: MEDIAN | M66: NON-DIRECTIONAL CHARACTERISTICS
A67: SEG | B67: STATIONS | D67: ADT | E67: SPEED LIMIT | F67: TERRAIN | G67: TOTAL NUMBER OF LANES | H67: PRIM DIR GRADE | I67: PRIM DIR CURVE RADIUS | J67: LNS IN PRIM DIR | K67: MEDIAN WIDTH | L67: MEDIAN SHLDR WIDTH | M67: LANE WIDTH | N67: ACCESS DENSITY | O67: RUMBLE STRIPS | P67: SHLDR WIDTH
D68: RSAP DEFAULTS
D69: ='Traffic Information'!$C$8 -> 58888.47266 | E69: =$E$7 -> 65 | F69: =$E$6 -> F | G69: =IF($E$5="D",Defaults!$I$7,IF($E$5="U",Defaults!$I$8,IF($E$5="O",Defaults!$I$9,"ERROR"))) -> 4 | H69: =IF($E$5="D",Defaults!$J$7,IF($E$5="U",Defaults!$J$8,IF($E$5="O",Defaults!$J$9,"ERROR"))) -> 0 | I69: =IF($E$5="D",Defaults!$K$7,IF($E$5="U",Defaults!$K$8,IF($E$5="O",Defaults!$K$9,"ERROR"))) -> T | J69: =IF($E$5="D",Defaults!$L$7,IF($E$5="U",Defaults!$L$8,IF($E$5="O",Defaults!$L$9,"ERROR"))) -> 2 | K69: =IF($E$5="D",Defaults!$M$7,IF($E$5="U",Defaults!$M$8,IF($E$5="O",Defaults!$M$9,"ERROR"))) -> 30 | L69: =IF($E$5="D",Defaults!$N$7,IF($E$5="U",Defaults!$N$8,IF($E$5="O",Defaults!$N$9,"ERROR"))) -> 10 | M69: =IF($E$5="D",Defaults!$O$7,IF($E$5="U",Defaults!$O$8,IF($E$5="O",Defaults!$O$9,"ERROR"))) -> 12 | N69: =IF($E$5="D",Defaults!$P$7,IF($E$5="U",Defaults!$P$8,IF($E$5="O",Defaults!$P$9,"ERROR"))) -> 0 | O69: =IF($E$5="D",Defaults!$Q$7,IF($E$5="U",Defaults!$Q$8,IF($E$5="O",Defaults!$Q$9,"ERROR"))) -> FALSE | P69: =IF($E$5="D",Defaults!$R$7,IF($E$5="U",Defaults!$R$8,IF($E$5="O",Defaults!$R$9,"ERROR"))) -> 6
B70: START | C70: END | D70: veh / day | E70: =IF('Project Information'!$B$6="SI", "km / hr", "mi / hr") -> mi / hr | F70: F / M / R | H70: % | I70: =IF('Project Information'!$B$6="SI", "m", "ft") -> ft | K70: =IF('Project Information'!$B$6="SI", "m", "ft") -> ft | L70: =IF('Project Information'!$B$6="SI", "m", "ft") -> ft | M70: =IF('Project Information'!$B$6="SI", "m", "ft") -> ft | N70: =Defaults!$P$6 -> points/mi | O70: TRUE/FALSE | P70: =IF('Project Information'!$B$6="SI", "m", "ft") -> ft
A71: =IF($D$64>0,1,"") -> 1 | B71: 0 | C71: 5280 | D71: =IF($A71="","",D$69) -> 58888.47266 | E71: =IF($A71="","",E$69) -> 65 | F71: F | G71: 4 | H71: 0 | I71: T | J71: 2 | K71: 27 | L71: 10 | M71: 12 | N71: 0 | O71: FALSE | P71: 6
A72: =IF($D$64>1,2,"") ->  | D72: =IF($A72="","",D$69) -> 
A73: =IF($D$64>2,3,"") ->  | D73: =IF($A73="","",D$69) -> 
A74: =IF($D$64>3,4,"") -> 
A75: =IF($D$64>4,5,"") -> 
A76: =IF($D$64>5,6,"") -> 
A77: =IF($D$64>6,7,"") -> 
A78: =IF($D$64>7,8,"") -> 
A79: =IF($D$64>8,9,"") -> 
A80: =IF($D$64>9,10,"") -> 
A81: =IF($D$64>10,11,"") -> 
A82: =IF($D$64>11,12,"") -> 
A83: =IF($D$64>12,13,"") -> 
A84: =IF($D$64>13,14,"") -> 
A85: =IF($D$64>14,15,"") -> 
A86: =IF($D$64>15,16,"") -> 
A87: =IF($D$64>16,17,"") -> 
A88: =IF($D$64>17,18,"") -> 
A89: =IF($D$64>18,19,"") -> 
A90: =IF($D$64>19,20,"") -> 
A95: USER-ENTERED CHARACTERISTICS
A96: Total segments = | E96: 1 | F96: RSAP DEFAULT HIGHWAY CHARACTERISTICS
A97: START STATION | B97: END STATION | C97: KEYWORD | D97: VALUE | E97: SEG. | F97: =IF($E$5="D","DIVIDED HIGHWAYS",IF($E$5="U","UNDIVIDED HIGHWAYS",IF($E$5="O","ONE-WAY ROADWAYS","ERROR"))) -> DIVIDED HIGHWAYS | G97: =IF($E$5="D",Defaults!$P$7,IF($E$5="U",Defaults!$P$8,IF($E$5="O",Defaults!$P$9,"ERROR"))) -> 0 | H97: =IF($E$5="D",Defaults!$P$7,IF($E$5="U",Defaults!$P$8,IF($E$5="O",Defaults!$P$9,"ERROR"))) -> 0 | I97: =IF($E$5="D",Defaults!$P$7,IF($E$5="U",Defaults!$P$8,IF($E$5="O",Defaults!$P$9,"ERROR"))) -> 0
A98: 0 | B98: 5280 | C98: LANES TOTAL | D98: 4 | E98: 1 | F98: ='Program Data'!$G$4 -> ACCESS DENSITY | H98: =IF($E$5="D",Defaults!$P$7,IF($E$5="U",Defaults!$P$8,IF($E$5="O",Defaults!$P$9,"ERROR"))) -> 0 | I98: =Defaults!$P$6 -> points/mi
A99: 0 | B99: 5280 | C99: PRM_NUM_LNS | D99: 2 | E99: 1 | F99: ='Program Data'!$G$5 -> LANES TOTAL | H99: =IF($E$5="D",Defaults!$I$7,IF($E$5="U",Defaults!$I$8,IF($E$5="O",Defaults!$I$9,"ERROR"))) -> 4
A100: 0 | B100: 5280 | C100: MED_WIDTH | D100: 27 | E100: 1 | F100: ='Program Data'!$G$6 -> LNWIDTH | H100: =IF($E$5="D",Defaults!$O$7,IF($E$5="U",Defaults!$O$8,IF($E$5="O",Defaults!$O$9,"ERROR"))) -> 12 | I100: =IF('Project Information'!$B$6="SI", "m", "ft") -> ft
F101: ='Program Data'!$G$7 -> MED_SHLR_WIDTH | H101: =IF($E$5="D",Defaults!$N$7,IF($E$5="U",Defaults!$N$8,IF($E$5="O",Defaults!$N$9,"ERROR"))) -> 10 | I101: =IF('Project Information'!$B$6="SI", "m", "ft") -> ft
F102: ='Program Data'!$G$8 -> MED_WIDTH | H102: =IF($E$5="D",Defaults!$M$7,IF($E$5="U",Defaults!$M$8,IF($E$5="O",Defaults!$M$9,"ERROR"))) -> 30 | I102: =IF('Project Information'!$B$6="SI", "m", "ft") -> ft
F103: ='Program Data'!$G$9 -> PRM_CURV_RAD | H103: =IF($E$5="D",Defaults!$K$7,IF($E$5="U",Defaults!$K$8,IF($E$5="O",Defaults!$K$9,"ERROR"))) -> T | I103: =IF('Project Information'!$B$6="SI", "m", "ft") -> ft
F104: ='Program Data'!$G$10 -> PRM_GRADE | H104: =IF($E$5="D",Defaults!$J$7,IF($E$5="U",Defaults!$J$8,IF($E$5="O",Defaults!$J$9,"ERROR"))) -> 0 | I104: %
F105: ='Program Data'!$G$11 -> PRM_NUM_LNS | H105: =IF($E$5="D",Defaults!$L$7,IF($E$5="U",Defaults!$L$8,IF($E$5="O",Defaults!$L$9,"ERROR"))) -> 2
F106: ='Program Data'!$G$12 -> RMBLSTRIP | H106: =IF($E$5="D",Defaults!$Q$7,IF($E$5="U",Defaults!$Q$8,IF($E$5="O",Defaults!$Q$9,"ERROR"))) -> FALSE | I106: TRUE/FALSE
F107: RT_SHLR_WIDTH | H107: =IF($E$5="D",Defaults!$R$7,IF($E$5="U",Defaults!$R$8,IF($E$5="O",Defaults!$R$9,"ERROR"))) -> 6 | I107: =IF('Project Information'!$B$6="SI", "m", "ft") -> ft

Sheet Alternatives
A1: =IF('Project Information'!$B$5="","",'Project Information'!$B$5) -> Concrete Barrier Example Problem
A3: TOTAL ALTERNATIVES DEFINED | C3: 4
A5: ROADSIDE FEATURES FOR ALTERNATIVE NUMBER: | J5: 1 | L5: ROADSIDE FEATURES FOR ALTERNATIVE NUMBER: | U5: 2 | W5: ROADSIDE FEATURES FOR ALTERNATIVE NUMBER: | AF5: 3 | AH5: ROADSIDE FEATURES FOR ALTERNATIVE NUMBER: | AQ5: 4
A6: ALTERNATIVE NAME | C6: Unprotected Median | H6: DEFAULT X-SECTION | J6: All Flat | L6: ALTERNATIVE NAME | N6: W-Beam Median Barrier | S6: DEFAULT X-SECTION | U6: All Flat | W6: ALTERNATIVE NAME | Y6: TL3+ NJ Shape Barrier | AD6: DEFAULT X-SECTION | AF6: All Flat | AH6: ALTERNATIVE NAME | AJ6: TL5 NJ Shape Barrier | AO6: DEFAULT X-SECTION | AQ6: All Flat
A7: CONSTRUCTION COST | C7: 0 | F7: ANNUAL MAINTENANCE COST | I7: 0 | L7: CONSTRUCTION COST | N7: 281878 | T7: 500 | W7: CONSTRUCTION COST | Y7: 474425 | AE7: 0 | AH7: CONSTRUCTION COST | AJ7: 727716 | AP7: 0
A8: GENERAL HAZARD TYPE | B8: SPECIFIC HAZARD TYPE | C8: START STATION | D8: START SIDE | E8: START OFFSET | F8: END STATION | G8: END SIDE | H8: END OFFSET | I8: PARAMETER | J8: VALUE | L8: GENERAL HAZARD TYPE | M8: SPECIFIC HAZARD TYPE | N8: START STATION | O8: START SIDE | P8: START OFFSET | Q8: END STATION | R8: END SIDE | S8: END OFFSET | T8: PARAMETER | U8: VALUE | W8: GENERAL HAZARD TYPE | X8: SPECIFIC HAZARD TYPE | Y8: START STATION | Z8: START SIDE | AA8: START OFFSET | AB8: END STATION | AC8: END SIDE | AD8: END OFFSET | AE8: PARAMETER | AF8: VALUE | AH8: GENERAL HAZARD TYPE | AI8: SPECIFIC HAZARD TYPE | AJ8: START STATION | AK8: START SIDE | AL8: START OFFSET | AM8: END STATION | AN8: END SIDE | AO8: END OFFSET | AP8: PARAMETER | AQ8: VALUE
C9: STATIONS | E9: ft | F9: STATIONS | H9: ft | N9: STATIONS | P9: ft | Q9: STATIONS | S9: ft | Y9: STATIONS | AA9: ft | AB9: STATIONS | AD9: ft | AJ9: STATIONS | AL9: ft | AM9: STATIONS | AO9: ft
A10: SpecialEdge | B10: EdgeOfMedian | C10: 0 | D10: R | E10: 13.5 | F10: 5280 | G10: R | H10: 13.5 | L10: SpecialEdge | M10: EdgeOfMedian | N10: 0 | O10: R | P10: 13.5 | Q10: 5280 | R10: R | S10: 13.5 | W10: SpecialEdge | X10: EdgeOfMedian | Y10: 0 | Z10: R | AA10: 13.5 | AB10: 5280 | AC10: R | AD10: 13.5 | AH10: SpecialEdge | AI10: EdgeOfMedian | AJ10: 0 | AK10: R | AL10: 13.5 | AM10: 5280 | AN10: R | AO10: 13.5
A11: SpecialEdge | B11: EdgeOfMedian | C11: 0 | D11: L | E11: 13.5 | F11: 5280 | G11: L | H11: 13.5 | L11: SpecialEdge | M11: EdgeOfMedian | N11: 0 | O11: L | P11: 13.5 | Q11: 5280 | R11: L | S11: 13.5 | W11: SpecialEdge | X11: EdgeOfMedian | Y11: 0 | Z11: L | AA11: 13.5 | AB11: 5280 | AC11: L | AD11: 13.5 | AH11: SpecialEdge | AI11: EdgeOfMedian | AJ11: 0 | AK11: L | AL11: 13.5 | AM11: 5280 | AN11: L | AO11: 13.5
L12: MedianBarriers_SemiRigid | M12: TL3WbeamMB | N12: 0 | O12: L | P12: 0 | Q12: 5280 | R12: L | S12: 0 | T12: Width (in.) | U12: 24 | W12: MedianBarriers_Rigid | X12: TL3+NJShapeMB | Y12: 0 | Z12: L | AA12: 0 | AB12: 5280 | AC12: L | AD12: 0 | AE12: Width (in.) | AF12: 32 | AH12: MedianBarriers_Rigid | AI12: TL5NJshapeMB | AJ12: 0 | AK12: L | AL12: 0 | AM12: 5280 | AN12: L | AO12: 0 | AP12: Width (in.) | AQ12: 32
A505: No. of Hazards in this Alternative | E505: =COUNTA(A10:A500) -> 2 | L505: No. of Hazards in this Alternative | P505: =COUNTA(L10:L500) -> 3 | W505: No. of Hazards in this Alternative | AA505: =COUNTA(W10:W500) -> 3 | AH505: No. of Hazards in this Alternative | AL505: =COUNTA(AH10:AH500) -> 3 | AS505: No. of Hazards in this Alternative | AW505: =COUNTA(AS10:AS500) -> 0

Sheet Severity
A1: HAZARD CHARACTERISTICS
A2: HAZARD NAME | B2: TYPE | C2: ANNUAL MAINT. COST | D2: TYPICAL REPAIR COST / CRASH | E2: EFCCR65 | F2: PENETRATION ROLLOVER VAULT | G2: REDIRECTION ROLLOVER | H2: ENERGY CAPACITY | I2: LOAD CAPACITY | J2: BARRIER HEIGHT | K2: SPEED ADJUST EFCCR
F3: % | G3: % | H3: ft-lbf | I3: lbf | J3: in | K3: T/F | L3: CATEGORY | M3: COMMENT/REFERENCE
A4: GenericBR | B4: L | C4: 0 | D4: 0 | E4: 0.005 | F4: 0.3 | G4: 5 | J4: 27 | K4: T | L4: BridgeRails | W4: 27
A5: TL2LowProfileBR | B5: L | C5: 0 | D5: 100 | E5: 0.0035 | F5: 0 | G5: 2 | H5: 47000 | I5: 43200 | J5: 24 | K5: T | L5: BridgeRails | M5: Assumed to have same properties as TL3NJShapeBR. Only the barrier height is different | U5: 47000 | V5: 94000 | W5: 24
A6: TL3+FShapeBR | B6: L | C6: 0 | D6: 100 | E6: 0.0035 | F6: 0 | G6: 1.5 | H6: 47000 | I6: 94000 | J6: 32 | K6: T | L6: BridgeRails | M6: Load capacity(54kips) scaled by 1.6=86.4kips; Assume 1.5% redirection roll. PRV=0 because capacity algorythm will take care of penetrations. | U6: 47000 | V6: 94000 | W6: 32
A7: TL3+NJShapeBR | B7: L | C7: 0 | D7: 100 | E7: 0.0035 | F7: 0 | G7: 2 | H7: 47000 | I7: 86400 | J7: 32 | K7: T | L7: BridgeRails | M7: Load capacity(54kips) scaled by 1.6=86.4kips; Assume 2% redirection roll. PRV=0 because capacity algorythm will take care of penetrations. | U7: 47000 | V7: 118000 | W7: 32
A8: TL3+SingleSlpBR | B8: L | C8: 0 | D8: 100 | E8: 0.0035 | F8: 0 | G8: 0.5 | H8: 47000 | I8: 118000 | J8: 42 | K8: T | L8: BridgeRails | M8: Load capacity(54kips) scaled by 1.6=86.4kips; Assume 0.5% redirection roll. PRV=0 because capacity algorythm will take care of penetrations. | U8: 47000 | V8: 118000 | W8: 42
A9: TL3+VertWallBR | B9: L | C9: 0 | D9: 100 | E9: 0.0085 | F9: 0 | G9: 0.5 | H9: 47000 | I9: 98000 | J9: 32 | K9: T | L9: BridgeRails | M9: Load capacity(54kips) scaled by 1.6=86.4kips; Assume 0.5% redirection roll. PRV=0 because capacity algorythm will take care of penetrations. | U9: 47000 | V9: 98000 | W9: 32
A10: TL3FShapeBR | B10: L | C10: 0 | D10: 100 | E10: 0.0035 | F10: 0 | G10: 1.5 | H10: 47000 | I10: 90000 | J10: 31 | K10: T | L10: BridgeRails | M10: Load capacity(27kips) scaled by 1.6=43.2kips; Assume 1.5% redirection roll. PRV=0 because capacity algorythm will take care of penetrations. | U10: 47000 | V10: 90000 | W10: 27
A11: TL3NJShapeBR | B11: L | C11: 0 | D11: 100 | E11: 0.0035 | F11: 0 | G11: 2 | H11: 47000 | I11: 43200 | J11: 31 | K11: T | L11: BridgeRails | M11: Load capacity(27kips) scaled by 1.6=43.2kips; Assume 2% redirection roll. PRV=0 because capacity algorythm will take care of penetrations. | U11: 47000 | V11: 110000 | W11: 27
A12: TL3VertWallBR | B12: L | C12: 0 | D12: 100 | E12: 0.0085 | F12: 0 | G12: 0.5 | H12: 47000 | I12: 100000 | J12: 31 | K12: T | L12: BridgeRails | M12: Load capacity(27kips) scaled by 1.6=43.2kips; Assume 0.5% redirection roll. PRV=0 because capacity algorythm will take care of penetrations. | U12: 47000 | V12: 100000 | W12: 27
A13: TL4FShapeBR | B13: L | C13: 0 | D13: 100 | E13: 0.0035 | F13: 0 | G13: 1.5 | H13: 47000 | I13: 128000 | J13: 36 | K13: T | L13: BridgeRails | M13: Load capacity(80kips) scaled by 1.6=128kips; Assume 1.5% redirection roll. PRV=0 because capacity algorythm will take care of penetrations. | U13: 47000 | V13: 128000 | W13: 36
A14: TL4NJShapeBR | B14: L | C14: 0 | D14: 100 | E14: 0.0035 | F14: 0 | G14: 2 | H14: 47000 | I14: 128000 | J14: 36 | K14: T | L14: BridgeRails | M14: Load capacity(80kips) scaled by 1.6=128kips; Assume 2% redirection roll. PRV=0 because capacity algorythm will take care of penetrations. | U14: 47000 | V14: 128000 | W14: 36 | Z14: c:\Users\mray\Desktop\System Samples NJ32.jpg
A15: TL4SingleSlpBR | B15: L | C15: 0 | D15: 100 | E15: 0.0035 | F15: 0 | G15: 0.5 | H15: 47000 | I15: 150000 | J15: 36 | K15: T | L15: BridgeRails | M15: Load capacity(80kips) scaled by 1.6=128kips; Assume 0.5% redirection roll. PRV=0 because capacity algorythm will take care of penetrations. | U15: 47000 | V15: 150000 | W15: 36
A16: TL4VertWallBR | B16: L | C16: 0 | D16: 100 | E16: 0.0085 | F16: 0 | G16: 0.5 | H16: 47000 | I16: 128000 | J16: 36 | K16: T | L16: BridgeRails | M16: Load capacity(80kips) scaled by 1.6=128kips; Assume 0.5% redirection roll. PRV=0 because capacity algorythm will take care of penetrations. | U16: 47000 | V16: 128000 | W16: 36
A17: TL5FShapeBR | B17: L | C17: 0 | D17: 100 | E17: 0.0035 | F17: 0 | G17: 1.5 | H17: 47000 | I17: 264000 | J17: 42 | K17: T | L17: BridgeRails | M17: Load capacity(42kips) scaled by 1.6=256kips; Assume 1.5% redirection roll. PRV=0 because capacity algorythm will take care of penetrations. | U17: 47000 | V17: 264000 | W17: 42
A18: TL5NJshapeBR | B18: L | C18: 0 | D18: 100 | E18: 0.0035 | F18: 0 | G18: 2 | H18: 47000 | I18: 256000 | J18: 42 | K18: T | L18: BridgeRails | M18: Load capacity(42kips) scaled by 1.6=256kips; Assume 2% redirection roll. PRV=0 because capacity algorythm will take care of penetrations. | U18: 47000 | V18: 264000 | W18: 42
A19: TL5VertWallBR | B19: L | C19: 0 | D19: 100 | E19: 0.0085 | F19: 0 | G19: 0.5 | H19: 47000 | I19: 347000 | J19: 42 | K19: T | L19: BridgeRails | M19: Load capacity(42kips) scaled by 1.6=256kips; Assume 0.5% redirection roll. PRV=0 because capacity algorythm will take care of penetrations. | U19: 47000 | V19: 347000 | W19: 42
A20: GenericAttenuator | B20: P | C20: 0 | D20: 0 | E20: 0.012 | F20: 7 | G20: 0 | K20: T | L20: CrashCushions_Gating
A21: TL3HTCableGR | B21: L | C21: 100 | D21: 800 | E21: 0.0018 | F21: 7 | G21: 0.5 | J21: 30 | K21: T | L21: Guardrails_Flexible
A22: TL3LTCableGR | B22: L | C22: 100 | D22: 800 | E22: 0.0009 | F22: 11 | G22: 0.5 | J22: 30 | K22: T | L22: Guardrails_Flexible
A23: TL3+FshapeGR | B23: L | C23: 0 | D23: 100 | E23: 0.0035 | F23: 0 | G23: 1.5 | H23: 47000 | I23: 94000 | J23: 32 | K23: T | L23: Guardrails_Rigid
A24: TL3+NJshapeGR | B24: L | C24: 0 | D24: 100 | E24: 0.0035 | F24: 0 | G24: 2 | H24: 47000 | I24: 86400 | J24: 32 | K24: T | L24: Guardrails_Rigid | M24: Load capacity(71,000 lb) scaled by 1.6 based on comparison of Yield-Line values and crash test results
A25: TL3FShapeGR | B25: L | C25: 0 | D25: 100 | E25: 0.0035 | F25: 0 | G25: 1.5 | H25: 47000 | I25: 90000 | J25: 27 | K25: T | L25: Guardrails_Rigid
A26: TL3NJShapeGR | B26: L | C26: 0 | D26: 100 | E26: 0.0035 | F26: 0 | G26: 2 | H26: 47000 | I26: 43200 | J26: 27 | K26: T | L26: Guardrails_Rigid
A27: TL5FshapeGR | B27: L | C27: 0 | D27: 100 | E27: 0.0035 | F27: 0 | G27: 1.5 | H27: 47000 | I27: 264000 | J27: 42 | K27: T | L27: Guardrails_Rigid | M27: Load capacity(71,000 lb) scaled by 1.6 based on comparison of Yield-Line values and crash test results
A28: TL5NJshapeGR | B28: L | C28: 0 | D28: 100 | E28: 0.0035 | F28: 0 | G28: 2 | H28: 47000 | I28: 256000 | J28: 42 | K28: T | L28: Guardrails_Rigid
A29: TL3WbeamGR | B29: L | C29: 0 | D29: 1000 | E29: 0.0047 | F29: 2 | G29: 0.1 | J29: 27 | K29: T | L29: Guardrails_SemiRigid | M29: 1.2 times TL3 Impact Severity … load capacity based on Olson's equation at TL3 impact conditions with 3-ft deflection
A30: TL3HTCableMB | B30: L | C30: 100 | D30: 800 | E30: 0.0018 | F30: 4 | G30: 0.5 | J30: 30 | K30: T | L30: MedianBarriers_Flexible
A31: TL3LTCableMB | B31: L | C31: 100 | D31: 800 | E31: 0.0009 | F31: 6 | G31: 0.5 | J31: 30 | K31: T | L31: MedianBarriers_Flexible
A32: TL3+FShapeMB | B32: L | C32: 0 | D32: 100 | E32: 0.0035 | F32: 0 | G32: 1.5 | H32: 47000 | I32: 94000 | J32: 32 | K32: T | L32: MedianBarriers_Rigid | M32: Load capacity(54kips) scaled by 1.6=86.4kips; Assume 1.5% redirection roll. PRV=0 because capacity algorythm will take care of penetrations.
A33: TL3+NJShapeMB | B33: L | C33: 0 | D33: 100 | E33: 0.0035 | F33: 0 | G33: 2 | H33: 47000 | I33: 86400 | J33: 32 | K33: T | L33: MedianBarriers_Rigid | M33: Load capacity(54kips) scaled by 1.6=86.4kips; Assume 2% redirection roll. PRV=0 because capacity algorythm will take care of penetrations.
A34: TL3FShapeMB | B34: L | C34: 0 | D34: 100 | E34: 0.0035 | F34: 0 | G34: 1.5 | H34: 47000 | I34: 90000 | J34: 27 | K34: T | L34: MedianBarriers_Rigid
A35: TL3NJShapeMB | B35: L | C35: 0 | D35: 100 | E35: 0.0035 | F35: 0 | G35: 2 | H35: 47000 | I35: 43200 | J35: 27 | K35: T | L35: MedianBarriers_Rigid
A36: TL5FShapeMB | B36: L | C36: 0 | D36: 100 | E36: 0.0035 | F36: 0 | G36: 1.5 | H36: 47000 | I36: 264000 | J36: 42 | K36: T | L36: MedianBarriers_Rigid | M36: Load capacity(71,000 lb) scaled by 1.6 based on comparison of Yield-Line values and crash test results
A37: TL5NJshapeMB | B37: L | C37: 0 | D37: 100 | E37: 0.0035 | F37: 0 | G37: 2 | H37: 47000 | I37: 256000 | J37: 42 | K37: T | L37: MedianBarriers_Rigid
A38: TL3WbeamMB | B38: L | C38: 0 | D38: 1200 | E38: 0.0047 | F38: 2 | G38: 0.1 | H38: 94170 | I38: 25000 | J38: 27 | K38: T | L38: MedianBarriers_SemiRigid | M38: 1.2 times TL3 Impact Severity … load capacity based on Olson's equation at TL3 impact conditions with 3-ft deflection
A39: BridgePierColumn | B39: P | C39: 0 | D39: 0 | E39: 0.1784 | F39: 2 | G39: 0 | H39: 1000000000 | I39: 1000000 | K39: T | L39: PoleTreeSign
A40: Delineator | B40: P | C40: 0 | D40: 0 | E40: 0.002 | F40: 15 | G40: 0 | H40: 34000 | K40: T | L40: PoleTreeSign
A41: Generic Fixed Obj | B41: P | C41: 0 | D41: 0 | E41: 0.03 | F41: 0 | G41: 0 | K41: T | L41: PoleTreeSign
A42: Luminaire | B42: P | C42: 0 | D42: 0 | E42: 0.013 | F42: 30 | G42: 1 | H42: 34000 | K42: T | L42: PoleTreeSign
A43: Mailbox | B43: P | C43: 0 | D43: 0 | E43: 0.017 | F43: 40 | G43: 1 | H43: 34000 | K43: T | L43: PoleTreeSign
A44: SignsBrkwy | B44: P | C44: 0 | D44: 0 | E44: 0.003 | F44: 7 | G44: 0 | H44: 34000 | K44: T | L44: PoleTreeSign
A45: SmallWoodSign | B45: P | C45: 0 | D45: 0 | E45: 0.003 | F45: 7 | G45: 0 | H45: 34000 | K45: T | L45: PoleTreeSign
A46: TrafficSignal | B46: P | C46: 0 | D46: 2000 | E46: 0.0367 | F46: 4 | G46: 0 | H46: 34000 | K46: T | L46: PoleTreeSign
A47: Tree | B47: P | C47: 0 | D47: 0 | E47: 0.032 | F47: 5 | G47: 0 | K47: T | L47: PoleTreeSign
A48: UtilityPole | B48: P | C48: 0 | D48: 5000 | E48: 0.031 | F48: 11 | G48: 0 | K48: T | L48: PoleTreeSign
A49: BridgeEdge_HighHaz | B49: L | C49: 0 | D49: 0 | E49: 1 | F49: 100 | G49: 0 | H49: 1000000000 | K49: F | L49: SpecialEdge | M49: 10^9 ensures that no trajectory continues once it has crossed this hazard
A50: BridgeEdge_LowHaz | B50: L | C50: 0 | D50: 0 | E50: 0.0584 | F50: 100 | G50: 0 | H50: 1000000000 | K50: F | L50: SpecialEdge | M50: 10^9 ensures that no trajectory continues once it has crossed this hazard
A51: BridgeEdge_MedHaz | B51: L | C51: 0 | D51: 0 | E51: 0.1584 | F51: 100 | G51: 0 | H51: 1000000000 | K51: F | L51: SpecialEdge | M51: 10^9 ensures that no trajectory continues once it has crossed this hazard
A52: ClearZoneFence | B52: L | C52: 0 | D52: 0 | E52: 0.006 | F52: 15 | G52: 0 | H52: 300000 | K52: T | L52: SpecialEdge
A53: EdgeOfMedian | B53: L | C53: 0 | D53: 0 | E53: 0.0425 | F53: 100 | G53: 0 | H53: 0 | K53: F | L53: SpecialEdge
A54: GenericRigidWall | B54: P | C54: 0 | D54: 0 | E54: 0.0035 | F54: 0.1 | G54: 1 | H54: 100000 | K54: T | L54: SpecialEdge
A55: Rock Ledge | B55: L | C55: 0 | D55: 0 | E55: 0.03 | F55: 0 | G55: 0 | K55: T | L55: SpecialEdge
A56: TreeLine | B56: L | C56: 0 | D56: 0 | E56: 0.03 | F56: 100 | G56: 0 | H56: 1000000000 | K56: T | L56: SpecialEdge
A57: Water | B57: L | C57: 0 | D57: 0 | E57: 0.03 | F57: 100 | G57: 0 | H57: 1000000000 | K57: T | L57: SpecialEdge | M57: 10^9 ensures that no trajectory continues once it has crossed this hazard
A58: GenericEnd | B58: P | C58: 0 | D58: 0 | E58: 0.0168 | F58: 0 | G58: 0 | H58: 0 | K58: T | L58: TerminalEnds
A59: Rollover | B59: A | C59: 0 | D59: 0 | E59: 0.022 | H59: 0 | K59: T

Sheet Cross-Section
D2: ALTERNATIVES
B3: DEFAULT X-SECTION | D3: All Flat | E3: All Flat | F3: All Flat | G3: All Flat
A4: SEG | B4: START STA | C4: END STA | D4: =IF(D3<>"",1,"") -> 1 | E4: =IF(E3<>"",2,"") -> 2 | F4: =IF(F3<>"",3,"") -> 3 | G4: =IF(G3<>"",4,"") -> 4 | H4: =IF(H3<>"",5,"") -> 
A5: =IF('Road Segments'!A14="","",'Road Segments'!A14) -> 1 | B5: =IF('Road Segments'!B14="","",'Road Segments'!B14) -> 0 | C5: =IF('Road Segments'!C14="","",'Road Segments'!C14) -> 5280 | D5: All Flat | E5: All Flat | F5: All Flat | G5: All Flat
A6: =IF('Road Segments'!A15="","",'Road Segments'!A15) ->  | B6: =IF('Road Segments'!B15="","",'Road Segments'!B15) ->  | C6: =IF('Road Segments'!C15="","",'Road Segments'!C15) -> 
A7: =IF('Road Segments'!A16="","",'Road Segments'!A16) ->  | B7: =IF('Road Segments'!B16="","",'Road Segments'!B16) ->  | C7: =IF('Road Segments'!C16="","",'Road Segments'!C16) -> 
A8: =IF('Road Segments'!A17="","",'Road Segments'!A17) ->  | B8: =IF('Road Segments'!B17="","",'Road Segments'!B17) ->  | C8: =IF('Road Segments'!C17="","",'Road Segments'!C17) -> 
A9: =IF('Road Segments'!A18="","",'Road Segments'!A18) ->  | B9: =IF('Road Segments'!B18="","",'Road Segments'!B18) ->  | C9: =IF('Road Segments'!C18="","",'Road Segments'!C18) -> 
A10: =IF('Road Segments'!A19="","",'Road Segments'!A19) ->  | B10: =IF('Road Segments'!B19="","",'Road Segments'!B19) ->  | C10: =IF('Road Segments'!C19="","",'Road Segments'!C19) -> 
A11: =IF('Road Segments'!A20="","",'Road Segments'!A20) ->  | B11: =IF('Road Segments'!B20="","",'Road Segments'!B20) ->  | C11: =IF('Road Segments'!C20="","",'Road Segments'!C20) ->  | AG11: =-D31/2 -> -13.5 | AH11: =(-D31/2)-(D26-D27)*D28 -> -37.5
A12: =IF('Road Segments'!A21="","",'Road Segments'!A21) ->  | B12: =IF('Road Segments'!B21="","",'Road Segments'!B21) ->  | C12: =IF('Road Segments'!C21="","",'Road Segments'!C21) ->  | AG12: =D31/2 -> 13.5 | AH12: =(D31/2)+(D27*D28) -> 37.5
A13: =IF('Road Segments'!A22="","",'Road Segments'!A22) ->  | B13: =IF('Road Segments'!B22="","",'Road Segments'!B22) ->  | C13: =IF('Road Segments'!C22="","",'Road Segments'!C22) ->  | J13: Name | K13: All Flat | AG13: 0 | AH13: 0
A14: =IF('Road Segments'!A23="","",'Road Segments'!A23) ->  | B14: =IF('Road Segments'!B23="","",'Road Segments'!B23) ->  | C14: =IF('Road Segments'!C23="","",'Road Segments'!C23) ->  | L14: Primary Roadside Profile
A15: =IF('Road Segments'!A24="","",'Road Segments'!A24) ->  | B15: =IF('Road Segments'!B24="","",'Road Segments'!B24) ->  | C15: =IF('Road Segments'!C24="","",'Road Segments'!C24) ->  | L15: Shoulder | AF15: All 10:1 | AG15: 0 | AH15: 0 | AI15: 0 | AJ15: 0 | AK15: 0 | AL15: 100 | AM15: -50 | AS15: -10 | AT15: 0.5 | AU15: 0 | AV15: 0 | AW15: 0 | AX15: 0.5 | AY15: 50 | AZ15: 10 | BD15: -10 | BE15: -200 | BF15: 0 | BG15: 0 | BH15: 0 | BI15: 0 | BJ15: 0 | BK15: 100 | BL15: -50 | BR15: -10
A16: =IF('Road Segments'!A25="","",'Road Segments'!A25) ->  | B16: =IF('Road Segments'!B25="","",'Road Segments'!B25) ->  | C16: =IF('Road Segments'!C25="","",'Road Segments'!C25) ->  | J16: Slope Width | L16: =$D$30 -> 6 | M16: =IF('Project Information'!K9="SI","m","ft") -> ft | N16: 0 | O16: =IF('Project Information'!M9="SI","m","ft") -> ft | P16: 0 | Q16: =IF('Project Information'!O9="SI","m","ft") -> ft | R16: 0 | S16: =IF('Project Information'!Q9="SI","m","ft") -> ft | T16: 0 | U16: =IF('Project Information'!S9="SI","m","ft") -> ft | V16: 0 | W16: =IF('Project Information'!U9="SI","m","ft") -> ft | X16: 100 | Y16: =IF('Project Information'!W9="SI","m","ft") -> ft | AF16: All 2:1 | AG16: 0 | AH16: 0 | AI16: 0 | AJ16: 0 | AK16: 0 | AL16: 100 | AM16: -50 | AS16: -2 | AT16: 0.5 | AU16: 0 | AV16: 0 | AW16: 0 | AX16: 0.5 | AY16: 50 | AZ16: 2 | BD16: -2 | BE16: -200 | BF16: 0 | BG16: 0 | BH16: 0 | BI16: 0 | BJ16: 0 | BK16: 100 | BL16: -50 | BR16: -2
A17: =IF('Road Segments'!A26="","",'Road Segments'!A26) ->  | B17: =IF('Road Segments'!B26="","",'Road Segments'!B26) ->  | C17: =IF('Road Segments'!C26="","",'Road Segments'!C26) ->  | J17: Slope | L17: -50 | M17: H:1V | O17: H:1V | Q17: H:1V | S17: H:1V | U17: H:1V | W17: H:1V | X17: -1000 | Y17: H:1V | AF17: All 3:1 | AG17: 0 | AH17: 0 | AI17: 0 | AJ17: 0 | AK17: 0 | AL17: 100 | AM17: -50 | AS17: -3 | AT17: 0.5 | AU17: 0 | AV17: 0 | AW17: 0 | AX17: 0.5 | AY17: 50 | AZ17: 3 | BD17: -3 | BE17: -200 | BF17: 0 | BG17: 0 | BH17: 0 | BI17: 0 | BJ17: 0 | BK17: 100 | BL17: -50 | BR17: -3
A18: =IF('Road Segments'!A27="","",'Road Segments'!A27) ->  | B18: =IF('Road Segments'!B27="","",'Road Segments'!B27) ->  | C18: =IF('Road Segments'!C27="","",'Road Segments'!C27) ->  | J18: Offset | K18: =$D$31/2+($D$27*$D$28) -> 37.5 | M18: =K18+L16 -> 43.5 | O18: =IF(N16="","",M18+N16) -> 43.5 | Q18: =IF(P16="","",O18+P16) -> 43.5 | S18: =IF(R16="","",Q18+R16) -> 43.5 | U18: =IF(T16="","",S18+T16) -> 43.5 | W18: =IF(V16="","",U18+V16) -> 43.5 | Y18: =IF(X16="","",W18+X16) -> 143.5 | AF18: All 4:1 | AG18: 0 | AH18: 0 | AI18: 0 | AJ18: 0 | AK18: 0 | AL18: 100 | AM18: -50 | AS18: -4 | AT18: 0.5 | AU18: 0 | AV18: 0 | AW18: 0 | AX18: 0.5 | AY18: 50 | AZ18: 4 | BD18: -4 | BE18: -200 | BF18: 0 | BG18: 0 | BH18: 0 | BI18: 0 | BJ18: 0 | BK18: 100 | BL18: -50 | BR18: -4
A19: =IF('Road Segments'!A28="","",'Road Segments'!A28) ->  | B19: =IF('Road Segments'!B28="","",'Road Segments'!B28) ->  | C19: =IF('Road Segments'!C28="","",'Road Segments'!C28) ->  | J19: Elev | K19: =$D$32/12 -> 0 | M19: =IF(OR(L17=0,L17=""),K19,(K19+L16/L17)) -> -0.12 | O19: =IF(OR(N17=0,N17=""),M19,(M19+N16/N17)) -> -0.12 | Q19: =IF(OR(P17=0,P17=""),O19,(O19+P16/P17)) -> -0.12 | S19: =IF(OR(R17=0,R17=""),Q19,(Q19+R16/R17)) -> -0.12 | U19: =IF(OR(T17=0,T17=""),S19,(S19+T16/T17)) -> -0.12 | W19: =IF(OR(V17=0,V17=""),U19,(U19+V16/V17)) -> -0.12 | Y19: =IF(OR(X17=0,X17=""),W19,(W19+X16/X17)) -> -0.22 | AF19: All 6:1 | AG19: 0 | AH19: 0 | AI19: 0 | AJ19: 0 | AK19: 0 | AL19: 100 | AM19: -50 | AS19: -6 | AT19: 0.5 | AU19: 0 | AV19: 0 | AW19: 0 | AX19: 0.5 | AY19: 50 | AZ19: 6 | BD19: -6 | BE19: -200 | BF19: 0 | BG19: 0 | BH19: 0 | BI19: 0 | BJ19: 0 | BK19: 100 | BL19: -50 | BR19: -6
A20: =IF('Road Segments'!A29="","",'Road Segments'!A29) ->  | B20: =IF('Road Segments'!B29="","",'Road Segments'!B29) ->  | C20: =IF('Road Segments'!C29="","",'Road Segments'!C29) ->  | AF20: All 8:1 | AG20: 0 | AH20: 0 | AI20: 0 | AJ20: 0 | AK20: 0 | AL20: 100 | AM20: -50 | AS20: -8 | AT20: 0.5 | AU20: 0 | AV20: 0 | AW20: 0 | AX20: 0.5 | AY20: 50 | AZ20: 8 | BD20: -8 | BE20: -200 | BF20: 0 | BG20: 0 | BH20: 0 | BI20: 0 | BJ20: 0 | BK20: 100 | BL20: -50 | BR20: -8
A21: =IF('Road Segments'!A30="","",'Road Segments'!A30) ->  | B21: =IF('Road Segments'!B30="","",'Road Segments'!B30) ->  | C21: =IF('Road Segments'!C30="","",'Road Segments'!C30) ->  | L21: =IF('Road Segments'!E5="O","Left Roadside Profile","Median Profile") -> Median Profile | AF21: All Flat | AG21: 0 | AH21: 0 | AI21: 0 | AJ21: 0 | AK21: 0 | AL21: 100 | AM21: -50 | AS21: -1000 | AT21: 0.5 | AU21: 0 | AV21: 0 | AW21: 0 | AX21: 0.5 | AY21: 50 | AZ21: 1000 | BD21: -1000 | BE21: -50 | BF21: 0 | BG21: 0 | BH21: 0 | BI21: 0 | BJ21: 0 | BK21: 100 | BL21: -50 | BR21: -1000
A22: =IF('Road Segments'!A31="","",'Road Segments'!A31) ->  | B22: =IF('Road Segments'!B31="","",'Road Segments'!B31) ->  | C22: =IF('Road Segments'!C31="","",'Road Segments'!C31) ->  | L22: Shoulder | X22: Shoulder | AF22: CulvertOnRt | AG22: 2 | AH22: 1 | AI22: 0 | AJ22: 0 | AK22: 0 | AL22: 150 | AM22: -50 | AN22: -200 | AO22: -0.1 | AS22: -10 | AT22: 0.5 | AU22: 0 | AV22: 0 | AW22: 0 | AX22: 0.5 | AY22: 50 | AZ22: 2 | BD22: -2 | BE22: -200 | BF22: 0 | BG22: 0 | BH22: 0 | BI22: 0 | BJ22: 0 | BK22: 100 | BL22: -100 | BM22: -4 | BR22: -4
A23: =IF('Road Segments'!A32="","",'Road Segments'!A32) ->  | B23: =IF('Road Segments'!B32="","",'Road Segments'!B32) ->  | C23: =IF('Road Segments'!C32="","",'Road Segments'!C32) ->  | J23: Slope Width | L23: =$D$29 -> 10 | M23: =IF('Project Information'!K16="SI","m","ft") -> ft | N23: =N24*($D$31-2*$D$29) -> 3.5 | O23: =IF('Project Information'!M16="SI","m","ft") -> ft | P23: =P24*($D$31-2*$D$29) -> 0 | Q23: =IF('Project Information'!O16="SI","m","ft") -> ft | R23: =R24*($D$31-2*$D$29) -> 0 | S23: =IF('Project Information'!Q16="SI","m","ft") -> ft | T23: =T24*($D$31-2*$D$29) -> 0 | U23: =IF('Project Information'!S16="SI","m","ft") -> ft | V23: =V24*($D$31-2*$D$29) -> 3.5 | W23: =IF('Project Information'!U16="SI","m","ft") -> ft | X23: =$D$29 -> 10 | Y23: =IF('Project Information'!W16="SI","m","ft") -> ft | AF23: MedMndinCut | AG23: 0 | AH23: 0 | AI23: 0 | AJ23: 0 | AK23: 0 | AL23: 100 | AM23: -50 | AS23: 2 | AT23: 0.34 | AU23: 0.16 | AV23: 0 | AW23: 0.16 | AX23: 0.34 | AY23: 50 | AZ23: -4 | BA23: -6 | BC23: 6 | BD23: 4 | BE23: -200 | BF23: 0 | BG23: 0 | BH23: 0 | BI23: 0 | BJ23: 0 | BK23: 100 | BL23: -50 | BR23: 2
A24: =IF('Road Segments'!A33="","",'Road Segments'!A33) ->  | B24: =IF('Road Segments'!B33="","",'Road Segments'!B33) ->  | C24: =IF('Road Segments'!C33="","",'Road Segments'!C33) ->  | J24: % Clr Med Width | N24: 0.5 | P24: 0 | R24: 0 | T24: 0 | V24: 0.5 | AF24: MedMndinFill | AG24: 0 | AH24: 0 | AI24: 0 | AJ24: 0 | AK24: 0 | AL24: 100 | AM24: -50 | AS24: -3 | AT24: 0.34 | AU24: 0.16 | AV24: 0 | AW24: 0.16 | AX24: 0.34 | AY24: 50 | AZ24: -4 | BA24: -6 | BC24: 6 | BD24: 4 | BE24: -200 | BF24: 0 | BG24: 0 | BH24: 0 | BI24: 0 | BJ24: 0 | BK24: 100 | BL24: -50 | BR24: -3
A25: SEGMENT CHARACTERISTICS | J25: Slope | L25: 50 | M25: H:1V | N25: 1000 | O25: H:1V | Q25: H:1V | S25: H:1V | U25: H:1V | V25: -1000 | W25: H:1V | X25: -50 | Y25: H:1V | AF25: MedMndonFlat | AG25: 0 | AH25: 0 | AI25: 0 | AJ25: 0 | AK25: 0 | AL25: 100 | AM25: -50 | AS25: -100 | AT25: 0.5 | AU25: 0 | AV25: 0 | AW25: 0 | AX25: 0.5 | AY25: 50 | AZ25: 8 | BD25: -8 | BE25: -200 | BF25: 0 | BG25: 0 | BH25: 0 | BI25: 0 | BJ25: 0 | BK25: 100 | BL25: -50 | BR25: -100
A26: Total Lanes | D26: 4 | J26: Offset | K26: =-$D$31/2 -> -13.5 | M26: =K26+L23 -> -3.5 | O26: =Q26-P23 -> 0 | Q26: =S26-R23 -> 0 | S26: =U26-T23 -> 0 | U26: =W26-V23 -> 0 | W26: =Y26-X23 -> 3.5 | Y26: =$D$31/2 -> 13.5 | AF26: Vertical Fill | AG26: 0 | AH26: 0 | AI26: 0 | AJ26: 0 | AK26: 0 | AL26: 100 | AM26: -50 | AS26: -0.1 | AT26: 0.5 | AU26: 0 | AV26: 0 | AW26: 0 | AX26: 0.5 | AY26: 50 | AZ26: 2 | BD26: -2 | BE26: -200 | BF26: 0 | BG26: 0 | BH26: 0 | BI26: 0 | BJ26: 0 | BK26: 100 | BL26: -50 | BR26: -0.1
A27: Number Lanes Prim | D27: 2 | J27: Elev | K27: =$D$32/12 -> 0 | M27: =IF(OR(L25=0,L25=""),K27,(K27-L23/L25)) -> -0.2 | O27: =IF(OR(P25=0,P25=""),Q27,(Q27+P23/P25)) -> -0.2035 | Q27: =IF(OR(R25=0,R25=""),S27,(S27+R23/R25)) -> -0.2035 | S27: =IF(OR(T25=0,T25=""),U27,(U27+T23/T25)) -> -0.2035 | U27: =IF(OR(V25=0,V25=""),W27,(W27+V23/V25)) -> -0.2035 | W27: =IF(OR(X25=0,X25=""),Y27,(Y27+X23/X25)) -> -0.2 | Y27: =$D$32/12 -> 0
A28: Lane Width | C28: =IF('Project Information'!A21="SI","(m)","(ft)") -> (ft) | D28: 12
A29: Left Shoulders | C29: =IF('Project Information'!A22="SI","(m)","(ft)") -> (ft) | D29: 10 | L29: =IF('Road Segments'!E5="O","No Opposing Profile for One-Way Roads","Opposing Roadside Profile") -> Opposing Roadside Profile
A30: Right Shoulders | C30: =IF('Project Information'!A23="SI","(m)","(ft)") -> (ft) | D30: 6 | L30: Shoulder
A31: Median Width | C31: =IF('Project Information'!A24="SI","(m)","(ft)") -> (ft) | D31: 27 | J31: Slope Width | L31: =$D$30 -> 6 | M31: =IF('Project Information'!K24="SI","m","ft") -> ft | N31: 0 | O31: =IF('Project Information'!M24="SI","m","ft") -> ft | P31: 0 | Q31: =IF('Project Information'!O24="SI","m","ft") -> ft | R31: 0 | S31: =IF('Project Information'!Q24="SI","m","ft") -> ft | T31: 0 | U31: =IF('Project Information'!S24="SI","m","ft") -> ft | V31: 0 | W31: =IF('Project Information'!U24="SI","m","ft") -> ft | X31: 100 | Y31: =IF('Project Information'!W24="SI","m","ft") -> ft
A32: Curb Height | C32: =IF('Project Information'!A25="SI","(mm)","(inches)") -> (inches) | D32: 0 | J32: Slope | L32: -50 | M32: H:1V | O32: H:1V | Q32: H:1V | S32: H:1V | U32: H:1V | W32: H:1V | X32: -1000 | Y32: H:1V
J33: Offset | K33: =-($D$31/2+(($D$26-$D$27)*$D$28)) -> -37.5 | M33: =K33-L31 -> -43.5 | O33: =M33-N31 -> -43.5 | Q33: =O33-P31 -> -43.5 | S33: =Q33-R31 -> -43.5 | U33: =S33-T31 -> -43.5 | W33: =U33-V31 -> -43.5 | Y33: =W33-X31 -> -143.5
J34: Elev | K34: =$D$32/12 -> 0 | M34: =IF(OR(L32=0,L32=""),K34,(K34+L31/L32)) -> -0.12 | O34: =IF(OR(N32=0,N32=""),M34,(M34+N31/N32)) -> -0.12 | Q34: =IF(OR(P32=0,P32=""),O34,(O34+P31/P32)) -> -0.12 | S34: =IF(OR(R32=0,R32=""),Q34,(Q34+R31/R32)) -> -0.12 | U34: =IF(OR(T32=0,T32=""),S34,(S34+T31/T32)) -> -0.12 | W34: =IF(OR(V32=0,V32=""),U34,(U34+V31/V32)) -> -0.12 | Y34: =IF(OR(X32=0,X32=""),W34,(W34+X31/X32)) -> -0.22

Sheet Results
B1: DETAILED COLLISION AND COST SUMMARY | Q1: SEGMENT AND ALTERNATIVE COST SUMMARY | AC1: EQUIVALENT ANNUAL INCREMENTAL BENEFIT-COST | AU1: INCREMENTAL BENEFIT-COST AND RISK TRAFFIC SENSITIVITY ANALYSIS | BU1: ANNUAL AND LIFE-TIME RISK ANALYSIS REPORT
B2: =IF('Project Information'!$B$5="","",'Project Information'!$B$5) -> Concrete Barrier Example Problem | Q2: =IF($B2="","",$B2) -> Concrete Barrier Example Problem | AC2: =IF($B2="","",$B2) -> Concrete Barrier Example Problem | AU2: =IF($B2="","",$B2) -> Concrete Barrier Example Problem | BU2: =IF($B2="","",$B2) -> Concrete Barrier Example Problem
B3: Based on Analysis Run on 2/11/2014 7:58:02 AM | Q3: =IF($B3="","",$B3) -> Based on Analysis Run on 2/11/2014 7:58:02 AM | AC3: =IF($B3="","",$B3) -> Based on Analysis Run on 2/11/2014 7:58:02 AM | AU3: =IF($B3="","",$B3) -> Based on Analysis Run on 2/11/2014 7:58:02 AM | BU3: =IF($B3="","",$B3) -> Based on Analysis Run on 2/11/2014 7:58:02 AM | CH3: Minimum Crash Costs
B4: RSAP 3.0.1 (release 140130XL12) running in Excel Version 12.0 on Windows (32-bit) NT 5.01 | Q4: =IF($B4="","",$B4) -> RSAP 3.0.1 (release 140130XL12) running in Excel Version 12.0 on Windows (32-bit) NT 5.01 | AC4: =IF($B4="","",$B4) -> RSAP 3.0.1 (release 140130XL12) running in Excel Version 12.0 on Windows (32-bit) NT 5.01 | BM4: =IF('Project Information'!$B$5="","",'Project Information'!$B$5) -> Concrete Barrier Example Problem | BX4: =IF($B4="","",$B4) -> RSAP 3.0.1 (release 140130XL12) running in Excel Version 12.0 on Windows (32-bit) NT 5.01 | CH4: Other
B5: Analysis Time = 2176.875 sec. | W5: Rate of Return | X5: 4 | Y5: % | AE5: Decision Point Benefit-Cost Ratio: | AI5: 1 | BC5: =AM9 -> 0 | BD5: =AM10 -> 16301.03268 | BE5: =AM11 -> 27436.04478 | BF5: =AM12 -> 42083.88842 | BG5: =AM13 ->  | BX5: Crash Severity: | BY5: Other | CH5: Fatal | CI5: ='Project Information'!$F$18*0.5346 -> 3207600
W6: Design Life | X6: 25 | Y6: yrs | AE6: Alternative Choice | AW6: Risk | BC6: Annual Crash Cost | BM6: Based on Analysis Run on 2/11/2014 7:54:16 AM | BX6: Maximum Expected One- Time Crash Cost: | BY6: 429040 | CH6: A+K | CI6: ='Project Information'!$F$18*0.041538 -> 249228
C7: FEATURE | E7: EXPECTED ANNUAL CRASHES | I7: ANNUAL COST OF CRASHES | P7: ANNUAL SEGMENT SUMMARY | W7: A/P | X7: =(X5/100)*(((1+X5/100)^X6)/((1+X5/100)^X6-1)) -> 0.06401196279 | AE7: =IF(Alternatives!$C$3>0,AL9,"") -> 1 | AF7: =IF(Alternatives!$C$3>1,AL10,"") -> 2 | AG7: =IF(Alternatives!$C$3>2,AL11,"") -> 3 | AH7: =IF(Alternatives!$C$3>3,AL12,"") -> 4 | AI7: =IF(Alternatives!$C$3>4,AL13,"") ->  | AU7: INPUT | AX7: =AE7 -> 1 | AY7: 2 | AZ7: 3 | BA7: 4 | BC7: =AE7 -> 1 | BD7: 2 | BE7: 3 | BF7: 4 | BM7: RSAP 3.0.1 (release 140130XL12) running in Excel Version 12.0 on Windows (32-bit) NT 5.01 | BX7: Maximum Acceptable Risk: | BY7: 0.01 | CH7: Injury | CI7: ='Project Information'!$F$18*0.004038 -> 24228
A8: Alternative | B8: Segment | C8: Feature Number | D8: Feature Type | E8: Encroachment and Vehicle Type | F8: Total Feature Crashes | G8: Penetrated or Vaulted | H8: Rolled Over after Redirection | I8: Annual Feature Crash Cost | J8: Feature Maintenance Cost | K8: Feature Repair Cost | P8: Segment | Q8: Crashes | R8: Crash Costs | S8: Maintenance Cost | T8: Repair Costs | U8: Crash Rate (crashes/MVMT) | V8: Alternative | W8: Annualized Construction Cost | X8: Expected Annual Maintenance Cost | Y8: Expected Annual Repair Cost | Z8: Expected Annual Crash Cost | AB8: With Respect to Alternative | AC8: Alternative No. | AD8: ALTERNATIVE NAMES | AE8: =IF(AE7=1,Alternatives!$C$6,IF(AE7=2,Alternatives!$N$6,IF(AE7=3,Alternatives!$Y$6,IF(AE7=4,Alternatives!$AJ$6,(IF(AE7=5,Alternatives!$AU$6,"")))))) -> Unprotected Median | AF8: =IF(AF7=1,Alternatives!$C$6,IF(AF7=2,Alternatives!$N$6,IF(AF7=3,Alternatives!$Y$6,IF(AF7=4,Alternatives!$AJ$6,(IF(AF7=5,Alternatives!$AU$6,"")))))) -> W-Beam Median Barrier | AG8: =IF(AG7=1,Alternatives!$C$6,IF(AG7=2,Alternatives!$N$6,IF(AG7=3,Alternatives!$Y$6,IF(AG7=4,Alternatives!$AJ$6,(IF(AG7=5,Alternatives!$AU$6,"")))))) -> TL3+ NJ Shape Barrier | AH8: =IF(AH7=1,Alternatives!$C$6,IF(AH7=2,Alternatives!$N$6,IF(AH7=3,Alternatives!$Y$6,IF(AH7=4,Alternatives!$AJ$6,(IF(AH7=5,Alternatives!$AU$6,"")))))) -> TL5 NJ Shape Barrier | AI8: =IF(AI7=1,Alternatives!$C$6,IF(AI7=2,Alternatives!$N$6,IF(AI7=3,Alternatives!$Y$6,IF(AI7=4,Alternatives!$AJ$6,(IF(AI7=5,Alternatives!$AU$6,"")))))) ->  | AL8: Alternative | AM8: Constriction Cost | AN8: Maintenance Cost | AO8: Repair Cost | AP8: Alternative Crash Cost | AQ8: Total Alternative Cost | AU8: ADT | AV8: % Trucks | AW8: Expected Encroachments | AX8: Unprotected Median | AY8: W-Beam Median Barrier | AZ8: TL3+ NJ Shape Barrier | BA8: TL5 NJ Shape Barrier | BC8: Unprotected Median | BD8: W-Beam Median Barrier | BE8: TL3+ NJ Shape Barrier | BF8: TL5 NJ Shape Barrier | BH8: Best BC Alternative | BM8: Settings Summary and Trajectory Score Report | BU8: ALTERNATIVE NO. | BV8: SEGMENT NO. | BW8: EXPECTED ANNUAL SEGMENT CRASH COST | BX8: ="PROBABILITY OF A SINGLE CRASH WITH A CRASH COST GREATER THAN " & TEXT($BY$6,"$#,###") -> PROBABILITY OF A SINGLE CRASH WITH A CRASH COST GREATER THAN $429,040 | CB8: ="PROBABILITY OF AT LEAST ONE CRASH WITH A CRASH COST GREATER THAN " & TEXT($BY$6,"$#,###") & " OCCURING DURING THE LIFE OF THE PROJECT." -> PROBABILITY OF AT LEAST ONE CRASH WITH A CRASH COST GREATER THAN $429,040 OCCURING DURING THE LIFE OF THE PROJECT.
A9: 1 | D9: ALTERNATIVE 1 | J9: =IF(B9="","",VLOOKUP(D9,Severity!$A$4:$H$206,3,FALSE)) ->  | K9: =IF(B9="","",VLOOKUP(D9,Severity!$A$4:$H$206,4,FALSE)*F9) ->  | Q9: Alternative # 1 | U9: =IF(ISNUMBER(R9)=FALSE,"",Q9*10^6/VLOOKUP(P9,'Road Segments'!$A$14:$D$33,4)*('Traffic Information'!$C$8/5280)) ->  | V9: 1 | W9: =IF(V9="","",Alternatives!$C$7*$X$7) -> 0 | X9: =IF(V9="","",Alternatives!$I$7) -> 0 | Y9: 0 | Z9: 647303.06 | AC9: =IF(Alternatives!$C$3>0,AL9,"") -> 1 | AD9: =IF(AC9=1,Alternatives!$C$6,IF(AC9=2,Alternatives!$N$6,IF(AC9=3,Alternatives!$Y$6,IF(AC9=4,Alternatives!$AJ$6,(IF(AC9=5,Alternatives!$AU$6,"")))))) -> Unprotected Median | AE9: =IF(AE7="","",1) -> 1 | AF9: =IF(AF7="","",IF((AQ10-$AQ$9<>0),($AP$9-AP10)/(AQ10-$AQ$9),0)) -> 14.79434359 | AG9: =IF(AG7="","",IF((AQ11-$AQ$9)<>0,($AP$9-AP11)/(AQ11-$AQ$9),0)) -> 17.75287138 | AH9: =IF(AH7="","",IF((AQ12-$AQ$9)<>0,($AP$9-AP12)/(AQ12-$AQ$9),0)) -> 12.54246993 | AI9: =IF(AI7="","",IF((AQ13-$AQ$9)<>0,($AP$9-AP13)/(AQ13-$AQ$9),0)) ->  | AL9: 1 | AM9: 0 | AN9: 0 | AO9: 0 | AP9: 647303.06 | AQ9: =IF(AL9="","",SUM(AM9:AO9)) -> 0 | AU9: 47700 | AV9: 15 | AW9: 127.4344092 | AX9: 0.5432772038 | AY9: 0.07068700623 | AZ9: 0.008230993135 | BA9: 0.005990030906 | BC9: 439146.37 | BD9: 178835.4 | BE9: 95165.27 | BF9: 72697.21 | BH9: 4 | BM9: Encroachment Settings | BO9: Trajectory Selection Settings | BX9: PR | BY9: PL | BZ9: OR | CA9: OL | CB9: PR | CC9: PL | CD9: PR | CE9: OL | CF9: Max
A10: 1 | B10: 1 | C10: 1 | D10: EdgeOfMedian | E10: PL - PU | F10: 0 | G10: 0 | H10: 0 | I10: 0 | J10: =IF(B10="","",VLOOKUP(D10,Severity!$A$4:$H$206,3,FALSE)) -> 0 | K10: =IF(B10="","",VLOOKUP(D10,Severity!$A$4:$H$206,4,FALSE)*F10) -> 0 | P10: 1 | Q10: 3.889965888 | R10: 647303.06 | T10: 0 | U10: =IF(ISNUMBER(R10)=FALSE,"",Q10*10^6/VLOOKUP(P10,'Road Segments'!$A$14:$D$33,4)*('Traffic Information'!$C$8/5280)) -> 8216.904481 | V10: 2 | W10: =IF(V10="","",Alternatives!$N$7*$X$7) -> 18043.56405 | X10: =IF(V10="","",Alternatives!$T$7) -> 500 | Y10: 5404.89 | Z10: 318781.01 | AC10: =IF(Alternatives!$C$3>1,AL10,"") -> 2 | AD10: =IF(AC10=1,Alternatives!$C$6,IF(AC10=2,Alternatives!$N$6,IF(AC10=3,Alternatives!$Y$6,IF(AC10=4,Alternatives!$AJ$6,(IF(AC10=5,Alternatives!$AU$6,"")))))) -> W-Beam Median Barrier | AE10: =IF(AD10=1,Alternatives!$C$6,IF(AD10=2,Alternatives!$N$6,IF(AD10=3,Alternatives!$Y$6,IF(AD10=4,Alternatives!$AJ$6,(IF(AD10=5,Alternatives!$AU$6,"")))))) ->  | AF10: =IF(AF7="","",0) -> 0 | AG10: =IF(AG7="","",IF((AQ11-$AQ$10)<>0,($AP$10-AP11)/(AQ11-$AQ$10),0)) -> 29.31809217 | AH10: =IF(AH7="","",IF((AQ12-$AQ$10)<>0,($AP$10-AP12)/(AQ12-$AQ$10),0)) -> 10.08261363 | AI10: =IF(AI7="","",IF((AQ13-$AQ$10)<>0,($AP$10-AP13)/(AQ13-$AQ$10),0)) ->  | AL10: 2 | AM10: 16301.03268 | AN10: 500 | AO10: 5404.89 | AP10: 318781.01 | AQ10: =IF(AL10="","",SUM(AM10:AO10)) -> 22205.92268 | AU10: 47700 | AV10: 20 | AW10: 127.4344092 | AX10: 0.658380607 | AY10: 0.121512876 | AZ10: 0.01252632832 | BA10: 0.008723011108 | BC10: 485179.67 | BD10: 219460.7 | BE10: 109884.99 | BF10: 82959.19 | BH10: 4 | BM10: Primary Right Encroachment: | BN10: FALSE | BQ10: Default Settings were modified: | BR10: FALSE | BU10: Expected Encr. Over Life--> | BY10: 77.07510912 | CA10: 77.07510912
A11: 1 | B11: 1 | C11: 1 | D11: EdgeOfMedian | E11: PL - M | F11: 0 | G11: 0 | H11: 0 | I11: 0 | J11: =IF(B11="","",VLOOKUP(D11,Severity!$A$4:$H$206,3,FALSE)) -> 0 | K11: =IF(B11="","",VLOOKUP(D11,Severity!$A$4:$H$206,4,FALSE)*F11) -> 0 | Q11: Alternative # 2 | U11: =IF(ISNUMBER(R11)=FALSE,"",Q11*10^6/VLOOKUP(P11,'Road Segments'!$A$14:$D$33,4)*('Traffic Information'!$C$8/5280)) ->  | V11: 3 | W11: =IF(V11="","",Alternatives!$Y$7*$X$7) -> 30368.87544 | X11: =IF(V11="","",Alternatives!$AE$7) -> 0 | Y11: 450.43 | Z11: 152238.06 | AC11: =IF(Alternatives!$C$3>2,AL11,"") -> 3 | AD11: =IF(AC11=1,Alternatives!$C$6,IF(AC11=2,Alternatives!$N$6,IF(AC11=3,Alternatives!$Y$6,IF(AC11=4,Alternatives!$AJ$6,(IF(AC11=5,Alternatives!$AU$6,"")))))) -> TL3+ NJ Shape Barrier | AE11: =IF(AD11=1,Alternatives!$C$6,IF(AD11=2,Alternatives!$N$6,IF(AD11=3,Alternatives!$Y$6,IF(AD11=4,Alternatives!$AJ$6,(IF(AD11=5,Alternatives!$AU$6,"")))))) ->  | AF11: =IF(AE11=1,Alternatives!$C$6,IF(AE11=2,Alternatives!$N$6,IF(AE11=3,Alternatives!$Y$6,IF(AE11=4,Alternatives!$AJ$6,(IF(AE11=5,Alternatives!$AU$6,"")))))) ->  | AG11: =IF(AG7="","",0) -> 0 | AH11: =IF(AH7="","",IF((AQ12-$AQ$11)<>0,($AP$11-AP12)/(AQ12-$AQ$11),0)) -> 2.622939659 | AI11: =IF(AI7="","",IF((AQ13-$AQ$11)<>0,($AP$11-AP13)/(AQ13-$AQ$11),0)) ->  | AL11: 3 | AM11: 27436.04478 | AN11: 0 | AO11: 450.43 | AP11: 152238.06 | AQ11: =IF(AL11="","",SUM(AM11:AO11)) -> 27886.47478 | AU11: 47700 | AV11: 25 | AW11: 127.4344092 | AX11: 0.7842175425 | AY11: 0.1888522352 | AZ11: 0.01829416221 | BA11: 0.01233965487 | BC11: 535118.82 | BD11: 263533 | BE11: 125853.65 | BF11: 94091.89 | BH11: 4 | BM11: Primary Left Encroachment: | BN11: TRUE | BO11: Criterion | BR11: Score | BS11: Weight | BU11: 1 | BV11: 1 | BW11: 475087.62 | BY11: 0.02142861149 | CA11: 0.02142861149 | CB11: =IF(AND(BX11<>"",BX$10>1),1-BINOMDIST(1,BX$10,BX11,TRUE),"") ->  | CC11: =IF(AND(BY11<>"",BY$10>1),1-BINOMDIST(1,BY$10,BY11,TRUE),"") -> 0.4932995066 | CD11: =IF(AND(BZ11<>"",BZ$10>1),1-BINOMDIST(1,BZ$10,BZ11,TRUE),"") ->  | CE11: =IF(AND(CA11<>"",CA$10>1),1-BINOMDIST(1,CA$10,CA11,TRUE),"") -> 0.4932995066 | CF11: =IF(BU11<>"",SUM(CB11:CE11),"") -> 0.9865990131
A12: 1 | B12: 1 | C12: 1 | D12: EdgeOfMedian | E12: PL - LTT | F12: 0 | G12: 0 | H12: 0 | I12: 0 | J12: =IF(B12="","",VLOOKUP(D12,Severity!$A$4:$H$206,3,FALSE)) -> 0 | K12: =IF(B12="","",VLOOKUP(D12,Severity!$A$4:$H$206,4,FALSE)*F12) -> 0 | P12: 1 | Q12: 4.759835495 | R12: 318781.01 | T12: 5404.89 | U12: =IF(ISNUMBER(R12)=FALSE,"",Q12*10^6/VLOOKUP(P12,'Road Segments'!$A$14:$D$33,4)*('Traffic Information'!$C$8/5280)) -> 10054.35902 | V12: 4 | W12: =IF(V12="","",Alternatives!$AJ$7*$X$7) -> 46582.52951 | X12: =IF(V12="","",Alternatives!$AP$7) -> 0 | Y12: 450.43 | Z12: 113817.65 | AC12: =IF(Alternatives!$C$3>3,AL12,"") -> 4 | AD12: =IF(AC12=1,Alternatives!$C$6,IF(AC12=2,Alternatives!$N$6,IF(AC12=3,Alternatives!$Y$6,IF(AC12=4,Alternatives!$AJ$6,(IF(AC12=5,Alternatives!$AU$6,"")))))) -> TL5 NJ Shape Barrier | AE12: =IF(AD12=1,Alternatives!$C$6,IF(AD12=2,Alternatives!$N$6,IF(AD12=3,Alternatives!$Y$6,IF(AD12=4,Alternatives!$AJ$6,(IF(AD12=5,Alternatives!$AU$6,"")))))) ->  | AF12: =IF(AE12=1,Alternatives!$C$6,IF(AE12=2,Alternatives!$N$6,IF(AE12=3,Alternatives!$Y$6,IF(AE12=4,Alternatives!$AJ$6,(IF(AE12=5,Alternatives!$AU$6,"")))))) ->  | AG12: =IF(AF12=1,Alternatives!$C$6,IF(AF12=2,Alternatives!$N$6,IF(AF12=3,Alternatives!$Y$6,IF(AF12=4,Alternatives!$AJ$6,(IF(AF12=5,Alternatives!$AU$6,"")))))) ->  | AH12: =IF(AH7="","",0) -> 0 | AI12: =IF(AI7="","",IF((AQ13-$AQ$12)<>0,($AP$12-AP13)/(AQ13-$AQ$12),0)) ->  | AL12: 4 | AM12: 42083.88842 | AN12: 0 | AO12: 450.43 | AP12: 113817.65 | AQ12: =IF(AL12="","",SUM(AM12:AO12)) -> 42534.31842 | AU12: 52700 | AV12: 15 | AW12: 140.7923137 | AX12: 0.627068058 | AY12: 0.0855677008 | AZ12: 0.01010781708 | BA12: 0.007363514209 | BC12: 485178.49 | BD12: 197581.24 | BE12: 105140.66 | BF12: 80317.47 | BH12: 4 | BM12: Opossing Right Encroachment: | BN12: FALSE | BQ12: Highway Cross-Section | BR12: 0.7 | BS12: 3 | BU12: 2 | BV12: 1 | BW12: 163202.73 | BY12: 0.008187849456 | CA12: 0.008187849456 | CB12: =IF(AND(BX12<>"",BX$10>1),1-BINOMDIST(1,BX$10,BX12,TRUE),"") ->  | CC12: 0.1315173393 | CE12: 0.1315173393 | CF12: =IF(BU12<>"",SUM(CB12:CE12),"") -> 0.2630346785
A13: 1 | B13: 1 | C13: 1 | D13: EdgeOfMedian | E13: PL - LSUT | F13: 0 | G13: 0 | H13: 0 | I13: 0 | J13: =IF(B13="","",VLOOKUP(D13,Severity!$A$4:$H$206,3,FALSE)) -> 0 | K13: =IF(B13="","",VLOOKUP(D13,Severity!$A$4:$H$206,4,FALSE)*F13) -> 0 | Q13: Alternative # 3 | U13: =IF(ISNUMBER(R13)=FALSE,"",Q13*10^6/VLOOKUP(P13,'Road Segments'!$A$14:$D$33,4)*('Traffic Information'!$C$8/5280)) ->  | W13: =IF(V13="","",Alternatives!$AU$7*$X$7) ->  | X13: =IF(V13="","",Alternatives!$BA$7) ->  | AC13: =IF(Alternatives!$C$3>4,AL13,"") ->  | AD13: =IF(AC13=1,Alternatives!$C$6,IF(AC13=2,Alternatives!$N$6,IF(AC13=3,Alternatives!$Y$6,IF(AC13=4,Alternatives!$AJ$6,(IF(AC13=5,Alternatives!$AU$6,"")))))) ->  | AE13: =IF(AD13=1,Alternatives!$C$6,IF(AD13=2,Alternatives!$N$6,IF(AD13=3,Alternatives!$Y$6,IF(AD13=4,Alternatives!$AJ$6,(IF(AD13=5,Alternatives!$AU$6,"")))))) ->  | AF13: =IF(AE13=1,Alternatives!$C$6,IF(AE13=2,Alternatives!$N$6,IF(AE13=3,Alternatives!$Y$6,IF(AE13=4,Alternatives!$AJ$6,(IF(AE13=5,Alternatives!$AU$6,"")))))) ->  | AG13: =IF(AF13=1,Alternatives!$C$6,IF(AF13=2,Alternatives!$N$6,IF(AF13=3,Alternatives!$Y$6,IF(AF13=4,Alternatives!$AJ$6,(IF(AF13=5,Alternatives!$AU$6,"")))))) ->  | AH13: =IF(AG13=1,Alternatives!$C$6,IF(AG13=2,Alternatives!$N$6,IF(AG13=3,Alternatives!$Y$6,IF(AG13=4,Alternatives!$AJ$6,(IF(AG13=5,Alternatives!$AU$6,"")))))) ->  | AI13: =IF(AI7="","",0) ->  | AQ13: =IF(AL13="","",SUM(AM13:AO13)) ->  | AU13: 52700 | AV13: 20 | AW13: 140.7923137 | AX13: 0.7529231148 | AY13: 0.1460239744 | AZ13: 0.01535696549 | BA13: 0.01070978579 | BC13: 536037.08 | BD13: 242464.97 | BE13: 121403.33 | BF13: 91655.13 | BH13: 4 | BM13: Opposing Left Encroachment: | BN13: TRUE | BQ13: Horizontal Curve | BR13: 0.7 | BS13: 2 | BU13: 3 | BV13: 1 | BW13: 99446.86 | BY13: 0.00226567889 | CA13: 0.00226567889 | CC13: 0.01342092629 | CE13: 0.01342092629 | CF13: 0.02684185257
A14: 1 | B14: 1 | C14: 1 | D14: EdgeOfMedian | E14: PL - HTT | F14: 0 | G14: 0 | H14: 0 | I14: 0 | J14: =IF(B14="","",VLOOKUP(D14,Severity!$A$4:$H$206,3,FALSE)) -> 0 | K14: =IF(B14="","",VLOOKUP(D14,Severity!$A$4:$H$206,4,FALSE)*F14) -> 0 | P14: 1 | Q14: 4.623214551 | R14: 152238.06 | T14: 450.43 | U14: =IF(ISNUMBER(R14)=FALSE,"",Q14*10^6/VLOOKUP(P14,'Road Segments'!$A$14:$D$33,4)*('Traffic Information'!$C$8/5280)) -> 9765.770049 | AU14: 52700 | AV14: 25 | AW14: 140.7923137 | AX14: 0.8879729171 | AY14: 0.2251405273 | AZ14: 0.02238660595 | BA14: 0.01512910915 | BC14: 591210.94 | BD14: 291157.01 | BE14: 139045.86 | BF14: 103954.77 | BH14: 4 | BQ14: Highway Grade | BR14: 0.7 | BS14: 1 | BU14: 4 | BV14: 1 | BW14: 78525.23 | BY14: 0.001845070186 | CA14: 0.001845070186 | CC14: 0.009087409497 | CE14: 0.009087409497 | CF14: 0.01817481899
A15: 1 | B15: 1 | C15: 1 | D15: EdgeOfMedian | E15: PL - HSUT | F15: 0 | G15: 0 | H15: 0 | I15: 0 | J15: =IF(B15="","",VLOOKUP(D15,Severity!$A$4:$H$206,3,FALSE)) -> 0 | K15: =IF(B15="","",VLOOKUP(D15,Severity!$A$4:$H$206,4,FALSE)*F15) -> 0 | Q15: Alternative # 4 | U15: =IF(ISNUMBER(R15)=FALSE,"",Q15*10^6/VLOOKUP(P15,'Road Segments'!$A$14:$D$33,4)*('Traffic Information'!$C$8/5280)) ->  | AD15: Best Benefit-Cost Choice is: | AE15: TL5 NJ Shape Barrier | AL15: 4 | AM15: 2.622939659 | AU15: 57700 | AV15: 15 | AW15: 154.1502182 | AX15: 0.709747112 | AY15: 0.1014961225 | AZ15: 0.01216206976 | BA15: 0.008869219921 | BC15: 531210.6 | BD15: 216327.09 | BE15: 115116.06 | BF15: 87937.72 | BH15: 4 | BM15: Minimum No. of Trajectories | BQ15: Speed Limit | BR15: 0.7 | BS15: 1
A16: 1 | B16: 1 | C16: 1 | D16: EdgeOfMedian | E16: PL - C | F16: 0 | G16: 0 | H16: 0 | I16: 0 | J16: =IF(B16="","",VLOOKUP(D16,Severity!$A$4:$H$206,3,FALSE)) -> 0 | K16: =IF(B16="","",VLOOKUP(D16,Severity!$A$4:$H$206,4,FALSE)*F16) -> 0 | P16: 1 | Q16: 4.504344296 | R16: 113817.65 | T16: 450.43 | U16: =IF(ISNUMBER(R16)=FALSE,"",Q16*10^6/VLOOKUP(P16,'Road Segments'!$A$14:$D$33,4)*('Traffic Information'!$C$8/5280)) -> 9514.676451 | AM16: =ROUND(SUM(R9:R5000)/10,0)*10 -> 1232140 | AU16: 57700 | AV16: 20 | AW16: 154.1502182 | AX16: 0.8445833712 | AY16: 0.1719565278 | AZ16: 0.0184473287 | BA16: 0.01288369079 | BC16: 586894.49 | BD16: 265469.24 | BE16: 132921.67 | BF16: 100351.06 | BH16: 4 | BM16: per encroachment location: | BN16: 10
A17: 1 | B17: 1 | C17: 1 | D17: EdgeOfMedian | E17: PL - ATT | F17: 0 | G17: 0 | H17: 0 | I17: 0 | J17: =IF(B17="","",VLOOKUP(D17,Severity!$A$4:$H$206,3,FALSE)) -> 0 | K17: =IF(B17="","",VLOOKUP(D17,Severity!$A$4:$H$206,4,FALSE)*F17) -> 0 | U17: =IF(ISNUMBER(R17)=FALSE,"",Q17*10^6/VLOOKUP(P17,'Road Segments'!$A$14:$D$33,4)*('Traffic Information'!$C$8/5280)) ->  | AU17: 57700 | AV17: 25 | AW17: 154.1502182 | AX17: 0.9865990131 | AY17: 0.2630346785 | AZ17: 0.02684185257 | BA17: 0.01817481899 | BC17: 647303.06 | BD17: 318781.01 | BE17: 152238.06 | BF17: 113817.65 | BH17: 4 | BM17: Maximum No. of Trajectories
A18: 1 | B18: 1 | C18: 1 | D18: EdgeOfMedian | E18: PL - ASUT | F18: 0 | G18: 0 | H18: 0 | I18: 0 | J18: =IF(B18="","",VLOOKUP(D18,Severity!$A$4:$H$206,3,FALSE)) -> 0 | K18: =IF(B18="","",VLOOKUP(D18,Severity!$A$4:$H$206,4,FALSE)*F18) -> 0 | U18: =IF(ISNUMBER(R18)=FALSE,"",Q18*10^6/VLOOKUP(P18,'Road Segments'!$A$14:$D$33,4)*('Traffic Information'!$C$8/5280)) ->  | BM18: per encroachment location: | BN18: 200
A19: 1 | B19: 1 | C19: 1 | D19: EdgeOfMedian | E19: OL - PU | F19: 0.4470749595 | G19: 0.4470749595 | H19: 0 | I19: 44039.33938 | J19: =IF(B19="","",VLOOKUP(D19,Severity!$A$4:$H$206,3,FALSE)) -> 0 | K19: =IF(B19="","",VLOOKUP(D19,Severity!$A$4:$H$206,4,FALSE)*F19) -> 0 | U19: =IF(ISNUMBER(R19)=FALSE,"",Q19*10^6/VLOOKUP(P19,'Road Segments'!$A$14:$D$33,4)*('Traffic Information'!$C$8/5280)) ->  | BM19: Distance between encr. Locations: | BN19: 500
A20: 1 | B20: 1 | C20: 1 | D20: EdgeOfMedian | E20: OL - M | F20: 0 | G20: 0 | H20: 0 | I20: 0 | J20: =IF(B20="","",VLOOKUP(D20,Severity!$A$4:$H$206,3,FALSE)) -> 0 | K20: =IF(B20="","",VLOOKUP(D20,Severity!$A$4:$H$206,4,FALSE)*F20) -> 0 | U20: =IF(ISNUMBER(R20)=FALSE,"",Q20*10^6/VLOOKUP(P20,'Road Segments'!$A$14:$D$33,4)*('Traffic Information'!$C$8/5280)) ->  | BM20: Trajectory Score for each Encroachment Grouping
A21: 1 | B21: 1 | C21: 1 | D21: EdgeOfMedian | E21: OL - LTT | F21: 0 | G21: 0 | H21: 0 | I21: 0 | J21: =IF(B21="","",VLOOKUP(D21,Severity!$A$4:$H$206,3,FALSE)) -> 0 | K21: =IF(B21="","",VLOOKUP(D21,Severity!$A$4:$H$206,4,FALSE)*F21) -> 0 | U21: =IF(ISNUMBER(R21)=FALSE,"",Q21*10^6/VLOOKUP(P21,'Road Segments'!$A$14:$D$33,4)*('Traffic Information'!$C$8/5280)) ->  | BN21: Score>0.9 | BO21: → | BP21: Considered a good score.
A22: 1 | B22: 1 | C22: 1 | D22: EdgeOfMedian | E22: OL - LSUT | F22: 0 | G22: 0 | H22: 0 | I22: 0 | J22: =IF(B22="","",VLOOKUP(D22,Severity!$A$4:$H$206,3,FALSE)) -> 0 | K22: =IF(B22="","",VLOOKUP(D22,Severity!$A$4:$H$206,4,FALSE)*F22) -> 0 | U22: =IF(ISNUMBER(R22)=FALSE,"",Q22*10^6/VLOOKUP(P22,'Road Segments'!$A$14:$D$33,4)*('Traffic Information'!$C$8/5280)) ->  | BN22: 0.9<Score<0.8 | BO22: → | BP22: Considered an acceptable score.
A23: 1 | B23: 1 | C23: 1 | D23: EdgeOfMedian | E23: OL - HTT | F23: 0 | G23: 0 | H23: 0 | I23: 0 | J23: =IF(B23="","",VLOOKUP(D23,Severity!$A$4:$H$206,3,FALSE)) -> 0 | K23: =IF(B23="","",VLOOKUP(D23,Severity!$A$4:$H$206,4,FALSE)*F23) -> 0 | U23: =IF(ISNUMBER(R23)=FALSE,"",Q23*10^6/VLOOKUP(P23,'Road Segments'!$A$14:$D$33,4)*('Traffic Information'!$C$8/5280)) ->  | BN23: 0.8<Score<0.7 | BO23: → | BP23: Considered a poor score.
A24: 1 | B24: 1 | C24: 1 | D24: EdgeOfMedian | E24: OL - HSUT | F24: 0 | G24: 0 | H24: 0 | I24: 0 | J24: =IF(B24="","",VLOOKUP(D24,Severity!$A$4:$H$206,3,FALSE)) -> 0 | K24: =IF(B24="","",VLOOKUP(D24,Severity!$A$4:$H$206,4,FALSE)*F24) -> 0 | U24: =IF(ISNUMBER(R24)=FALSE,"",Q24*10^6/VLOOKUP(P24,'Road Segments'!$A$14:$D$33,4)*('Traffic Information'!$C$8/5280)) ->  | BN24: 0.7>Score | BO24: → | BP24: Considered an unacceptable score.
A25: 1 | B25: 1 | C25: 1 | D25: EdgeOfMedian | E25: OL - C | F25: 1.341224879 | G25: 1.341224879 | H25: 0 | I25: 132118.0181 | J25: =IF(B25="","",VLOOKUP(D25,Severity!$A$4:$H$206,3,FALSE)) -> 0 | K25: =IF(B25="","",VLOOKUP(D25,Severity!$A$4:$H$206,4,FALSE)*F25) -> 0 | U25: =IF(ISNUMBER(R25)=FALSE,"",Q25*10^6/VLOOKUP(P25,'Road Segments'!$A$14:$D$33,4)*('Traffic Information'!$C$8/5280)) ->  | BM25: Seg. | BN25: Alt. | BO25: Vehicle Type | BP25: Encr. Type | BQ25: No. of Trajectories | BR25: Min. Traj. Score | BS25: Avg. Traj. Score
A26: 1 | B26: 1 | C26: 1 | D26: EdgeOfMedian | E26: OL - ATT | F26: 0.0898878947 | G26: 0.0898878947 | H26: 0 | I26: 94880.92913 | J26: =IF(B26="","",VLOOKUP(D26,Severity!$A$4:$H$206,3,FALSE)) -> 0 | K26: =IF(B26="","",VLOOKUP(D26,Severity!$A$4:$H$206,4,FALSE)*F26) -> 0 | U26: =IF(ISNUMBER(R26)=FALSE,"",Q26*10^6/VLOOKUP(P26,'Road Segments'!$A$14:$D$33,4)*('Traffic Information'!$C$8/5280)) -> 
A27: 1 | B27: 1 | C27: 1 | D27: EdgeOfMedian | E27: OL - ASUT | F27: 0.06679521138 | G27: 0.06679521138 | H27: 0 | I27: 52613.2435 | J27: =IF(B27="","",VLOOKUP(D27,Severity!$A$4:$H$206,3,FALSE)) -> 0 | K27: =IF(B27="","",VLOOKUP(D27,Severity!$A$4:$H$206,4,FALSE)*F27) -> 0 | U27: =IF(ISNUMBER(R27)=FALSE,"",Q27*10^6/VLOOKUP(P27,'Road Segments'!$A$14:$D$33,4)*('Traffic Information'!$C$8/5280)) ->  | AL27: =IF(ISNUMBER($Q27)=TRUE,R27,"") ->  | AM27: =IF(ISNUMBER($Q27)=TRUE,(LN('Project Information'!$F$27/10)+AN27^2),"") ->  | AN27: =IF(ISNUMBER($Q27)=TRUE,SQRT(((LN(AL27)-LN('Project Information'!$F$27/10))/1.5)),"") ->  | BM27: 1 | BN27: 1 | BO27: M | BP27: PL | BQ27: 107 | BR27: 0.9302459551 | BS27: 0.9545141696
A28: 1 | B28: 1 | C28: 2 | D28: EdgeOfMedian | E28: PL - PU | F28: 0.4470749595 | G28: 0.4470749595 | H28: 0 | I28: 44039.33938 | J28: =IF(B28="","",VLOOKUP(D28,Severity!$A$4:$H$206,3,FALSE)) -> 0 | K28: =IF(B28="","",VLOOKUP(D28,Severity!$A$4:$H$206,4,FALSE)*F28) -> 0 | U28: =IF(ISNUMBER(R28)=FALSE,"",Q28*10^6/VLOOKUP(P28,'Road Segments'!$A$14:$D$33,4)*('Traffic Information'!$C$8/5280)) ->  | AL28: =IF(ISNUMBER($Q28)=TRUE,R28,"") ->  | AM28: =IF(ISNUMBER($Q28)=TRUE,(LN('Project Information'!$F$27/10)+AN28^2),"") ->  | AN28: =IF(ISNUMBER($Q28)=TRUE,SQRT(((LN(AL28)-LN('Project Information'!$F$27/10))/1.5)),"") ->  | BM28: 1 | BN28: 1 | BO28: C | BP28: PL | BQ28: 105 | BR28: 0.9302459551 | BS28: 0.9542237056
A29: 1 | B29: 1 | C29: 2 | D29: EdgeOfMedian | E29: PL - M | F29: 0 | G29: 0 | H29: 0 | I29: 0 | J29: =IF(B29="","",VLOOKUP(D29,Severity!$A$4:$H$206,3,FALSE)) -> 0 | K29: =IF(B29="","",VLOOKUP(D29,Severity!$A$4:$H$206,4,FALSE)*F29) -> 0 | U29: =IF(ISNUMBER(R29)=FALSE,"",Q29*10^6/VLOOKUP(P29,'Road Segments'!$A$14:$D$33,4)*('Traffic Information'!$C$8/5280)) ->  | AL29: =IF(ISNUMBER($Q29)=TRUE,R29,"") ->  | AM29: =IF(ISNUMBER($Q29)=TRUE,(LN('Project Information'!$F$27/10)+AN29^2),"") ->  | AN29: =IF(ISNUMBER($Q29)=TRUE,SQRT(((LN(AL29)-LN('Project Information'!$F$27/10))/1.5)),"") ->  | BM29: 1 | BN29: 1 | BO29: PU | BP29: PL | BQ29: 105 | BR29: 0.9302459551 | BS29: 0.9542237056
A30: 1 | B30: 1 | C30: 2 | D30: EdgeOfMedian | E30: PL - LTT | F30: 0 | G30: 0 | H30: 0 | I30: 0 | J30: =IF(B30="","",VLOOKUP(D30,Severity!$A$4:$H$206,3,FALSE)) -> 0 | K30: =IF(B30="","",VLOOKUP(D30,Severity!$A$4:$H$206,4,FALSE)*F30) -> 0 | U30: =IF(ISNUMBER(R30)=FALSE,"",Q30*10^6/VLOOKUP(P30,'Road Segments'!$A$14:$D$33,4)*('Traffic Information'!$C$8/5280)) ->  | AL30: =IF(ISNUMBER($Q30)=TRUE,R30,"") ->  | AM30: =IF(ISNUMBER($Q30)=TRUE,(LN('Project Information'!$F$27/10)+AN30^2),"") ->  | AN30: =IF(ISNUMBER($Q30)=TRUE,SQRT(((LN(AL30)-LN('Project Information'!$F$27/10))/1.5)),"") ->  | BM30: 1 | BN30: 1 | BO30: LTT | BP30: PL | BQ30: 27 | BR30: 0.9306440013 | BS30: 0.9552223695
A31: 1 | B31: 1 | C31: 2 | D31: EdgeOfMedian | E31: PL - LSUT | F31: 0 | G31: 0 | H31: 0 | I31: 0 | J31: =IF(B31="","",VLOOKUP(D31,Severity!$A$4:$H$206,3,FALSE)) -> 0 | K31: =IF(B31="","",VLOOKUP(D31,Severity!$A$4:$H$206,4,FALSE)*F31) -> 0 | U31: =IF(ISNUMBER(R31)=FALSE,"",Q31*10^6/VLOOKUP(P31,'Road Segments'!$A$14:$D$33,4)*('Traffic Information'!$C$8/5280)) ->  | BM31: 1 | BN31: 1 | BO31: ATT | BP31: PL | BQ31: 27 | BR31: 0.9306440013 | BS31: 0.9552223695
A32: 1 | B32: 1 | C32: 2 | D32: EdgeOfMedian | E32: PL - HTT | F32: 0 | G32: 0 | H32: 0 | I32: 0 | J32: =IF(B32="","",VLOOKUP(D32,Severity!$A$4:$H$206,3,FALSE)) -> 0 | K32: =IF(B32="","",VLOOKUP(D32,Severity!$A$4:$H$206,4,FALSE)*F32) -> 0 | U32: =IF(ISNUMBER(R32)=FALSE,"",Q32*10^6/VLOOKUP(P32,'Road Segments'!$A$14:$D$33,4)*('Traffic Information'!$C$8/5280)) ->  | BM32: 1 | BN32: 1 | BO32: HTT | BP32: PL | BQ32: 27 | BR32: 0.9306440013 | BS32: 0.9552223695
A33: 1 | B33: 1 | C33: 2 | D33: EdgeOfMedian | E33: PL - HSUT | F33: 0 | G33: 0 | H33: 0 | I33: 0 | J33: =IF(B33="","",VLOOKUP(D33,Severity!$A$4:$H$206,3,FALSE)) -> 0 | K33: =IF(B33="","",VLOOKUP(D33,Severity!$A$4:$H$206,4,FALSE)*F33) -> 0 | U33: =IF(ISNUMBER(R33)=FALSE,"",Q33*10^6/VLOOKUP(P33,'Road Segments'!$A$14:$D$33,4)*('Traffic Information'!$C$8/5280)) ->  | BM33: 1 | BN33: 1 | BO33: LSUT | BP33: PL | BQ33: 35 | BR33: 0.9306440013 | BS33: 0.9547975326
A34: 1 | B34: 1 | C34: 2 | D34: EdgeOfMedian | E34: PL - C | F34: 1.341224879 | G34: 1.341224879 | H34: 0 | I34: 132118.0181 | J34: =IF(B34="","",VLOOKUP(D34,Severity!$A$4:$H$206,3,FALSE)) -> 0 | K34: =IF(B34="","",VLOOKUP(D34,Severity!$A$4:$H$206,4,FALSE)*F34) -> 0 | U34: =IF(ISNUMBER(R34)=FALSE,"",Q34*10^6/VLOOKUP(P34,'Road Segments'!$A$14:$D$33,4)*('Traffic Information'!$C$8/5280)) ->  | BM34: 1 | BN34: 1 | BO34: ASUT | BP34: PL | BQ34: 35 | BR34: 0.9306440013 | BS34: 0.9547975326
A35: 1 | B35: 1 | C35: 2 | D35: EdgeOfMedian | E35: PL - ATT | F35: 0.0898878947 | G35: 0.0898878947 | H35: 0 | I35: 94880.92913 | J35: =IF(B35="","",VLOOKUP(D35,Severity!$A$4:$H$206,3,FALSE)) -> 0 | K35: =IF(B35="","",VLOOKUP(D35,Severity!$A$4:$H$206,4,FALSE)*F35) -> 0 | U35: =IF(ISNUMBER(R35)=FALSE,"",Q35*10^6/VLOOKUP(P35,'Road Segments'!$A$14:$D$33,4)*('Traffic Information'!$C$8/5280)) ->  | BM35: 1 | BN35: 1 | BO35: HSUT | BP35: PL | BQ35: 35 | BR35: 0.9306440013 | BS35: 0.9547975326
A36: 1 | B36: 1 | C36: 2 | D36: EdgeOfMedian | E36: PL - ASUT | F36: 0.06679521138 | G36: 0.06679521138 | H36: 0 | I36: 52613.2435 | J36: =IF(B36="","",VLOOKUP(D36,Severity!$A$4:$H$206,3,FALSE)) -> 0 | K36: =IF(B36="","",VLOOKUP(D36,Severity!$A$4:$H$206,4,FALSE)*F36) -> 0 | U36: =IF(ISNUMBER(R36)=FALSE,"",Q36*10^6/VLOOKUP(P36,'Road Segments'!$A$14:$D$33,4)*('Traffic Information'!$C$8/5280)) ->  | BM36: 1 | BN36: 2 | BO36: M | BP36: PL | BQ36: 107 | BR36: 0.9302459551 | BS36: 0.9545141696
A37: 1 | B37: 1 | C37: 2 | D37: EdgeOfMedian | E37: OL - PU | F37: 0 | G37: 0 | H37: 0 | I37: 0 | J37: =IF(B37="","",VLOOKUP(D37,Severity!$A$4:$H$206,3,FALSE)) -> 0 | K37: =IF(B37="","",VLOOKUP(D37,Severity!$A$4:$H$206,4,FALSE)*F37) -> 0 | U37: =IF(ISNUMBER(R37)=FALSE,"",Q37*10^6/VLOOKUP(P37,'Road Segments'!$A$14:$D$33,4)*('Traffic Information'!$C$8/5280)) ->  | BM37: 1 | BN37: 2 | BO37: C | BP37: PL | BQ37: 105 | BR37: 0.9302459551 | BS37: 0.9542237056
A38: 1 | B38: 1 | C38: 2 | D38: EdgeOfMedian | E38: OL - M | F38: 0 | G38: 0 | H38: 0 | I38: 0 | J38: =IF(B38="","",VLOOKUP(D38,Severity!$A$4:$H$206,3,FALSE)) -> 0 | K38: =IF(B38="","",VLOOKUP(D38,Severity!$A$4:$H$206,4,FALSE)*F38) -> 0 | U38: =IF(ISNUMBER(R38)=FALSE,"",Q38*10^6/VLOOKUP(P38,'Road Segments'!$A$14:$D$33,4)*('Traffic Information'!$C$8/5280)) ->  | BM38: 1 | BN38: 2 | BO38: PU | BP38: PL | BQ38: 105 | BR38: 0.9302459551 | BS38: 0.9542237056
A39: 1 | B39: 1 | C39: 2 | D39: EdgeOfMedian | E39: OL - LTT | F39: 0 | G39: 0 | H39: 0 | I39: 0 | J39: =IF(B39="","",VLOOKUP(D39,Severity!$A$4:$H$206,3,FALSE)) -> 0 | K39: =IF(B39="","",VLOOKUP(D39,Severity!$A$4:$H$206,4,FALSE)*F39) -> 0 | U39: =IF(ISNUMBER(R39)=FALSE,"",Q39*10^6/VLOOKUP(P39,'Road Segments'!$A$14:$D$33,4)*('Traffic Information'!$C$8/5280)) ->  | BM39: 1 | BN39: 2 | BO39: LTT | BP39: PL | BQ39: 27 | BR39: 0.9306440013 | BS39: 0.9552223695
A40: 1 | B40: 1 | C40: 2 | D40: EdgeOfMedian | E40: OL - LSUT | F40: 0 | G40: 0 | H40: 0 | I40: 0 | J40: =IF(B40="","",VLOOKUP(D40,Severity!$A$4:$H$206,3,FALSE)) -> 0 | K40: =IF(B40="","",VLOOKUP(D40,Severity!$A$4:$H$206,4,FALSE)*F40) -> 0 | U40: =IF(ISNUMBER(R40)=FALSE,"",Q40*10^6/VLOOKUP(P40,'Road Segments'!$A$14:$D$33,4)*('Traffic Information'!$C$8/5280)) ->  | BM40: 1 | BN40: 2 | BO40: ATT | BP40: PL | BQ40: 27 | BR40: 0.9306440013 | BS40: 0.9552223695
A41: 1 | B41: 1 | C41: 2 | D41: EdgeOfMedian | E41: OL - HTT | F41: 0 | G41: 0 | H41: 0 | I41: 0 | J41: =IF(B41="","",VLOOKUP(D41,Severity!$A$4:$H$206,3,FALSE)) -> 0 | K41: =IF(B41="","",VLOOKUP(D41,Severity!$A$4:$H$206,4,FALSE)*F41) -> 0 | U41: =IF(ISNUMBER(R41)=FALSE,"",Q41*10^6/VLOOKUP(P41,'Road Segments'!$A$14:$D$33,4)*('Traffic Information'!$C$8/5280)) ->  | BM41: 1 | BN41: 2 | BO41: HTT | BP41: PL | BQ41: 27 | BR41: 0.9306440013 | BS41: 0.9552223695
A42: 1 | B42: 1 | C42: 2 | D42: EdgeOfMedian | E42: OL - HSUT | F42: 0 | G42: 0 | H42: 0 | I42: 0 | J42: =IF(B42="","",VLOOKUP(D42,Severity!$A$4:$H$206,3,FALSE)) -> 0 | K42: =IF(B42="","",VLOOKUP(D42,Severity!$A$4:$H$206,4,FALSE)*F42) -> 0 | U42: =IF(ISNUMBER(R42)=FALSE,"",Q42*10^6/VLOOKUP(P42,'Road Segments'!$A$14:$D$33,4)*('Traffic Information'!$C$8/5280)) ->  | BM42: 1 | BN42: 2 | BO42: LSUT | BP42: PL | BQ42: 35 | BR42: 0.9306440013 | BS42: 0.9547975326
A43: 1 | B43: 1 | C43: 2 | D43: EdgeOfMedian | E43: OL - C | F43: 0 | G43: 0 | H43: 0 | I43: 0 | J43: =IF(B43="","",VLOOKUP(D43,Severity!$A$4:$H$206,3,FALSE)) -> 0 | K43: =IF(B43="","",VLOOKUP(D43,Severity!$A$4:$H$206,4,FALSE)*F43) -> 0 | U43: =IF(ISNUMBER(R43)=FALSE,"",Q43*10^6/VLOOKUP(P43,'Road Segments'!$A$14:$D$33,4)*('Traffic Information'!$C$8/5280)) ->  | BM43: 1 | BN43: 2 | BO43: ASUT | BP43: PL | BQ43: 35 | BR43: 0.9306440013 | BS43: 0.9547975326
A44: 1 | B44: 1 | C44: 2 | D44: EdgeOfMedian | E44: OL - ATT | F44: 0 | G44: 0 | H44: 0 | I44: 0 | J44: =IF(B44="","",VLOOKUP(D44,Severity!$A$4:$H$206,3,FALSE)) -> 0 | K44: =IF(B44="","",VLOOKUP(D44,Severity!$A$4:$H$206,4,FALSE)*F44) -> 0 | U44: =IF(ISNUMBER(R44)=FALSE,"",Q44*10^6/VLOOKUP(P44,'Road Segments'!$A$14:$D$33,4)*('Traffic Information'!$C$8/5280)) ->  | BM44: 1 | BN44: 2 | BO44: HSUT | BP44: PL | BQ44: 35 | BR44: 0.9306440013 | BS44: 0.9547975326
A45: 1 | B45: 1 | C45: 2 | D45: EdgeOfMedian | E45: OL - ASUT | F45: 0 | G45: 0 | H45: 0 | I45: 0 | J45: =IF(B45="","",VLOOKUP(D45,Severity!$A$4:$H$206,3,FALSE)) -> 0 | K45: =IF(B45="","",VLOOKUP(D45,Severity!$A$4:$H$206,4,FALSE)*F45) -> 0 | U45: =IF(ISNUMBER(R45)=FALSE,"",Q45*10^6/VLOOKUP(P45,'Road Segments'!$A$14:$D$33,4)*('Traffic Information'!$C$8/5280)) ->  | BM45: 1 | BN45: 3 | BO45: M | BP45: PL | BQ45: 107 | BR45: 0.9302459551 | BS45: 0.9545141696
A46: 2 | D46: ALTERNATIVE 2 | J46: =IF(B46="","",VLOOKUP(D46,Severity!$A$4:$H$206,3,FALSE)) ->  | K46: =IF(B46="","",VLOOKUP(D46,Severity!$A$4:$H$206,4,FALSE)*F46) ->  | U46: =IF(ISNUMBER(R46)=FALSE,"",Q46*10^6/VLOOKUP(P46,'Road Segments'!$A$14:$D$33,4)*('Traffic Information'!$C$8/5280)) ->  | BM46: 1 | BN46: 3 | BO46: C | BP46: PL | BQ46: 105 | BR46: 0.9302459551 | BS46: 0.9542237056
A47: 2 | B47: 1 | C47: 1 | D47: EdgeOfMedian | E47: PL - PU | F47: 0 | G47: 0 | H47: 0 | I47: 0 | J47: =IF(B47="","",VLOOKUP(D47,Severity!$A$4:$H$206,3,FALSE)) -> 0 | K47: =IF(B47="","",VLOOKUP(D47,Severity!$A$4:$H$206,4,FALSE)*F47) -> 0 | U47: =IF(ISNUMBER(R47)=FALSE,"",Q47*10^6/VLOOKUP(P47,'Road Segments'!$A$14:$D$33,4)*('Traffic Information'!$C$8/5280)) ->  | BM47: 1 | BN47: 3 | BO47: PU | BP47: PL | BQ47: 105 | BR47: 0.9302459551 | BS47: 0.9542237056
A48: 2 | B48: 1 | C48: 1 | D48: EdgeOfMedian | E48: PL - M | F48: 0 | G48: 0 | H48: 0 | I48: 0 | J48: =IF(B48="","",VLOOKUP(D48,Severity!$A$4:$H$206,3,FALSE)) -> 0 | K48: =IF(B48="","",VLOOKUP(D48,Severity!$A$4:$H$206,4,FALSE)*F48) -> 0 | U48: =IF(ISNUMBER(R48)=FALSE,"",Q48*10^6/VLOOKUP(P48,'Road Segments'!$A$14:$D$33,4)*('Traffic Information'!$C$8/5280)) ->  | BM48: 1 | BN48: 3 | BO48: LTT | BP48: PL | BQ48: 27 | BR48: 0.9306440013 | BS48: 0.9552223695
A49: 2 | B49: 1 | C49: 1 | D49: EdgeOfMedian | E49: PL - LTT | F49: 0 | G49: 0 | H49: 0 | I49: 0 | J49: =IF(B49="","",VLOOKUP(D49,Severity!$A$4:$H$206,3,FALSE)) -> 0 | K49: =IF(B49="","",VLOOKUP(D49,Severity!$A$4:$H$206,4,FALSE)*F49) -> 0 | U49: =IF(ISNUMBER(R49)=FALSE,"",Q49*10^6/VLOOKUP(P49,'Road Segments'!$A$14:$D$33,4)*('Traffic Information'!$C$8/5280)) ->  | BM49: 1 | BN49: 3 | BO49: ATT | BP49: PL | BQ49: 27 | BR49: 0.9306440013 | BS49: 0.9552223695
A50: 2 | B50: 1 | C50: 1 | D50: EdgeOfMedian | E50: PL - LSUT | F50: 0 | G50: 0 | H50: 0 | I50: 0 | J50: =IF(B50="","",VLOOKUP(D50,Severity!$A$4:$H$206,3,FALSE)) -> 0 | K50: =IF(B50="","",VLOOKUP(D50,Severity!$A$4:$H$206,4,FALSE)*F50) -> 0 | U50: =IF(ISNUMBER(R50)=FALSE,"",Q50*10^6/VLOOKUP(P50,'Road Segments'!$A$14:$D$33,4)*('Traffic Information'!$C$8/5280)) ->  | BM50: 1 | BN50: 3 | BO50: HTT | BP50: PL | BQ50: 27 | BR50: 0.9306440013 | BS50: 0.9552223695
A51: 2 | B51: 1 | C51: 1 | D51: EdgeOfMedian | E51: PL - HTT | F51: 0 | G51: 0 | H51: 0 | I51: 0 | J51: =IF(B51="","",VLOOKUP(D51,Severity!$A$4:$H$206,3,FALSE)) -> 0 | K51: =IF(B51="","",VLOOKUP(D51,Severity!$A$4:$H$206,4,FALSE)*F51) -> 0 | U51: =IF(ISNUMBER(R51)=FALSE,"",Q51*10^6/VLOOKUP(P51,'Road Segments'!$A$14:$D$33,4)*('Traffic Information'!$C$8/5280)) ->  | BM51: 1 | BN51: 3 | BO51: LSUT | BP51: PL | BQ51: 35 | BR51: 0.9306440013 | BS51: 0.9547975326
A52: 2 | B52: 1 | C52: 1 | D52: EdgeOfMedian | E52: PL - HSUT | F52: 0 | G52: 0 | H52: 0 | I52: 0 | J52: =IF(B52="","",VLOOKUP(D52,Severity!$A$4:$H$206,3,FALSE)) -> 0 | K52: =IF(B52="","",VLOOKUP(D52,Severity!$A$4:$H$206,4,FALSE)*F52) -> 0 | U52: =IF(ISNUMBER(R52)=FALSE,"",Q52*10^6/VLOOKUP(P52,'Road Segments'!$A$14:$D$33,4)*('Traffic Information'!$C$8/5280)) ->  | BM52: 1 | BN52: 3 | BO52: ASUT | BP52: PL | BQ52: 35 | BR52: 0.9306440013 | BS52: 0.9547975326
A53: 2 | B53: 1 | C53: 1 | D53: EdgeOfMedian | E53: PL - C | F53: 0 | G53: 0 | H53: 0 | I53: 0 | J53: =IF(B53="","",VLOOKUP(D53,Severity!$A$4:$H$206,3,FALSE)) -> 0 | K53: =IF(B53="","",VLOOKUP(D53,Severity!$A$4:$H$206,4,FALSE)*F53) -> 0 | U53: =IF(ISNUMBER(R53)=FALSE,"",Q53*10^6/VLOOKUP(P53,'Road Segments'!$A$14:$D$33,4)*('Traffic Information'!$C$8/5280)) ->  | BM53: 1 | BN53: 3 | BO53: HSUT | BP53: PL | BQ53: 35 | BR53: 0.9306440013 | BS53: 0.9547975326
A54: 2 | B54: 1 | C54: 1 | D54: EdgeOfMedian | E54: PL - ATT | F54: 0 | G54: 0 | H54: 0 | I54: 0 | J54: =IF(B54="","",VLOOKUP(D54,Severity!$A$4:$H$206,3,FALSE)) -> 0 | K54: =IF(B54="","",VLOOKUP(D54,Severity!$A$4:$H$206,4,FALSE)*F54) -> 0 | U54: =IF(ISNUMBER(R54)=FALSE,"",Q54*10^6/VLOOKUP(P54,'Road Segments'!$A$14:$D$33,4)*('Traffic Information'!$C$8/5280)) ->  | BM54: 1 | BN54: 4 | BO54: M | BP54: PL | BQ54: 107 | BR54: 0.9302459551 | BS54: 0.9545141696
A55: 2 | B55: 1 | C55: 1 | D55: EdgeOfMedian | E55: PL - ASUT | F55: 0 | G55: 0 | H55: 0 | I55: 0 | J55: =IF(B55="","",VLOOKUP(D55,Severity!$A$4:$H$206,3,FALSE)) -> 0 | K55: =IF(B55="","",VLOOKUP(D55,Severity!$A$4:$H$206,4,FALSE)*F55) -> 0 | U55: =IF(ISNUMBER(R55)=FALSE,"",Q55*10^6/VLOOKUP(P55,'Road Segments'!$A$14:$D$33,4)*('Traffic Information'!$C$8/5280)) ->  | BM55: 1 | BN55: 4 | BO55: C | BP55: PL | BQ55: 105 | BR55: 0.9302459551 | BS55: 0.9542237056
A56: 2 | B56: 1 | C56: 1 | D56: EdgeOfMedian | E56: OL - PU | F56: 0.03907006378 | G56: 0.03907006378 | H56: 0 | I56: 4516.462132 | J56: =IF(B56="","",VLOOKUP(D56,Severity!$A$4:$H$206,3,FALSE)) -> 0 | K56: =IF(B56="","",VLOOKUP(D56,Severity!$A$4:$H$206,4,FALSE)*F56) -> 0 | U56: =IF(ISNUMBER(R56)=FALSE,"",Q56*10^6/VLOOKUP(P56,'Road Segments'!$A$14:$D$33,4)*('Traffic Information'!$C$8/5280)) ->  | BM56: 1 | BN56: 4 | BO56: PU | BP56: PL | BQ56: 105 | BR56: 0.9302459551 | BS56: 0.9542237056
A57: 2 | B57: 1 | C57: 1 | D57: EdgeOfMedian | E57: OL - M | F57: 0 | G57: 0 | H57: 0 | I57: 0 | J57: =IF(B57="","",VLOOKUP(D57,Severity!$A$4:$H$206,3,FALSE)) -> 0 | K57: =IF(B57="","",VLOOKUP(D57,Severity!$A$4:$H$206,4,FALSE)*F57) -> 0 | U57: =IF(ISNUMBER(R57)=FALSE,"",Q57*10^6/VLOOKUP(P57,'Road Segments'!$A$14:$D$33,4)*('Traffic Information'!$C$8/5280)) ->  | BM57: 1 | BN57: 4 | BO57: LTT | BP57: PL | BQ57: 27 | BR57: 0.9306440013 | BS57: 0.9552223695
A58: 2 | B58: 1 | C58: 1 | D58: EdgeOfMedian | E58: OL - LTT | F58: 0 | G58: 0 | H58: 0 | I58: 0 | J58: =IF(B58="","",VLOOKUP(D58,Severity!$A$4:$H$206,3,FALSE)) -> 0 | K58: =IF(B58="","",VLOOKUP(D58,Severity!$A$4:$H$206,4,FALSE)*F58) -> 0 | U58: =IF(ISNUMBER(R58)=FALSE,"",Q58*10^6/VLOOKUP(P58,'Road Segments'!$A$14:$D$33,4)*('Traffic Information'!$C$8/5280)) ->  | BM58: 1 | BN58: 4 | BO58: ATT | BP58: PL | BQ58: 27 | BR58: 0.9306440013 | BS58: 0.9552223695
A59: 2 | B59: 1 | C59: 1 | D59: EdgeOfMedian | E59: OL - LSUT | F59: 0 | G59: 0 | H59: 0 | I59: 0 | J59: =IF(B59="","",VLOOKUP(D59,Severity!$A$4:$H$206,3,FALSE)) -> 0 | K59: =IF(B59="","",VLOOKUP(D59,Severity!$A$4:$H$206,4,FALSE)*F59) -> 0 | U59: =IF(ISNUMBER(R59)=FALSE,"",Q59*10^6/VLOOKUP(P59,'Road Segments'!$A$14:$D$33,4)*('Traffic Information'!$C$8/5280)) ->  | BM59: 1 | BN59: 4 | BO59: HTT | BP59: PL | BQ59: 27 | BR59: 0.9306440013 | BS59: 0.9552223695
A60: 2 | B60: 1 | C60: 1 | D60: EdgeOfMedian | E60: OL - HTT | F60: 0 | G60: 0 | H60: 0 | I60: 0 | J60: =IF(B60="","",VLOOKUP(D60,Severity!$A$4:$H$206,3,FALSE)) -> 0 | K60: =IF(B60="","",VLOOKUP(D60,Severity!$A$4:$H$206,4,FALSE)*F60) -> 0 | U60: =IF(ISNUMBER(R60)=FALSE,"",Q60*10^6/VLOOKUP(P60,'Road Segments'!$A$14:$D$33,4)*('Traffic Information'!$C$8/5280)) ->  | BM60: 1 | BN60: 4 | BO60: LSUT | BP60: PL | BQ60: 35 | BR60: 0.9306440013 | BS60: 0.9547975326 | CB60: =IF(BX60<>"",1-BINOMDIST(1,BX$10,BX60,TRUE),"") ->  | CC60: =IF(BY60<>"",1-BINOMDIST(1,BY$10,BY60,TRUE),"") ->  | CD60: =IF(BZ60<>"",1-BINOMDIST(1,BZ$10,BZ60,TRUE),"") ->  | CE60: =IF(CA60<>"",1-BINOMDIST(1,CA$10,CA60,TRUE),"") -> 
A61: 2 | B61: 1 | C61: 1 | D61: EdgeOfMedian | E61: OL - HSUT | F61: 0 | G61: 0 | H61: 0 | I61: 0 | J61: =IF(B61="","",VLOOKUP(D61,Severity!$A$4:$H$206,3,FALSE)) -> 0 | K61: =IF(B61="","",VLOOKUP(D61,Severity!$A$4:$H$206,4,FALSE)*F61) -> 0 | U61: =IF(ISNUMBER(R61)=FALSE,"",Q61*10^6/VLOOKUP(P61,'Road Segments'!$A$14:$D$33,4)*('Traffic Information'!$C$8/5280)) ->  | BM61: 1 | BN61: 4 | BO61: ASUT | BP61: PL | BQ61: 35 | BR61: 0.9306440013 | BS61: 0.9547975326
A62: 2 | B62: 1 | C62: 1 | D62: EdgeOfMedian | E62: OL - C | F62: 0.04624031446 | G62: 0.04624031446 | H62: 0 | I62: 4605.874593 | J62: =IF(B62="","",VLOOKUP(D62,Severity!$A$4:$H$206,3,FALSE)) -> 0 | K62: =IF(B62="","",VLOOKUP(D62,Severity!$A$4:$H$206,4,FALSE)*F62) -> 0 | U62: =IF(ISNUMBER(R62)=FALSE,"",Q62*10^6/VLOOKUP(P62,'Road Segments'!$A$14:$D$33,4)*('Traffic Information'!$C$8/5280)) ->  | BM62: 1 | BN62: 4 | BO62: HSUT | BP62: PL | BQ62: 35 | BR62: 0.9306440013 | BS62: 0.9547975326
A63: 2 | B63: 1 | C63: 1 | D63: EdgeOfMedian | E63: OL - ATT | F63: 0.03107471488 | G63: 0.03107471488 | H63: 0 | I63: 48019.20053 | J63: =IF(B63="","",VLOOKUP(D63,Severity!$A$4:$H$206,3,FALSE)) -> 0 | K63: =IF(B63="","",VLOOKUP(D63,Severity!$A$4:$H$206,4,FALSE)*F63) -> 0 | U63: =IF(ISNUMBER(R63)=FALSE,"",Q63*10^6/VLOOKUP(P63,'Road Segments'!$A$14:$D$33,4)*('Traffic Information'!$C$8/5280)) ->  | BM63: 1 | BN63: 1 | BO63: M | BP63: OL | BQ63: 107 | BR63: 0.9302459551 | BS63: 0.9545141696
A64: 2 | B64: 1 | C64: 1 | D64: EdgeOfMedian | E64: OL - ASUT | F64: 0.01149340624 | G64: 0.01149340624 | H64: 0 | I64: 20149.52977 | J64: =IF(B64="","",VLOOKUP(D64,Severity!$A$4:$H$206,3,FALSE)) -> 0 | K64: =IF(B64="","",VLOOKUP(D64,Severity!$A$4:$H$206,4,FALSE)*F64) -> 0 | U64: =IF(ISNUMBER(R64)=FALSE,"",Q64*10^6/VLOOKUP(P64,'Road Segments'!$A$14:$D$33,4)*('Traffic Information'!$C$8/5280)) ->  | BM64: 1 | BN64: 1 | BO64: C | BP64: OL | BQ64: 105 | BR64: 0.9302459551 | BS64: 0.9542237056
A65: 2 | B65: 1 | C65: 2 | D65: EdgeOfMedian | E65: PL - PU | F65: 0.03907006378 | G65: 0.03907006378 | H65: 0 | I65: 4516.462132 | J65: =IF(B65="","",VLOOKUP(D65,Severity!$A$4:$H$206,3,FALSE)) -> 0 | K65: =IF(B65="","",VLOOKUP(D65,Severity!$A$4:$H$206,4,FALSE)*F65) -> 0 | U65: =IF(ISNUMBER(R65)=FALSE,"",Q65*10^6/VLOOKUP(P65,'Road Segments'!$A$14:$D$33,4)*('Traffic Information'!$C$8/5280)) ->  | BM65: 1 | BN65: 1 | BO65: PU | BP65: OL | BQ65: 105 | BR65: 0.9302459551 | BS65: 0.9542237056
A66: 2 | B66: 1 | C66: 2 | D66: EdgeOfMedian | E66: PL - M | F66: 0 | G66: 0 | H66: 0 | I66: 0 | J66: =IF(B66="","",VLOOKUP(D66,Severity!$A$4:$H$206,3,FALSE)) -> 0 | K66: =IF(B66="","",VLOOKUP(D66,Severity!$A$4:$H$206,4,FALSE)*F66) -> 0 | U66: =IF(ISNUMBER(R66)=FALSE,"",Q66*10^6/VLOOKUP(P66,'Road Segments'!$A$14:$D$33,4)*('Traffic Information'!$C$8/5280)) ->  | BM66: 1 | BN66: 1 | BO66: LTT | BP66: OL | BQ66: 27 | BR66: 0.9306440013 | BS66: 0.9552223695
A67: 2 | B67: 1 | C67: 2 | D67: EdgeOfMedian | E67: PL - LTT | F67: 0 | G67: 0 | H67: 0 | I67: 0 | J67: =IF(B67="","",VLOOKUP(D67,Severity!$A$4:$H$206,3,FALSE)) -> 0 | K67: =IF(B67="","",VLOOKUP(D67,Severity!$A$4:$H$206,4,FALSE)*F67) -> 0 | U67: =IF(ISNUMBER(R67)=FALSE,"",Q67*10^6/VLOOKUP(P67,'Road Segments'!$A$14:$D$33,4)*('Traffic Information'!$C$8/5280)) ->  | BM67: 1 | BN67: 1 | BO67: ATT | BP67: OL | BQ67: 27 | BR67: 0.9306440013 | BS67: 0.9552223695
A68: 2 | B68: 1 | C68: 2 | D68: EdgeOfMedian | E68: PL - LSUT | F68: 0 | G68: 0 | H68: 0 | I68: 0 | J68: =IF(B68="","",VLOOKUP(D68,Severity!$A$4:$H$206,3,FALSE)) -> 0 | K68: =IF(B68="","",VLOOKUP(D68,Severity!$A$4:$H$206,4,FALSE)*F68) -> 0 | U68: =IF(ISNUMBER(R68)=FALSE,"",Q68*10^6/VLOOKUP(P68,'Road Segments'!$A$14:$D$33,4)*('Traffic Information'!$C$8/5280)) ->  | BM68: 1 | BN68: 1 | BO68: HTT | BP68: OL | BQ68: 27 | BR68: 0.9306440013 | BS68: 0.9552223695
A69: 2 | B69: 1 | C69: 2 | D69: EdgeOfMedian | E69: PL - HTT | F69: 0 | G69: 0 | H69: 0 | I69: 0 | J69: =IF(B69="","",VLOOKUP(D69,Severity!$A$4:$H$206,3,FALSE)) -> 0 | K69: =IF(B69="","",VLOOKUP(D69,Severity!$A$4:$H$206,4,FALSE)*F69) -> 0 | U69: =IF(ISNUMBER(R69)=FALSE,"",Q69*10^6/VLOOKUP(P69,'Road Segments'!$A$14:$D$33,4)*('Traffic Information'!$C$8/5280)) ->  | BM69: 1 | BN69: 1 | BO69: LSUT | BP69: OL | BQ69: 35 | BR69: 0.9306440013 | BS69: 0.9547975326
A70: 2 | B70: 1 | C70: 2 | D70: EdgeOfMedian | E70: PL - HSUT | F70: 0 | G70: 0 | H70: 0 | I70: 0 | J70: =IF(B70="","",VLOOKUP(D70,Severity!$A$4:$H$206,3,FALSE)) -> 0 | K70: =IF(B70="","",VLOOKUP(D70,Severity!$A$4:$H$206,4,FALSE)*F70) -> 0 | U70: =IF(ISNUMBER(R70)=FALSE,"",Q70*10^6/VLOOKUP(P70,'Road Segments'!$A$14:$D$33,4)*('Traffic Information'!$C$8/5280)) ->  | BM70: 1 | BN70: 1 | BO70: ASUT | BP70: OL | BQ70: 35 | BR70: 0.9306440013 | BS70: 0.9547975326
A71: 2 | B71: 1 | C71: 2 | D71: EdgeOfMedian | E71: PL - C | F71: 0.04624031446 | G71: 0.04624031446 | H71: 0 | I71: 4605.874593 | J71: =IF(B71="","",VLOOKUP(D71,Severity!$A$4:$H$206,3,FALSE)) -> 0 | K71: =IF(B71="","",VLOOKUP(D71,Severity!$A$4:$H$206,4,FALSE)*F71) -> 0 | U71: =IF(ISNUMBER(R71)=FALSE,"",Q71*10^6/VLOOKUP(P71,'Road Segments'!$A$14:$D$33,4)*('Traffic Information'!$C$8/5280)) ->  | BM71: 1 | BN71: 1 | BO71: HSUT | BP71: OL | BQ71: 35 | BR71: 0.9306440013 | BS71: 0.9547975326
A72: 2 | B72: 1 | C72: 2 | D72: EdgeOfMedian | E72: PL - ATT | F72: 0.03107471488 | G72: 0.03107471488 | H72: 0 | I72: 48019.20053 | J72: =IF(B72="","",VLOOKUP(D72,Severity!$A$4:$H$206,3,FALSE)) -> 0 | K72: =IF(B72="","",VLOOKUP(D72,Severity!$A$4:$H$206,4,FALSE)*F72) -> 0 | U72: =IF(ISNUMBER(R72)=FALSE,"",Q72*10^6/VLOOKUP(P72,'Road Segments'!$A$14:$D$33,4)*('Traffic Information'!$C$8/5280)) ->  | BM72: 1 | BN72: 2 | BO72: M | BP72: OL | BQ72: 107 | BR72: 0.9302459551 | BS72: 0.9545141696
A73: 2 | B73: 1 | C73: 2 | D73: EdgeOfMedian | E73: PL - ASUT | F73: 0.01149340624 | G73: 0.01149340624 | H73: 0 | I73: 20149.52977 | J73: =IF(B73="","",VLOOKUP(D73,Severity!$A$4:$H$206,3,FALSE)) -> 0 | K73: =IF(B73="","",VLOOKUP(D73,Severity!$A$4:$H$206,4,FALSE)*F73) -> 0 | U73: =IF(ISNUMBER(R73)=FALSE,"",Q73*10^6/VLOOKUP(P73,'Road Segments'!$A$14:$D$33,4)*('Traffic Information'!$C$8/5280)) ->  | BM73: 1 | BN73: 2 | BO73: C | BP73: OL | BQ73: 105 | BR73: 0.9302459551 | BS73: 0.9542237056
A74: 2 | B74: 1 | C74: 2 | D74: EdgeOfMedian | E74: OL - PU | F74: 0 | G74: 0 | H74: 0 | I74: 0 | J74: =IF(B74="","",VLOOKUP(D74,Severity!$A$4:$H$206,3,FALSE)) -> 0 | K74: =IF(B74="","",VLOOKUP(D74,Severity!$A$4:$H$206,4,FALSE)*F74) -> 0 | U74: =IF(ISNUMBER(R74)=FALSE,"",Q74*10^6/VLOOKUP(P74,'Road Segments'!$A$14:$D$33,4)*('Traffic Information'!$C$8/5280)) ->  | BM74: 1 | BN74: 2 | BO74: PU | BP74: OL | BQ74: 105 | BR74: 0.9302459551 | BS74: 0.9542237056
A75: 2 | B75: 1 | C75: 2 | D75: EdgeOfMedian | E75: OL - M | F75: 0 | G75: 0 | H75: 0 | I75: 0 | J75: =IF(B75="","",VLOOKUP(D75,Severity!$A$4:$H$206,3,FALSE)) -> 0 | K75: =IF(B75="","",VLOOKUP(D75,Severity!$A$4:$H$206,4,FALSE)*F75) -> 0 | U75: =IF(ISNUMBER(R75)=FALSE,"",Q75*10^6/VLOOKUP(P75,'Road Segments'!$A$14:$D$33,4)*('Traffic Information'!$C$8/5280)) ->  | BM75: 1 | BN75: 2 | BO75: LTT | BP75: OL | BQ75: 27 | BR75: 0.9306440013 | BS75: 0.9552223695
A76: 2 | B76: 1 | C76: 2 | D76: EdgeOfMedian | E76: OL - LTT | F76: 0 | G76: 0 | H76: 0 | I76: 0 | J76: =IF(B76="","",VLOOKUP(D76,Severity!$A$4:$H$206,3,FALSE)) -> 0 | K76: =IF(B76="","",VLOOKUP(D76,Severity!$A$4:$H$206,4,FALSE)*F76) -> 0 | U76: =IF(ISNUMBER(R76)=FALSE,"",Q76*10^6/VLOOKUP(P76,'Road Segments'!$A$14:$D$33,4)*('Traffic Information'!$C$8/5280)) ->  | BM76: 1 | BN76: 2 | BO76: ATT | BP76: OL | BQ76: 27 | BR76: 0.9306440013 | BS76: 0.9552223695 | CF76: =IF(BU76<>"",SUM(CB76:CE76),"") -> 
A77: 2 | B77: 1 | C77: 2 | D77: EdgeOfMedian | E77: OL - LSUT | F77: 0 | G77: 0 | H77: 0 | I77: 0 | J77: =IF(B77="","",VLOOKUP(D77,Severity!$A$4:$H$206,3,FALSE)) -> 0 | K77: =IF(B77="","",VLOOKUP(D77,Severity!$A$4:$H$206,4,FALSE)*F77) -> 0 | U77: =IF(ISNUMBER(R77)=FALSE,"",Q77*10^6/VLOOKUP(P77,'Road Segments'!$A$14:$D$33,4)*('Traffic Information'!$C$8/5280)) ->  | BM77: 1 | BN77: 2 | BO77: HTT | BP77: OL | BQ77: 27 | BR77: 0.9306440013 | BS77: 0.9552223695
A78: 2 | B78: 1 | C78: 2 | D78: EdgeOfMedian | E78: OL - HTT | F78: 0 | G78: 0 | H78: 0 | I78: 0 | J78: =IF(B78="","",VLOOKUP(D78,Severity!$A$4:$H$206,3,FALSE)) -> 0 | K78: =IF(B78="","",VLOOKUP(D78,Severity!$A$4:$H$206,4,FALSE)*F78) -> 0 | U78: =IF(ISNUMBER(R78)=FALSE,"",Q78*10^6/VLOOKUP(P78,'Road Segments'!$A$14:$D$33,4)*('Traffic Information'!$C$8/5280)) ->  | BM78: 1 | BN78: 2 | BO78: LSUT | BP78: OL | BQ78: 35 | BR78: 0.9306440013 | BS78: 0.9547975326 | CB78: =IF(BX78<>"",1-BINOMDIST(1,BX$10,BX78,TRUE),"") ->  | CC78: =IF(BY78<>"",1-BINOMDIST(1,BY$10,BY78,TRUE),"") ->  | CD78: =IF(BZ78<>"",1-BINOMDIST(1,BZ$10,BZ78,TRUE),"") ->  | CE78: =IF(CA78<>"",1-BINOMDIST(1,CA$10,CA78,TRUE),"") -> 
A79: 2 | B79: 1 | C79: 2 | D79: EdgeOfMedian | E79: OL - HSUT | F79: 0 | G79: 0 | H79: 0 | I79: 0 | J79: =IF(B79="","",VLOOKUP(D79,Severity!$A$4:$H$206,3,FALSE)) -> 0 | K79: =IF(B79="","",VLOOKUP(D79,Severity!$A$4:$H$206,4,FALSE)*F79) -> 0 | U79: =IF(ISNUMBER(R79)=FALSE,"",Q79*10^6/VLOOKUP(P79,'Road Segments'!$A$14:$D$33,4)*('Traffic Information'!$C$8/5280)) ->  | BM79: 1 | BN79: 2 | BO79: ASUT | BP79: OL | BQ79: 35 | BR79: 0.9306440013 | BS79: 0.9547975326
A80: 2 | B80: 1 | C80: 2 | D80: EdgeOfMedian | E80: OL - C | F80: 0 | G80: 0 | H80: 0 | I80: 0 | J80: =IF(B80="","",VLOOKUP(D80,Severity!$A$4:$H$206,3,FALSE)) -> 0 | K80: =IF(B80="","",VLOOKUP(D80,Severity!$A$4:$H$206,4,FALSE)*F80) -> 0 | U80: =IF(ISNUMBER(R80)=FALSE,"",Q80*10^6/VLOOKUP(P80,'Road Segments'!$A$14:$D$33,4)*('Traffic Information'!$C$8/5280)) ->  | BM80: 1 | BN80: 2 | BO80: HSUT | BP80: OL | BQ80: 35 | BR80: 0.9306440013 | BS80: 0.9547975326
A81: 2 | B81: 1 | C81: 2 | D81: EdgeOfMedian | E81: OL - ATT | F81: 0 | G81: 0 | H81: 0 | I81: 0 | J81: =IF(B81="","",VLOOKUP(D81,Severity!$A$4:$H$206,3,FALSE)) -> 0 | K81: =IF(B81="","",VLOOKUP(D81,Severity!$A$4:$H$206,4,FALSE)*F81) -> 0 | U81: =IF(ISNUMBER(R81)=FALSE,"",Q81*10^6/VLOOKUP(P81,'Road Segments'!$A$14:$D$33,4)*('Traffic Information'!$C$8/5280)) ->  | BM81: 1 | BN81: 3 | BO81: M | BP81: OL | BQ81: 107 | BR81: 0.9302459551 | BS81: 0.9545141696
A82: 2 | B82: 1 | C82: 2 | D82: EdgeOfMedian | E82: OL - ASUT | F82: 0 | G82: 0 | H82: 0 | I82: 0 | J82: =IF(B82="","",VLOOKUP(D82,Severity!$A$4:$H$206,3,FALSE)) -> 0 | K82: =IF(B82="","",VLOOKUP(D82,Severity!$A$4:$H$206,4,FALSE)*F82) -> 0 | U82: =IF(ISNUMBER(R82)=FALSE,"",Q82*10^6/VLOOKUP(P82,'Road Segments'!$A$14:$D$33,4)*('Traffic Information'!$C$8/5280)) ->  | BM82: 1 | BN82: 3 | BO82: C | BP82: OL | BQ82: 105 | BR82: 0.9302459551 | BS82: 0.9542237056
A83: 2 | B83: 1 | C83: 3 | D83: TL3WbeamMB | E83: PL - PU | F83: 0.5174946762 | G83: 0.0411399988 | H83: 0 | I83: 7894.457139 | J83: =IF(B83="","",VLOOKUP(D83,Severity!$A$4:$H$206,3,FALSE)) -> 0 | K83: =IF(B83="","",VLOOKUP(D83,Severity!$A$4:$H$206,4,FALSE)*F83) -> 620.9936114 | U83: =IF(ISNUMBER(R83)=FALSE,"",Q83*10^6/VLOOKUP(P83,'Road Segments'!$A$14:$D$33,4)*('Traffic Information'!$C$8/5280)) ->  | BM83: 1 | BN83: 3 | BO83: PU | BP83: OL | BQ83: 105 | BR83: 0.9302459551 | BS83: 0.9542237056
A84: 2 | B84: 1 | C84: 3 | D84: TL3WbeamMB | E84: PL - M | F84: 0 | G84: 0 | H84: 0 | I84: 0 | J84: =IF(B84="","",VLOOKUP(D84,Severity!$A$4:$H$206,3,FALSE)) -> 0 | K84: =IF(B84="","",VLOOKUP(D84,Severity!$A$4:$H$206,4,FALSE)*F84) -> 0 | U84: =IF(ISNUMBER(R84)=FALSE,"",Q84*10^6/VLOOKUP(P84,'Road Segments'!$A$14:$D$33,4)*('Traffic Information'!$C$8/5280)) ->  | BM84: 1 | BN84: 3 | BO84: LTT | BP84: OL | BQ84: 27 | BR84: 0.9306440013 | BS84: 0.9552223695
A85: 2 | B85: 1 | C85: 3 | D85: TL3WbeamMB | E85: PL - LTT | F85: 0 | G85: 0 | H85: 0 | I85: 0 | J85: =IF(B85="","",VLOOKUP(D85,Severity!$A$4:$H$206,3,FALSE)) -> 0 | K85: =IF(B85="","",VLOOKUP(D85,Severity!$A$4:$H$206,4,FALSE)*F85) -> 0 | U85: =IF(ISNUMBER(R85)=FALSE,"",Q85*10^6/VLOOKUP(P85,'Road Segments'!$A$14:$D$33,4)*('Traffic Information'!$C$8/5280)) ->  | BM85: 1 | BN85: 3 | BO85: ATT | BP85: OL | BQ85: 27 | BR85: 0.9306440013 | BS85: 0.9552223695
A86: 2 | B86: 1 | C86: 3 | D86: TL3WbeamMB | E86: PL - LSUT | F86: 0 | G86: 0 | H86: 0 | I86: 0 | J86: =IF(B86="","",VLOOKUP(D86,Severity!$A$4:$H$206,3,FALSE)) -> 0 | K86: =IF(B86="","",VLOOKUP(D86,Severity!$A$4:$H$206,4,FALSE)*F86) -> 0 | U86: =IF(ISNUMBER(R86)=FALSE,"",Q86*10^6/VLOOKUP(P86,'Road Segments'!$A$14:$D$33,4)*('Traffic Information'!$C$8/5280)) ->  | BM86: 1 | BN86: 3 | BO86: HTT | BP86: OL | BQ86: 27 | BR86: 0.9306440013 | BS86: 0.9552223695
A87: 2 | B87: 1 | C87: 3 | D87: TL3WbeamMB | E87: PL - HTT | F87: 0 | G87: 0 | H87: 0 | I87: 0 | J87: =IF(B87="","",VLOOKUP(D87,Severity!$A$4:$H$206,3,FALSE)) -> 0 | K87: =IF(B87="","",VLOOKUP(D87,Severity!$A$4:$H$206,4,FALSE)*F87) -> 0 | U87: =IF(ISNUMBER(R87)=FALSE,"",Q87*10^6/VLOOKUP(P87,'Road Segments'!$A$14:$D$33,4)*('Traffic Information'!$C$8/5280)) ->  | BM87: 1 | BN87: 3 | BO87: LSUT | BP87: OL | BQ87: 35 | BR87: 0.9306440013 | BS87: 0.9547975326
A88: 2 | B88: 1 | C88: 3 | D88: TL3WbeamMB | E88: PL - HSUT | F88: 0 | G88: 0 | H88: 0 | I88: 0 | J88: =IF(B88="","",VLOOKUP(D88,Severity!$A$4:$H$206,3,FALSE)) -> 0 | K88: =IF(B88="","",VLOOKUP(D88,Severity!$A$4:$H$206,4,FALSE)*F88) -> 0 | U88: =IF(ISNUMBER(R88)=FALSE,"",Q88*10^6/VLOOKUP(P88,'Road Segments'!$A$14:$D$33,4)*('Traffic Information'!$C$8/5280)) ->  | BM88: 1 | BN88: 3 | BO88: ASUT | BP88: OL | BQ88: 35 | BR88: 0.9306440013 | BS88: 0.9547975326
A89: 2 | B89: 1 | C89: 3 | D89: TL3WbeamMB | E89: PL - C | F89: 1.552484028 | G89: 0.05211711643 | H89: 0 | I89: 23683.37142 | J89: =IF(B89="","",VLOOKUP(D89,Severity!$A$4:$H$206,3,FALSE)) -> 0 | K89: =IF(B89="","",VLOOKUP(D89,Severity!$A$4:$H$206,4,FALSE)*F89) -> 1862.980834 | U89: =IF(ISNUMBER(R89)=FALSE,"",Q89*10^6/VLOOKUP(P89,'Road Segments'!$A$14:$D$33,4)*('Traffic Information'!$C$8/5280)) ->  | BM89: 1 | BN89: 3 | BO89: HSUT | BP89: OL | BQ89: 35 | BR89: 0.9306440013 | BS89: 0.9547975326
A90: 2 | B90: 1 | C90: 3 | D90: TL3WbeamMB | E90: PL - ATT | F90: 0.1064537749 | G90: 0.0317155917 | H90: 0.0308365312 | I90: 39114.38612 | J90: =IF(B90="","",VLOOKUP(D90,Severity!$A$4:$H$206,3,FALSE)) -> 0 | K90: =IF(B90="","",VLOOKUP(D90,Severity!$A$4:$H$206,4,FALSE)*F90) -> 127.7445299 | U90: =IF(ISNUMBER(R90)=FALSE,"",Q90*10^6/VLOOKUP(P90,'Road Segments'!$A$14:$D$33,4)*('Traffic Information'!$C$8/5280)) ->  | BM90: 1 | BN90: 4 | BO90: M | BP90: OL | BQ90: 107 | BR90: 0.9302459551 | BS90: 0.9545141696
A91: 2 | B91: 1 | C91: 3 | D91: TL3WbeamMB | E91: PL - ASUT | F91: 0.07560614973 | G91: 0.01197592384 | H91: 0.001239348952 | I91: 11407.22487 | J91: =IF(B91="","",VLOOKUP(D91,Severity!$A$4:$H$206,3,FALSE)) -> 0 | K91: =IF(B91="","",VLOOKUP(D91,Severity!$A$4:$H$206,4,FALSE)*F91) -> 90.72737967 | U91: =IF(ISNUMBER(R91)=FALSE,"",Q91*10^6/VLOOKUP(P91,'Road Segments'!$A$14:$D$33,4)*('Traffic Information'!$C$8/5280)) ->  | BM91: 1 | BN91: 4 | BO91: C | BP91: OL | BQ91: 105 | BR91: 0.9302459551 | BS91: 0.9542237056
A92: 2 | B92: 1 | C92: 3 | D92: TL3WbeamMB | E92: OL - PU | F92: 0.5174949856 | G92: 0.04114000499 | H92: 0 | I92: 7894.457398 | J92: =IF(B92="","",VLOOKUP(D92,Severity!$A$4:$H$206,3,FALSE)) -> 0 | K92: =IF(B92="","",VLOOKUP(D92,Severity!$A$4:$H$206,4,FALSE)*F92) -> 620.9939827 | U92: =IF(ISNUMBER(R92)=FALSE,"",Q92*10^6/VLOOKUP(P92,'Road Segments'!$A$14:$D$33,4)*('Traffic Information'!$C$8/5280)) ->  | BM92: 1 | BN92: 4 | BO92: PU | BP92: OL | BQ92: 105 | BR92: 0.9302459551 | BS92: 0.9542237056
A93: 2 | B93: 1 | C93: 3 | D93: TL3WbeamMB | E93: OL - M | F93: 0 | G93: 0 | H93: 0 | I93: 0 | J93: =IF(B93="","",VLOOKUP(D93,Severity!$A$4:$H$206,3,FALSE)) -> 0 | K93: =IF(B93="","",VLOOKUP(D93,Severity!$A$4:$H$206,4,FALSE)*F93) -> 0 | U93: =IF(ISNUMBER(R93)=FALSE,"",Q93*10^6/VLOOKUP(P93,'Road Segments'!$A$14:$D$33,4)*('Traffic Information'!$C$8/5280)) ->  | BM93: 1 | BN93: 4 | BO93: LTT | BP93: OL | BQ93: 27 | BR93: 0.9306440013 | BS93: 0.9552223695
A94: 2 | B94: 1 | C94: 3 | D94: TL3WbeamMB | E94: OL - LTT | F94: 0 | G94: 0 | H94: 0 | I94: 0 | J94: =IF(B94="","",VLOOKUP(D94,Severity!$A$4:$H$206,3,FALSE)) -> 0 | K94: =IF(B94="","",VLOOKUP(D94,Severity!$A$4:$H$206,4,FALSE)*F94) -> 0 | U94: =IF(ISNUMBER(R94)=FALSE,"",Q94*10^6/VLOOKUP(P94,'Road Segments'!$A$14:$D$33,4)*('Traffic Information'!$C$8/5280)) ->  | BM94: 1 | BN94: 4 | BO94: ATT | BP94: OL | BQ94: 27 | BR94: 0.9306440013 | BS94: 0.9552223695
A95: 2 | B95: 1 | C95: 3 | D95: TL3WbeamMB | E95: OL - LSUT | F95: 0 | G95: 0 | H95: 0 | I95: 0 | J95: =IF(B95="","",VLOOKUP(D95,Severity!$A$4:$H$206,3,FALSE)) -> 0 | K95: =IF(B95="","",VLOOKUP(D95,Severity!$A$4:$H$206,4,FALSE)*F95) -> 0 | U95: =IF(ISNUMBER(R95)=FALSE,"",Q95*10^6/VLOOKUP(P95,'Road Segments'!$A$14:$D$33,4)*('Traffic Information'!$C$8/5280)) ->  | BM95: 1 | BN95: 4 | BO95: HTT | BP95: OL | BQ95: 27 | BR95: 0.9306440013 | BS95: 0.9552223695
A96: 2 | B96: 1 | C96: 3 | D96: TL3WbeamMB | E96: OL - HTT | F96: 0 | G96: 0 | H96: 0 | I96: 0 | J96: =IF(B96="","",VLOOKUP(D96,Severity!$A$4:$H$206,3,FALSE)) -> 0 | K96: =IF(B96="","",VLOOKUP(D96,Severity!$A$4:$H$206,4,FALSE)*F96) -> 0 | U96: =IF(ISNUMBER(R96)=FALSE,"",Q96*10^6/VLOOKUP(P96,'Road Segments'!$A$14:$D$33,4)*('Traffic Information'!$C$8/5280)) ->  | BM96: 1 | BN96: 4 | BO96: LSUT | BP96: OL | BQ96: 35 | BR96: 0.9306440013 | BS96: 0.9547975326
A97: 2 | B97: 1 | C97: 3 | D97: TL3WbeamMB | E97: OL - HSUT | F97: 0 | G97: 0 | H97: 0 | I97: 0 | J97: =IF(B97="","",VLOOKUP(D97,Severity!$A$4:$H$206,3,FALSE)) -> 0 | K97: =IF(B97="","",VLOOKUP(D97,Severity!$A$4:$H$206,4,FALSE)*F97) -> 0 | U97: =IF(ISNUMBER(R97)=FALSE,"",Q97*10^6/VLOOKUP(P97,'Road Segments'!$A$14:$D$33,4)*('Traffic Information'!$C$8/5280)) ->  | BM97: 1 | BN97: 4 | BO97: ASUT | BP97: OL | BQ97: 35 | BR97: 0.9306440013 | BS97: 0.9547975326
A98: 2 | B98: 1 | C98: 3 | D98: TL3WbeamMB | E98: OL - C | F98: 1.552484957 | G98: 0.052117135 | H98: 0 | I98: 23683.37219 | J98: =IF(B98="","",VLOOKUP(D98,Severity!$A$4:$H$206,3,FALSE)) -> 0 | K98: =IF(B98="","",VLOOKUP(D98,Severity!$A$4:$H$206,4,FALSE)*F98) -> 1862.981948 | U98: =IF(ISNUMBER(R98)=FALSE,"",Q98*10^6/VLOOKUP(P98,'Road Segments'!$A$14:$D$33,4)*('Traffic Information'!$C$8/5280)) ->  | BM98: 1 | BN98: 4 | BO98: HSUT | BP98: OL | BQ98: 35 | BR98: 0.9306440013 | BS98: 0.9547975326
A99: 2 | B99: 1 | C99: 3 | D99: TL3WbeamMB | E99: OL - ATT | F99: 0.1064537749 | G99: 0.0317155917 | H99: 0.0308365312 | I99: 39114.38612 | J99: =IF(B99="","",VLOOKUP(D99,Severity!$A$4:$H$206,3,FALSE)) -> 0 | K99: =IF(B99="","",VLOOKUP(D99,Severity!$A$4:$H$206,4,FALSE)*F99) -> 127.7445299 | U99: =IF(ISNUMBER(R99)=FALSE,"",Q99*10^6/VLOOKUP(P99,'Road Segments'!$A$14:$D$33,4)*('Traffic Information'!$C$8/5280)) -> 
A100: 2 | B100: 1 | C100: 3 | D100: TL3WbeamMB | E100: OL - ASUT | F100: 0.07560614973 | G100: 0.01197592384 | H100: 0.001239348952 | I100: 11407.22487 | J100: =IF(B100="","",VLOOKUP(D100,Severity!$A$4:$H$206,3,FALSE)) -> 0 | K100: =IF(B100="","",VLOOKUP(D100,Severity!$A$4:$H$206,4,FALSE)*F100) -> 90.72737967 | U100: =IF(ISNUMBER(R100)=FALSE,"",Q100*10^6/VLOOKUP(P100,'Road Segments'!$A$14:$D$33,4)*('Traffic Information'!$C$8/5280)) -> 
A101: 3 | D101: ALTERNATIVE 3 | J101: =IF(B101="","",VLOOKUP(D101,Severity!$A$4:$H$206,3,FALSE)) ->  | K101: =IF(B101="","",VLOOKUP(D101,Severity!$A$4:$H$206,4,FALSE)*F101) ->  | U101: =IF(ISNUMBER(R101)=FALSE,"",Q101*10^6/VLOOKUP(P101,'Road Segments'!$A$14:$D$33,4)*('Traffic Information'!$C$8/5280)) -> 
A102: 3 | B102: 1 | C102: 1 | D102: EdgeOfMedian | E102: PL - PU | F102: 0 | G102: 0 | H102: 0 | I102: 0 | J102: =IF(B102="","",VLOOKUP(D102,Severity!$A$4:$H$206,3,FALSE)) -> 0 | K102: =IF(B102="","",VLOOKUP(D102,Severity!$A$4:$H$206,4,FALSE)*F102) -> 0 | U102: =IF(ISNUMBER(R102)=FALSE,"",Q102*10^6/VLOOKUP(P102,'Road Segments'!$A$14:$D$33,4)*('Traffic Information'!$C$8/5280)) -> 
A103: 3 | B103: 1 | C103: 1 | D103: EdgeOfMedian | E103: PL - M | F103: 0 | G103: 0 | H103: 0 | I103: 0 | J103: =IF(B103="","",VLOOKUP(D103,Severity!$A$4:$H$206,3,FALSE)) -> 0 | K103: =IF(B103="","",VLOOKUP(D103,Severity!$A$4:$H$206,4,FALSE)*F103) -> 0 | U103: =IF(ISNUMBER(R103)=FALSE,"",Q103*10^6/VLOOKUP(P103,'Road Segments'!$A$14:$D$33,4)*('Traffic Information'!$C$8/5280)) -> 
A104: 3 | B104: 1 | C104: 1 | D104: EdgeOfMedian | E104: PL - LTT | F104: 0 | G104: 0 | H104: 0 | I104: 0 | J104: =IF(B104="","",VLOOKUP(D104,Severity!$A$4:$H$206,3,FALSE)) -> 0 | K104: =IF(B104="","",VLOOKUP(D104,Severity!$A$4:$H$206,4,FALSE)*F104) -> 0 | U104: =IF(ISNUMBER(R104)=FALSE,"",Q104*10^6/VLOOKUP(P104,'Road Segments'!$A$14:$D$33,4)*('Traffic Information'!$C$8/5280)) -> 
A105: 3 | B105: 1 | C105: 1 | D105: EdgeOfMedian | E105: PL - LSUT | F105: 0 | G105: 0 | H105: 0 | I105: 0 | J105: =IF(B105="","",VLOOKUP(D105,Severity!$A$4:$H$206,3,FALSE)) -> 0 | K105: =IF(B105="","",VLOOKUP(D105,Severity!$A$4:$H$206,4,FALSE)*F105) -> 0 | U105: =IF(ISNUMBER(R105)=FALSE,"",Q105*10^6/VLOOKUP(P105,'Road Segments'!$A$14:$D$33,4)*('Traffic Information'!$C$8/5280)) -> 
A106: 3 | B106: 1 | C106: 1 | D106: EdgeOfMedian | E106: PL - HTT | F106: 0 | G106: 0 | H106: 0 | I106: 0 | J106: =IF(B106="","",VLOOKUP(D106,Severity!$A$4:$H$206,3,FALSE)) -> 0 | K106: =IF(B106="","",VLOOKUP(D106,Severity!$A$4:$H$206,4,FALSE)*F106) -> 0 | U106: =IF(ISNUMBER(R106)=FALSE,"",Q106*10^6/VLOOKUP(P106,'Road Segments'!$A$14:$D$33,4)*('Traffic Information'!$C$8/5280)) -> 
A107: 3 | B107: 1 | C107: 1 | D107: EdgeOfMedian | E107: PL - HSUT | F107: 0 | G107: 0 | H107: 0 | I107: 0 | J107: =IF(B107="","",VLOOKUP(D107,Severity!$A$4:$H$206,3,FALSE)) -> 0 | K107: =IF(B107="","",VLOOKUP(D107,Severity!$A$4:$H$206,4,FALSE)*F107) -> 0 | U107: =IF(ISNUMBER(R107)=FALSE,"",Q107*10^6/VLOOKUP(P107,'Road Segments'!$A$14:$D$33,4)*('Traffic Information'!$C$8/5280)) -> 
A108: 3 | B108: 1 | C108: 1 | D108: EdgeOfMedian | E108: PL - C | F108: 0 | G108: 0 | H108: 0 | I108: 0 | J108: =IF(B108="","",VLOOKUP(D108,Severity!$A$4:$H$206,3,FALSE)) -> 0 | K108: =IF(B108="","",VLOOKUP(D108,Severity!$A$4:$H$206,4,FALSE)*F108) -> 0 | U108: =IF(ISNUMBER(R108)=FALSE,"",Q108*10^6/VLOOKUP(P108,'Road Segments'!$A$14:$D$33,4)*('Traffic Information'!$C$8/5280)) -> 
A109: 3 | B109: 1 | C109: 1 | D109: EdgeOfMedian | E109: PL - ATT | F109: 0 | G109: 0 | H109: 0 | I109: 0 | J109: =IF(B109="","",VLOOKUP(D109,Severity!$A$4:$H$206,3,FALSE)) -> 0 | K109: =IF(B109="","",VLOOKUP(D109,Severity!$A$4:$H$206,4,FALSE)*F109) -> 0 | U109: =IF(ISNUMBER(R109)=FALSE,"",Q109*10^6/VLOOKUP(P109,'Road Segments'!$A$14:$D$33,4)*('Traffic Information'!$C$8/5280)) -> 
A110: 3 | B110: 1 | C110: 1 | D110: EdgeOfMedian | E110: PL - ASUT | F110: 0 | G110: 0 | H110: 0 | I110: 0 | J110: =IF(B110="","",VLOOKUP(D110,Severity!$A$4:$H$206,3,FALSE)) -> 0 | K110: =IF(B110="","",VLOOKUP(D110,Severity!$A$4:$H$206,4,FALSE)*F110) -> 0 | U110: =IF(ISNUMBER(R110)=FALSE,"",Q110*10^6/VLOOKUP(P110,'Road Segments'!$A$14:$D$33,4)*('Traffic Information'!$C$8/5280)) -> 
A111: 3 | B111: 1 | C111: 1 | D111: EdgeOfMedian | E111: OL - PU | F111: 0.01723656832 | G111: 0.01723656832 | H111: 0 | I111: 1930.091806 | J111: =IF(B111="","",VLOOKUP(D111,Severity!$A$4:$H$206,3,FALSE)) -> 0 | K111: =IF(B111="","",VLOOKUP(D111,Severity!$A$4:$H$206,4,FALSE)*F111) -> 0 | U111: =IF(ISNUMBER(R111)=FALSE,"",Q111*10^6/VLOOKUP(P111,'Road Segments'!$A$14:$D$33,4)*('Traffic Information'!$C$8/5280)) -> 
A112: 3 | B112: 1 | C112: 1 | D112: EdgeOfMedian | E112: OL - M | F112: 0 | G112: 0 | H112: 0 | I112: 0 | J112: =IF(B112="","",VLOOKUP(D112,Severity!$A$4:$H$206,3,FALSE)) -> 0 | K112: =IF(B112="","",VLOOKUP(D112,Severity!$A$4:$H$206,4,FALSE)*F112) -> 0 | U112: =IF(ISNUMBER(R112)=FALSE,"",Q112*10^6/VLOOKUP(P112,'Road Segments'!$A$14:$D$33,4)*('Traffic Information'!$C$8/5280)) -> 
A113: 3 | B113: 1 | C113: 1 | D113: EdgeOfMedian | E113: OL - LTT | F113: 0 | G113: 0 | H113: 0 | I113: 0 | J113: =IF(B113="","",VLOOKUP(D113,Severity!$A$4:$H$206,3,FALSE)) -> 0 | K113: =IF(B113="","",VLOOKUP(D113,Severity!$A$4:$H$206,4,FALSE)*F113) -> 0 | U113: =IF(ISNUMBER(R113)=FALSE,"",Q113*10^6/VLOOKUP(P113,'Road Segments'!$A$14:$D$33,4)*('Traffic Information'!$C$8/5280)) -> 
A114: 3 | B114: 1 | C114: 1 | D114: EdgeOfMedian | E114: OL - LSUT | F114: 0 | G114: 0 | H114: 0 | I114: 0 | J114: =IF(B114="","",VLOOKUP(D114,Severity!$A$4:$H$206,3,FALSE)) -> 0 | K114: =IF(B114="","",VLOOKUP(D114,Severity!$A$4:$H$206,4,FALSE)*F114) -> 0 | U114: =IF(ISNUMBER(R114)=FALSE,"",Q114*10^6/VLOOKUP(P114,'Road Segments'!$A$14:$D$33,4)*('Traffic Information'!$C$8/5280)) -> 
A115: 3 | B115: 1 | C115: 1 | D115: EdgeOfMedian | E115: OL - HTT | F115: 0 | G115: 0 | H115: 0 | I115: 0 | J115: =IF(B115="","",VLOOKUP(D115,Severity!$A$4:$H$206,3,FALSE)) -> 0 | K115: =IF(B115="","",VLOOKUP(D115,Severity!$A$4:$H$206,4,FALSE)*F115) -> 0 | U115: =IF(ISNUMBER(R115)=FALSE,"",Q115*10^6/VLOOKUP(P115,'Road Segments'!$A$14:$D$33,4)*('Traffic Information'!$C$8/5280)) -> 
A116: 3 | B116: 1 | C116: 1 | D116: EdgeOfMedian | E116: OL - HSUT | F116: 0 | G116: 0 | H116: 0 | I116: 0 | J116: =IF(B116="","",VLOOKUP(D116,Severity!$A$4:$H$206,3,FALSE)) -> 0 | K116: =IF(B116="","",VLOOKUP(D116,Severity!$A$4:$H$206,4,FALSE)*F116) -> 0 | U116: =IF(ISNUMBER(R116)=FALSE,"",Q116*10^6/VLOOKUP(P116,'Road Segments'!$A$14:$D$33,4)*('Traffic Information'!$C$8/5280)) -> 
A117: 3 | B117: 1 | C117: 1 | D117: EdgeOfMedian | E117: OL - C | F117: 0.03467215356 | G117: 0.03467215356 | H117: 0 | I117: 4101.601451 | J117: =IF(B117="","",VLOOKUP(D117,Severity!$A$4:$H$206,3,FALSE)) -> 0 | K117: =IF(B117="","",VLOOKUP(D117,Severity!$A$4:$H$206,4,FALSE)*F117) -> 0 | U117: =IF(ISNUMBER(R117)=FALSE,"",Q117*10^6/VLOOKUP(P117,'Road Segments'!$A$14:$D$33,4)*('Traffic Information'!$C$8/5280)) -> 
A118: 3 | B118: 1 | C118: 1 | D118: EdgeOfMedian | E118: OL - ATT | F118: 0.005076439305 | G118: 0.005076439305 | H118: 0 | I118: 8069.903509 | J118: =IF(B118="","",VLOOKUP(D118,Severity!$A$4:$H$206,3,FALSE)) -> 0 | K118: =IF(B118="","",VLOOKUP(D118,Severity!$A$4:$H$206,4,FALSE)*F118) -> 0 | U118: =IF(ISNUMBER(R118)=FALSE,"",Q118*10^6/VLOOKUP(P118,'Road Segments'!$A$14:$D$33,4)*('Traffic Information'!$C$8/5280)) -> 
A119: 3 | B119: 1 | C119: 1 | D119: EdgeOfMedian | E119: OL - ASUT | F119: 0.002449966348 | G119: 0.002449966348 | H119: 0 | I119: 3732.418796 | J119: =IF(B119="","",VLOOKUP(D119,Severity!$A$4:$H$206,3,FALSE)) -> 0 | K119: =IF(B119="","",VLOOKUP(D119,Severity!$A$4:$H$206,4,FALSE)*F119) -> 0 | U119: =IF(ISNUMBER(R119)=FALSE,"",Q119*10^6/VLOOKUP(P119,'Road Segments'!$A$14:$D$33,4)*('Traffic Information'!$C$8/5280)) -> 
A120: 3 | B120: 1 | C120: 2 | D120: EdgeOfMedian | E120: PL - PU | F120: 0.01723656832 | G120: 0.01723656832 | H120: 0 | I120: 1930.091806 | J120: =IF(B120="","",VLOOKUP(D120,Severity!$A$4:$H$206,3,FALSE)) -> 0 | K120: =IF(B120="","",VLOOKUP(D120,Severity!$A$4:$H$206,4,FALSE)*F120) -> 0 | U120: =IF(ISNUMBER(R120)=FALSE,"",Q120*10^6/VLOOKUP(P120,'Road Segments'!$A$14:$D$33,4)*('Traffic Information'!$C$8/5280)) -> 
A121: 3 | B121: 1 | C121: 2 | D121: EdgeOfMedian | E121: PL - M | F121: 0 | G121: 0 | H121: 0 | I121: 0 | J121: =IF(B121="","",VLOOKUP(D121,Severity!$A$4:$H$206,3,FALSE)) -> 0 | K121: =IF(B121="","",VLOOKUP(D121,Severity!$A$4:$H$206,4,FALSE)*F121) -> 0 | U121: =IF(ISNUMBER(R121)=FALSE,"",Q121*10^6/VLOOKUP(P121,'Road Segments'!$A$14:$D$33,4)*('Traffic Information'!$C$8/5280)) -> 
A122: 3 | B122: 1 | C122: 2 | D122: EdgeOfMedian | E122: PL - LTT | F122: 0 | G122: 0 | H122: 0 | I122: 0 | J122: =IF(B122="","",VLOOKUP(D122,Severity!$A$4:$H$206,3,FALSE)) -> 0 | K122: =IF(B122="","",VLOOKUP(D122,Severity!$A$4:$H$206,4,FALSE)*F122) -> 0 | U122: =IF(ISNUMBER(R122)=FALSE,"",Q122*10^6/VLOOKUP(P122,'Road Segments'!$A$14:$D$33,4)*('Traffic Information'!$C$8/5280)) -> 
A123: 3 | B123: 1 | C123: 2 | D123: EdgeOfMedian | E123: PL - LSUT | F123: 0 | G123: 0 | H123: 0 | I123: 0 | J123: =IF(B123="","",VLOOKUP(D123,Severity!$A$4:$H$206,3,FALSE)) -> 0 | K123: =IF(B123="","",VLOOKUP(D123,Severity!$A$4:$H$206,4,FALSE)*F123) -> 0 | U123: =IF(ISNUMBER(R123)=FALSE,"",Q123*10^6/VLOOKUP(P123,'Road Segments'!$A$14:$D$33,4)*('Traffic Information'!$C$8/5280)) -> 
A124: 3 | B124: 1 | C124: 2 | D124: EdgeOfMedian | E124: PL - HTT | F124: 0 | G124: 0 | H124: 0 | I124: 0 | J124: =IF(B124="","",VLOOKUP(D124,Severity!$A$4:$H$206,3,FALSE)) -> 0 | K124: =IF(B124="","",VLOOKUP(D124,Severity!$A$4:$H$206,4,FALSE)*F124) -> 0 | U124: =IF(ISNUMBER(R124)=FALSE,"",Q124*10^6/VLOOKUP(P124,'Road Segments'!$A$14:$D$33,4)*('Traffic Information'!$C$8/5280)) -> 
A125: 3 | B125: 1 | C125: 2 | D125: EdgeOfMedian | E125: PL - HSUT | F125: 0 | G125: 0 | H125: 0 | I125: 0 | J125: =IF(B125="","",VLOOKUP(D125,Severity!$A$4:$H$206,3,FALSE)) -> 0 | K125: =IF(B125="","",VLOOKUP(D125,Severity!$A$4:$H$206,4,FALSE)*F125) -> 0 | U125: =IF(ISNUMBER(R125)=FALSE,"",Q125*10^6/VLOOKUP(P125,'Road Segments'!$A$14:$D$33,4)*('Traffic Information'!$C$8/5280)) -> 
A126: 3 | B126: 1 | C126: 2 | D126: EdgeOfMedian | E126: PL - C | F126: 0.03467215356 | G126: 0.03467215356 | H126: 0 | I126: 4101.601451 | J126: =IF(B126="","",VLOOKUP(D126,Severity!$A$4:$H$206,3,FALSE)) -> 0 | K126: =IF(B126="","",VLOOKUP(D126,Severity!$A$4:$H$206,4,FALSE)*F126) -> 0 | U126: =IF(ISNUMBER(R126)=FALSE,"",Q126*10^6/VLOOKUP(P126,'Road Segments'!$A$14:$D$33,4)*('Traffic Information'!$C$8/5280)) -> 
A127: 3 | B127: 1 | C127: 2 | D127: EdgeOfMedian | E127: PL - ATT | F127: 0.005076439305 | G127: 0.005076439305 | H127: 0 | I127: 8069.903509 | J127: =IF(B127="","",VLOOKUP(D127,Severity!$A$4:$H$206,3,FALSE)) -> 0 | K127: =IF(B127="","",VLOOKUP(D127,Severity!$A$4:$H$206,4,FALSE)*F127) -> 0 | U127: =IF(ISNUMBER(R127)=FALSE,"",Q127*10^6/VLOOKUP(P127,'Road Segments'!$A$14:$D$33,4)*('Traffic Information'!$C$8/5280)) -> 
A128: 3 | B128: 1 | C128: 2 | D128: EdgeOfMedian | E128: PL - ASUT | F128: 0.002449966348 | G128: 0.002449966348 | H128: 0 | I128: 3732.418796 | J128: =IF(B128="","",VLOOKUP(D128,Severity!$A$4:$H$206,3,FALSE)) -> 0 | K128: =IF(B128="","",VLOOKUP(D128,Severity!$A$4:$H$206,4,FALSE)*F128) -> 0 | U128: =IF(ISNUMBER(R128)=FALSE,"",Q128*10^6/VLOOKUP(P128,'Road Segments'!$A$14:$D$33,4)*('Traffic Information'!$C$8/5280)) -> 
A129: 3 | B129: 1 | C129: 2 | D129: EdgeOfMedian | E129: OL - PU | F129: 0 | G129: 0 | H129: 0 | I129: 0 | J129: =IF(B129="","",VLOOKUP(D129,Severity!$A$4:$H$206,3,FALSE)) -> 0 | K129: =IF(B129="","",VLOOKUP(D129,Severity!$A$4:$H$206,4,FALSE)*F129) -> 0 | U129: =IF(ISNUMBER(R129)=FALSE,"",Q129*10^6/VLOOKUP(P129,'Road Segments'!$A$14:$D$33,4)*('Traffic Information'!$C$8/5280)) -> 
A130: 3 | B130: 1 | C130: 2 | D130: EdgeOfMedian | E130: OL - M | F130: 0 | G130: 0 | H130: 0 | I130: 0 | J130: =IF(B130="","",VLOOKUP(D130,Severity!$A$4:$H$206,3,FALSE)) -> 0 | K130: =IF(B130="","",VLOOKUP(D130,Severity!$A$4:$H$206,4,FALSE)*F130) -> 0 | U130: =IF(ISNUMBER(R130)=FALSE,"",Q130*10^6/VLOOKUP(P130,'Road Segments'!$A$14:$D$33,4)*('Traffic Information'!$C$8/5280)) -> 
A131: 3 | B131: 1 | C131: 2 | D131: EdgeOfMedian | E131: OL - LTT | F131: 0 | G131: 0 | H131: 0 | I131: 0 | J131: =IF(B131="","",VLOOKUP(D131,Severity!$A$4:$H$206,3,FALSE)) -> 0 | K131: =IF(B131="","",VLOOKUP(D131,Severity!$A$4:$H$206,4,FALSE)*F131) -> 0 | U131: =IF(ISNUMBER(R131)=FALSE,"",Q131*10^6/VLOOKUP(P131,'Road Segments'!$A$14:$D$33,4)*('Traffic Information'!$C$8/5280)) -> 
A132: 3 | B132: 1 | C132: 2 | D132: EdgeOfMedian | E132: OL - LSUT | F132: 0 | G132: 0 | H132: 0 | I132: 0 | J132: =IF(B132="","",VLOOKUP(D132,Severity!$A$4:$H$206,3,FALSE)) -> 0 | K132: =IF(B132="","",VLOOKUP(D132,Severity!$A$4:$H$206,4,FALSE)*F132) -> 0 | U132: =IF(ISNUMBER(R132)=FALSE,"",Q132*10^6/VLOOKUP(P132,'Road Segments'!$A$14:$D$33,4)*('Traffic Information'!$C$8/5280)) -> 
A133: 3 | B133: 1 | C133: 2 | D133: EdgeOfMedian | E133: OL - HTT | F133: 0 | G133: 0 | H133: 0 | I133: 0 | J133: =IF(B133="","",VLOOKUP(D133,Severity!$A$4:$H$206,3,FALSE)) -> 0 | K133: =IF(B133="","",VLOOKUP(D133,Severity!$A$4:$H$206,4,FALSE)*F133) -> 0 | U133: =IF(ISNUMBER(R133)=FALSE,"",Q133*10^6/VLOOKUP(P133,'Road Segments'!$A$14:$D$33,4)*('Traffic Information'!$C$8/5280)) -> 
A134: 3 | B134: 1 | C134: 2 | D134: EdgeOfMedian | E134: OL - HSUT | F134: 0 | G134: 0 | H134: 0 | I134: 0 | J134: =IF(B134="","",VLOOKUP(D134,Severity!$A$4:$H$206,3,FALSE)) -> 0 | K134: =IF(B134="","",VLOOKUP(D134,Severity!$A$4:$H$206,4,FALSE)*F134) -> 0 | U134: =IF(ISNUMBER(R134)=FALSE,"",Q134*10^6/VLOOKUP(P134,'Road Segments'!$A$14:$D$33,4)*('Traffic Information'!$C$8/5280)) -> 
A135: 3 | B135: 1 | C135: 2 | D135: EdgeOfMedian | E135: OL - C | F135: 0 | G135: 0 | H135: 0 | I135: 0 | J135: =IF(B135="","",VLOOKUP(D135,Severity!$A$4:$H$206,3,FALSE)) -> 0 | K135: =IF(B135="","",VLOOKUP(D135,Severity!$A$4:$H$206,4,FALSE)*F135) -> 0 | U135: =IF(ISNUMBER(R135)=FALSE,"",Q135*10^6/VLOOKUP(P135,'Road Segments'!$A$14:$D$33,4)*('Traffic Information'!$C$8/5280)) -> 
A136: 3 | B136: 1 | C136: 2 | D136: EdgeOfMedian | E136: OL - ATT | F136: 0 | G136: 0 | H136: 0 | I136: 0 | J136: =IF(B136="","",VLOOKUP(D136,Severity!$A$4:$H$206,3,FALSE)) -> 0 | K136: =IF(B136="","",VLOOKUP(D136,Severity!$A$4:$H$206,4,FALSE)*F136) -> 0 | U136: =IF(ISNUMBER(R136)=FALSE,"",Q136*10^6/VLOOKUP(P136,'Road Segments'!$A$14:$D$33,4)*('Traffic Information'!$C$8/5280)) -> 
A137: 3 | B137: 1 | C137: 2 | D137: EdgeOfMedian | E137: OL - ASUT | F137: 0 | G137: 0 | H137: 0 | I137: 0 | J137: =IF(B137="","",VLOOKUP(D137,Severity!$A$4:$H$206,3,FALSE)) -> 0 | K137: =IF(B137="","",VLOOKUP(D137,Severity!$A$4:$H$206,4,FALSE)*F137) -> 0 | U137: =IF(ISNUMBER(R137)=FALSE,"",Q137*10^6/VLOOKUP(P137,'Road Segments'!$A$14:$D$33,4)*('Traffic Information'!$C$8/5280)) -> 
A138: 3 | B138: 1 | C138: 3 | D138: TL3+NJShapeMB | E138: PL - PU | F138: 0.5175153853 | G138: 0.01732170145 | H138: 0.01025523529 | I138: 6351.988988 | J138: =IF(B138="","",VLOOKUP(D138,Severity!$A$4:$H$206,3,FALSE)) -> 0 | K138: =IF(B138="","",VLOOKUP(D138,Severity!$A$4:$H$206,4,FALSE)*F138) -> 51.75153853 | U138: =IF(ISNUMBER(R138)=FALSE,"",Q138*10^6/VLOOKUP(P138,'Road Segments'!$A$14:$D$33,4)*('Traffic Information'!$C$8/5280)) -> 
A139: 3 | B139: 1 | C139: 3 | D139: TL3+NJShapeMB | E139: PL - M | F139: 0 | G139: 0 | H139: 0 | I139: 0 | J139: =IF(B139="","",VLOOKUP(D139,Severity!$A$4:$H$206,3,FALSE)) -> 0 | K139: =IF(B139="","",VLOOKUP(D139,Severity!$A$4:$H$206,4,FALSE)*F139) -> 0 | U139: =IF(ISNUMBER(R139)=FALSE,"",Q139*10^6/VLOOKUP(P139,'Road Segments'!$A$14:$D$33,4)*('Traffic Information'!$C$8/5280)) -> 
A140: 3 | B140: 1 | C140: 3 | D140: TL3+NJShapeMB | E140: PL - LTT | F140: 0 | G140: 0 | H140: 0 | I140: 0 | J140: =IF(B140="","",VLOOKUP(D140,Severity!$A$4:$H$206,3,FALSE)) -> 0 | K140: =IF(B140="","",VLOOKUP(D140,Severity!$A$4:$H$206,4,FALSE)*F140) -> 0 | U140: =IF(ISNUMBER(R140)=FALSE,"",Q140*10^6/VLOOKUP(P140,'Road Segments'!$A$14:$D$33,4)*('Traffic Information'!$C$8/5280)) ->  | CF140: =IF(BU140<>"",SUM(CB140:CE140),"") -> 
A141: 3 | B141: 1 | C141: 3 | D141: TL3+NJShapeMB | E141: PL - LSUT | F141: 0 | G141: 0 | H141: 0 | I141: 0 | J141: =IF(B141="","",VLOOKUP(D141,Severity!$A$4:$H$206,3,FALSE)) -> 0 | K141: =IF(B141="","",VLOOKUP(D141,Severity!$A$4:$H$206,4,FALSE)*F141) -> 0 | U141: =IF(ISNUMBER(R141)=FALSE,"",Q141*10^6/VLOOKUP(P141,'Road Segments'!$A$14:$D$33,4)*('Traffic Information'!$C$8/5280)) -> 
A142: 3 | B142: 1 | C142: 3 | D142: TL3+NJShapeMB | E142: PL - HTT | F142: 0 | G142: 0 | H142: 0 | I142: 0 | J142: =IF(B142="","",VLOOKUP(D142,Severity!$A$4:$H$206,3,FALSE)) -> 0 | K142: =IF(B142="","",VLOOKUP(D142,Severity!$A$4:$H$206,4,FALSE)*F142) -> 0 | U142: =IF(ISNUMBER(R142)=FALSE,"",Q142*10^6/VLOOKUP(P142,'Road Segments'!$A$14:$D$33,4)*('Traffic Information'!$C$8/5280)) ->  | CB142: =IF(BX142<>"",1-BINOMDIST(1,BX$10,BX142,TRUE),"") ->  | CC142: =IF(BY142<>"",1-BINOMDIST(1,BY$10,BY142,TRUE),"") ->  | CD142: =IF(BZ142<>"",1-BINOMDIST(1,BZ$10,BZ142,TRUE),"") ->  | CE142: =IF(CA142<>"",1-BINOMDIST(1,CA$10,CA142,TRUE),"") -> 
A143: 3 | B143: 1 | C143: 3 | D143: TL3+NJShapeMB | E143: PL - HSUT | F143: 0 | G143: 0 | H143: 0 | I143: 0 | J143: =IF(B143="","",VLOOKUP(D143,Severity!$A$4:$H$206,3,FALSE)) -> 0 | K143: =IF(B143="","",VLOOKUP(D143,Severity!$A$4:$H$206,4,FALSE)*F143) -> 0 | U143: =IF(ISNUMBER(R143)=FALSE,"",Q143*10^6/VLOOKUP(P143,'Road Segments'!$A$14:$D$33,4)*('Traffic Information'!$C$8/5280)) -> 
A144: 3 | B144: 1 | C144: 3 | D144: TL3+NJShapeMB | E144: PL - C | F144: 1.552546156 | G144: 0.03482873482 | H144: 0.03105092312 | I144: 19060.67032 | J144: =IF(B144="","",VLOOKUP(D144,Severity!$A$4:$H$206,3,FALSE)) -> 0 | K144: =IF(B144="","",VLOOKUP(D144,Severity!$A$4:$H$206,4,FALSE)*F144) -> 155.2546156 | U144: =IF(ISNUMBER(R144)=FALSE,"",Q144*10^6/VLOOKUP(P144,'Road Segments'!$A$14:$D$33,4)*('Traffic Information'!$C$8/5280)) -> 
A145: 3 | B145: 1 | C145: 3 | D145: TL3+NJShapeMB | E145: PL - ATT | F145: 0.1064834486 | G145: 0.005096914934 | H145: 0.01402916696 | I145: 24492.21342 | J145: =IF(B145="","",VLOOKUP(D145,Severity!$A$4:$H$206,3,FALSE)) -> 0 | K145: =IF(B145="","",VLOOKUP(D145,Severity!$A$4:$H$206,4,FALSE)*F145) -> 10.64834486 | U145: =IF(ISNUMBER(R145)=FALSE,"",Q145*10^6/VLOOKUP(P145,'Road Segments'!$A$14:$D$33,4)*('Traffic Information'!$C$8/5280)) -> 
A146: 3 | B146: 1 | C146: 3 | D146: TL3+NJShapeMB | E146: PL - ASUT | F146: 0.07562653929 | G146: 0.003760101309 | H146: 0.0002116767215 | I146: 8380.14235 | J146: =IF(B146="","",VLOOKUP(D146,Severity!$A$4:$H$206,3,FALSE)) -> 0 | K146: =IF(B146="","",VLOOKUP(D146,Severity!$A$4:$H$206,4,FALSE)*F146) -> 7.562653929 | U146: =IF(ISNUMBER(R146)=FALSE,"",Q146*10^6/VLOOKUP(P146,'Road Segments'!$A$14:$D$33,4)*('Traffic Information'!$C$8/5280)) -> 
A147: 3 | B147: 1 | C147: 3 | D147: TL3+NJShapeMB | E147: OL - PU | F147: 0.5175156948 | G147: 0.01732170145 | H147: 0.01025524148 | I147: 6351.989203 | J147: =IF(B147="","",VLOOKUP(D147,Severity!$A$4:$H$206,3,FALSE)) -> 0 | K147: =IF(B147="","",VLOOKUP(D147,Severity!$A$4:$H$206,4,FALSE)*F147) -> 51.75156948 | U147: =IF(ISNUMBER(R147)=FALSE,"",Q147*10^6/VLOOKUP(P147,'Road Segments'!$A$14:$D$33,4)*('Traffic Information'!$C$8/5280)) -> 
A148: 3 | B148: 1 | C148: 3 | D148: TL3+NJShapeMB | E148: OL - M | F148: 0 | G148: 0 | H148: 0 | I148: 0 | J148: =IF(B148="","",VLOOKUP(D148,Severity!$A$4:$H$206,3,FALSE)) -> 0 | K148: =IF(B148="","",VLOOKUP(D148,Severity!$A$4:$H$206,4,FALSE)*F148) -> 0 | U148: =IF(ISNUMBER(R148)=FALSE,"",Q148*10^6/VLOOKUP(P148,'Road Segments'!$A$14:$D$33,4)*('Traffic Information'!$C$8/5280)) -> 
A149: 3 | B149: 1 | C149: 3 | D149: TL3+NJShapeMB | E149: OL - LTT | F149: 0 | G149: 0 | H149: 0 | I149: 0 | J149: =IF(B149="","",VLOOKUP(D149,Severity!$A$4:$H$206,3,FALSE)) -> 0 | K149: =IF(B149="","",VLOOKUP(D149,Severity!$A$4:$H$206,4,FALSE)*F149) -> 0 | U149: =IF(ISNUMBER(R149)=FALSE,"",Q149*10^6/VLOOKUP(P149,'Road Segments'!$A$14:$D$33,4)*('Traffic Information'!$C$8/5280)) -> 
A150: 3 | B150: 1 | C150: 3 | D150: TL3+NJShapeMB | E150: OL - LSUT | F150: 0 | G150: 0 | H150: 0 | I150: 0 | J150: =IF(B150="","",VLOOKUP(D150,Severity!$A$4:$H$206,3,FALSE)) -> 0 | K150: =IF(B150="","",VLOOKUP(D150,Severity!$A$4:$H$206,4,FALSE)*F150) -> 0 | U150: =IF(ISNUMBER(R150)=FALSE,"",Q150*10^6/VLOOKUP(P150,'Road Segments'!$A$14:$D$33,4)*('Traffic Information'!$C$8/5280)) -> 
A151: 3 | B151: 1 | C151: 3 | D151: TL3+NJShapeMB | E151: OL - HTT | F151: 0 | G151: 0 | H151: 0 | I151: 0 | J151: =IF(B151="","",VLOOKUP(D151,Severity!$A$4:$H$206,3,FALSE)) -> 0 | K151: =IF(B151="","",VLOOKUP(D151,Severity!$A$4:$H$206,4,FALSE)*F151) -> 0 | U151: =IF(ISNUMBER(R151)=FALSE,"",Q151*10^6/VLOOKUP(P151,'Road Segments'!$A$14:$D$33,4)*('Traffic Information'!$C$8/5280)) -> 
A152: 3 | B152: 1 | C152: 3 | D152: TL3+NJShapeMB | E152: OL - HSUT | F152: 0 | G152: 0 | H152: 0 | I152: 0 | J152: =IF(B152="","",VLOOKUP(D152,Severity!$A$4:$H$206,3,FALSE)) -> 0 | K152: =IF(B152="","",VLOOKUP(D152,Severity!$A$4:$H$206,4,FALSE)*F152) -> 0 | U152: =IF(ISNUMBER(R152)=FALSE,"",Q152*10^6/VLOOKUP(P152,'Road Segments'!$A$14:$D$33,4)*('Traffic Information'!$C$8/5280)) -> 
A153: 3 | B153: 1 | C153: 3 | D153: TL3+NJShapeMB | E153: OL - C | F153: 1.552547084 | G153: 0.03482873482 | H153: 0.03105094169 | I153: 19060.67097 | J153: =IF(B153="","",VLOOKUP(D153,Severity!$A$4:$H$206,3,FALSE)) -> 0 | K153: =IF(B153="","",VLOOKUP(D153,Severity!$A$4:$H$206,4,FALSE)*F153) -> 155.2547084 | U153: =IF(ISNUMBER(R153)=FALSE,"",Q153*10^6/VLOOKUP(P153,'Road Segments'!$A$14:$D$33,4)*('Traffic Information'!$C$8/5280)) -> 
A154: 3 | B154: 1 | C154: 3 | D154: TL3+NJShapeMB | E154: OL - ATT | F154: 0.1064834486 | G154: 0.005096914934 | H154: 0.01402916696 | I154: 24492.21342 | J154: =IF(B154="","",VLOOKUP(D154,Severity!$A$4:$H$206,3,FALSE)) -> 0 | K154: =IF(B154="","",VLOOKUP(D154,Severity!$A$4:$H$206,4,FALSE)*F154) -> 10.64834486 | U154: =IF(ISNUMBER(R154)=FALSE,"",Q154*10^6/VLOOKUP(P154,'Road Segments'!$A$14:$D$33,4)*('Traffic Information'!$C$8/5280)) -> 
A155: 3 | B155: 1 | C155: 3 | D155: TL3+NJShapeMB | E155: OL - ASUT | F155: 0.07562653929 | G155: 0.003760101309 | H155: 0.0002116767215 | I155: 8380.14235 | J155: =IF(B155="","",VLOOKUP(D155,Severity!$A$4:$H$206,3,FALSE)) -> 0 | K155: =IF(B155="","",VLOOKUP(D155,Severity!$A$4:$H$206,4,FALSE)*F155) -> 7.562653929 | U155: =IF(ISNUMBER(R155)=FALSE,"",Q155*10^6/VLOOKUP(P155,'Road Segments'!$A$14:$D$33,4)*('Traffic Information'!$C$8/5280)) -> 
A156: 4 | D156: ALTERNATIVE 4 | J156: =IF(B156="","",VLOOKUP(D156,Severity!$A$4:$H$206,3,FALSE)) ->  | K156: =IF(B156="","",VLOOKUP(D156,Severity!$A$4:$H$206,4,FALSE)*F156) ->  | U156: =IF(ISNUMBER(R156)=FALSE,"",Q156*10^6/VLOOKUP(P156,'Road Segments'!$A$14:$D$33,4)*('Traffic Information'!$C$8/5280)) -> 
A157: 4 | B157: 1 | C157: 1 | D157: EdgeOfMedian | E157: PL - PU | F157: 0 | G157: 0 | H157: 0 | I157: 0 | J157: =IF(B157="","",VLOOKUP(D157,Severity!$A$4:$H$206,3,FALSE)) -> 0 | K157: =IF(B157="","",VLOOKUP(D157,Severity!$A$4:$H$206,4,FALSE)*F157) -> 0 | U157: =IF(ISNUMBER(R157)=FALSE,"",Q157*10^6/VLOOKUP(P157,'Road Segments'!$A$14:$D$33,4)*('Traffic Information'!$C$8/5280)) -> 
A158: 4 | B158: 1 | C158: 1 | D158: EdgeOfMedian | E158: PL - M | F158: 0 | G158: 0 | H158: 0 | I158: 0 | J158: =IF(B158="","",VLOOKUP(D158,Severity!$A$4:$H$206,3,FALSE)) -> 0 | K158: =IF(B158="","",VLOOKUP(D158,Severity!$A$4:$H$206,4,FALSE)*F158) -> 0 | U158: =IF(ISNUMBER(R158)=FALSE,"",Q158*10^6/VLOOKUP(P158,'Road Segments'!$A$14:$D$33,4)*('Traffic Information'!$C$8/5280)) -> 
A159: 4 | B159: 1 | C159: 1 | D159: EdgeOfMedian | E159: PL - LTT | F159: 0 | G159: 0 | H159: 0 | I159: 0 | J159: =IF(B159="","",VLOOKUP(D159,Severity!$A$4:$H$206,3,FALSE)) -> 0 | K159: =IF(B159="","",VLOOKUP(D159,Severity!$A$4:$H$206,4,FALSE)*F159) -> 0 | U159: =IF(ISNUMBER(R159)=FALSE,"",Q159*10^6/VLOOKUP(P159,'Road Segments'!$A$14:$D$33,4)*('Traffic Information'!$C$8/5280)) -> 
A160: 4 | B160: 1 | C160: 1 | D160: EdgeOfMedian | E160: PL - LSUT | F160: 0 | G160: 0 | H160: 0 | I160: 0 | J160: =IF(B160="","",VLOOKUP(D160,Severity!$A$4:$H$206,3,FALSE)) -> 0 | K160: =IF(B160="","",VLOOKUP(D160,Severity!$A$4:$H$206,4,FALSE)*F160) -> 0 | U160: =IF(ISNUMBER(R160)=FALSE,"",Q160*10^6/VLOOKUP(P160,'Road Segments'!$A$14:$D$33,4)*('Traffic Information'!$C$8/5280)) -> 
A161: 4 | B161: 1 | C161: 1 | D161: EdgeOfMedian | E161: PL - HTT | F161: 0 | G161: 0 | H161: 0 | I161: 0 | J161: =IF(B161="","",VLOOKUP(D161,Severity!$A$4:$H$206,3,FALSE)) -> 0 | K161: =IF(B161="","",VLOOKUP(D161,Severity!$A$4:$H$206,4,FALSE)*F161) -> 0 | U161: =IF(ISNUMBER(R161)=FALSE,"",Q161*10^6/VLOOKUP(P161,'Road Segments'!$A$14:$D$33,4)*('Traffic Information'!$C$8/5280)) -> 
A162: 4 | B162: 1 | C162: 1 | D162: EdgeOfMedian | E162: PL - HSUT | F162: 0 | G162: 0 | H162: 0 | I162: 0 | J162: =IF(B162="","",VLOOKUP(D162,Severity!$A$4:$H$206,3,FALSE)) -> 0 | K162: =IF(B162="","",VLOOKUP(D162,Severity!$A$4:$H$206,4,FALSE)*F162) -> 0 | U162: =IF(ISNUMBER(R162)=FALSE,"",Q162*10^6/VLOOKUP(P162,'Road Segments'!$A$14:$D$33,4)*('Traffic Information'!$C$8/5280)) -> 
A163: 4 | B163: 1 | C163: 1 | D163: EdgeOfMedian | E163: PL - C | F163: 0 | G163: 0 | H163: 0 | I163: 0 | J163: =IF(B163="","",VLOOKUP(D163,Severity!$A$4:$H$206,3,FALSE)) -> 0 | K163: =IF(B163="","",VLOOKUP(D163,Severity!$A$4:$H$206,4,FALSE)*F163) -> 0 | U163: =IF(ISNUMBER(R163)=FALSE,"",Q163*10^6/VLOOKUP(P163,'Road Segments'!$A$14:$D$33,4)*('Traffic Information'!$C$8/5280)) -> 
A164: 4 | B164: 1 | C164: 1 | D164: EdgeOfMedian | E164: PL - ATT | F164: 0 | G164: 0 | H164: 0 | I164: 0 | J164: =IF(B164="","",VLOOKUP(D164,Severity!$A$4:$H$206,3,FALSE)) -> 0 | K164: =IF(B164="","",VLOOKUP(D164,Severity!$A$4:$H$206,4,FALSE)*F164) -> 0 | U164: =IF(ISNUMBER(R164)=FALSE,"",Q164*10^6/VLOOKUP(P164,'Road Segments'!$A$14:$D$33,4)*('Traffic Information'!$C$8/5280)) -> 
A165: 4 | B165: 1 | C165: 1 | D165: EdgeOfMedian | E165: PL - ASUT | F165: 0 | G165: 0 | H165: 0 | I165: 0 | J165: =IF(B165="","",VLOOKUP(D165,Severity!$A$4:$H$206,3,FALSE)) -> 0 | K165: =IF(B165="","",VLOOKUP(D165,Severity!$A$4:$H$206,4,FALSE)*F165) -> 0 | U165: =IF(ISNUMBER(R165)=FALSE,"",Q165*10^6/VLOOKUP(P165,'Road Segments'!$A$14:$D$33,4)*('Traffic Information'!$C$8/5280)) -> 
A166: 4 | B166: 1 | C166: 1 | D166: EdgeOfMedian | E166: OL - PU | F166: 0 | G166: 0 | H166: 0 | I166: 0 | J166: =IF(B166="","",VLOOKUP(D166,Severity!$A$4:$H$206,3,FALSE)) -> 0 | K166: =IF(B166="","",VLOOKUP(D166,Severity!$A$4:$H$206,4,FALSE)*F166) -> 0 | U166: =IF(ISNUMBER(R166)=FALSE,"",Q166*10^6/VLOOKUP(P166,'Road Segments'!$A$14:$D$33,4)*('Traffic Information'!$C$8/5280)) -> 
A167: 4 | B167: 1 | C167: 1 | D167: EdgeOfMedian | E167: OL - M | F167: 0 | G167: 0 | H167: 0 | I167: 0 | J167: =IF(B167="","",VLOOKUP(D167,Severity!$A$4:$H$206,3,FALSE)) -> 0 | K167: =IF(B167="","",VLOOKUP(D167,Severity!$A$4:$H$206,4,FALSE)*F167) -> 0 | U167: =IF(ISNUMBER(R167)=FALSE,"",Q167*10^6/VLOOKUP(P167,'Road Segments'!$A$14:$D$33,4)*('Traffic Information'!$C$8/5280)) -> 
A168: 4 | B168: 1 | C168: 1 | D168: EdgeOfMedian | E168: OL - LTT | F168: 0 | G168: 0 | H168: 0 | I168: 0 | J168: =IF(B168="","",VLOOKUP(D168,Severity!$A$4:$H$206,3,FALSE)) -> 0 | K168: =IF(B168="","",VLOOKUP(D168,Severity!$A$4:$H$206,4,FALSE)*F168) -> 0 | U168: =IF(ISNUMBER(R168)=FALSE,"",Q168*10^6/VLOOKUP(P168,'Road Segments'!$A$14:$D$33,4)*('Traffic Information'!$C$8/5280)) -> 
A169: 4 | B169: 1 | C169: 1 | D169: EdgeOfMedian | E169: OL - LSUT | F169: 0 | G169: 0 | H169: 0 | I169: 0 | J169: =IF(B169="","",VLOOKUP(D169,Severity!$A$4:$H$206,3,FALSE)) -> 0 | K169: =IF(B169="","",VLOOKUP(D169,Severity!$A$4:$H$206,4,FALSE)*F169) -> 0 | U169: =IF(ISNUMBER(R169)=FALSE,"",Q169*10^6/VLOOKUP(P169,'Road Segments'!$A$14:$D$33,4)*('Traffic Information'!$C$8/5280)) -> 
A170: 4 | B170: 1 | C170: 1 | D170: EdgeOfMedian | E170: OL - HTT | F170: 0 | G170: 0 | H170: 0 | I170: 0 | J170: =IF(B170="","",VLOOKUP(D170,Severity!$A$4:$H$206,3,FALSE)) -> 0 | K170: =IF(B170="","",VLOOKUP(D170,Severity!$A$4:$H$206,4,FALSE)*F170) -> 0 | U170: =IF(ISNUMBER(R170)=FALSE,"",Q170*10^6/VLOOKUP(P170,'Road Segments'!$A$14:$D$33,4)*('Traffic Information'!$C$8/5280)) -> 
A171: 4 | B171: 1 | C171: 1 | D171: EdgeOfMedian | E171: OL - HSUT | F171: 0 | G171: 0 | H171: 0 | I171: 0 | J171: =IF(B171="","",VLOOKUP(D171,Severity!$A$4:$H$206,3,FALSE)) -> 0 | K171: =IF(B171="","",VLOOKUP(D171,Severity!$A$4:$H$206,4,FALSE)*F171) -> 0 | U171: =IF(ISNUMBER(R171)=FALSE,"",Q171*10^6/VLOOKUP(P171,'Road Segments'!$A$14:$D$33,4)*('Traffic Information'!$C$8/5280)) -> 
A172: 4 | B172: 1 | C172: 1 | D172: EdgeOfMedian | E172: OL - C | F172: 0 | G172: 0 | H172: 0 | I172: 0 | J172: =IF(B172="","",VLOOKUP(D172,Severity!$A$4:$H$206,3,FALSE)) -> 0 | K172: =IF(B172="","",VLOOKUP(D172,Severity!$A$4:$H$206,4,FALSE)*F172) -> 0 | U172: =IF(ISNUMBER(R172)=FALSE,"",Q172*10^6/VLOOKUP(P172,'Road Segments'!$A$14:$D$33,4)*('Traffic Information'!$C$8/5280)) -> 
A173: 4 | B173: 1 | C173: 1 | D173: EdgeOfMedian | E173: OL - ATT | F173: 0 | G173: 0 | H173: 0 | I173: 0 | J173: =IF(B173="","",VLOOKUP(D173,Severity!$A$4:$H$206,3,FALSE)) -> 0 | K173: =IF(B173="","",VLOOKUP(D173,Severity!$A$4:$H$206,4,FALSE)*F173) -> 0 | U173: =IF(ISNUMBER(R173)=FALSE,"",Q173*10^6/VLOOKUP(P173,'Road Segments'!$A$14:$D$33,4)*('Traffic Information'!$C$8/5280)) -> 
A174: 4 | B174: 1 | C174: 1 | D174: EdgeOfMedian | E174: OL - ASUT | F174: 0 | G174: 0 | H174: 0 | I174: 0 | J174: =IF(B174="","",VLOOKUP(D174,Severity!$A$4:$H$206,3,FALSE)) -> 0 | K174: =IF(B174="","",VLOOKUP(D174,Severity!$A$4:$H$206,4,FALSE)*F174) -> 0 | U174: =IF(ISNUMBER(R174)=FALSE,"",Q174*10^6/VLOOKUP(P174,'Road Segments'!$A$14:$D$33,4)*('Traffic Information'!$C$8/5280)) -> 
A175: 4 | B175: 1 | C175: 2 | D175: EdgeOfMedian | E175: PL - PU | F175: 0 | G175: 0 | H175: 0 | I175: 0 | J175: =IF(B175="","",VLOOKUP(D175,Severity!$A$4:$H$206,3,FALSE)) -> 0 | K175: =IF(B175="","",VLOOKUP(D175,Severity!$A$4:$H$206,4,FALSE)*F175) -> 0 | U175: =IF(ISNUMBER(R175)=FALSE,"",Q175*10^6/VLOOKUP(P175,'Road Segments'!$A$14:$D$33,4)*('Traffic Information'!$C$8/5280)) -> 
A176: 4 | B176: 1 | C176: 2 | D176: EdgeOfMedian | E176: PL - M | F176: 0 | G176: 0 | H176: 0 | I176: 0 | J176: =IF(B176="","",VLOOKUP(D176,Severity!$A$4:$H$206,3,FALSE)) -> 0 | K176: =IF(B176="","",VLOOKUP(D176,Severity!$A$4:$H$206,4,FALSE)*F176) -> 0 | U176: =IF(ISNUMBER(R176)=FALSE,"",Q176*10^6/VLOOKUP(P176,'Road Segments'!$A$14:$D$33,4)*('Traffic Information'!$C$8/5280)) -> 
A177: 4 | B177: 1 | C177: 2 | D177: EdgeOfMedian | E177: PL - LTT | F177: 0 | G177: 0 | H177: 0 | I177: 0 | J177: =IF(B177="","",VLOOKUP(D177,Severity!$A$4:$H$206,3,FALSE)) -> 0 | K177: =IF(B177="","",VLOOKUP(D177,Severity!$A$4:$H$206,4,FALSE)*F177) -> 0 | U177: =IF(ISNUMBER(R177)=FALSE,"",Q177*10^6/VLOOKUP(P177,'Road Segments'!$A$14:$D$33,4)*('Traffic Information'!$C$8/5280)) -> 
A178: 4 | B178: 1 | C178: 2 | D178: EdgeOfMedian | E178: PL - LSUT | F178: 0 | G178: 0 | H178: 0 | I178: 0 | J178: =IF(B178="","",VLOOKUP(D178,Severity!$A$4:$H$206,3,FALSE)) -> 0 | K178: =IF(B178="","",VLOOKUP(D178,Severity!$A$4:$H$206,4,FALSE)*F178) -> 0 | U178: =IF(ISNUMBER(R178)=FALSE,"",Q178*10^6/VLOOKUP(P178,'Road Segments'!$A$14:$D$33,4)*('Traffic Information'!$C$8/5280)) -> 
A179: 4 | B179: 1 | C179: 2 | D179: EdgeOfMedian | E179: PL - HTT | F179: 0 | G179: 0 | H179: 0 | I179: 0 | J179: =IF(B179="","",VLOOKUP(D179,Severity!$A$4:$H$206,3,FALSE)) -> 0 | K179: =IF(B179="","",VLOOKUP(D179,Severity!$A$4:$H$206,4,FALSE)*F179) -> 0 | U179: =IF(ISNUMBER(R179)=FALSE,"",Q179*10^6/VLOOKUP(P179,'Road Segments'!$A$14:$D$33,4)*('Traffic Information'!$C$8/5280)) -> 
A180: 4 | B180: 1 | C180: 2 | D180: EdgeOfMedian | E180: PL - HSUT | F180: 0 | G180: 0 | H180: 0 | I180: 0 | J180: =IF(B180="","",VLOOKUP(D180,Severity!$A$4:$H$206,3,FALSE)) -> 0 | K180: =IF(B180="","",VLOOKUP(D180,Severity!$A$4:$H$206,4,FALSE)*F180) -> 0 | U180: =IF(ISNUMBER(R180)=FALSE,"",Q180*10^6/VLOOKUP(P180,'Road Segments'!$A$14:$D$33,4)*('Traffic Information'!$C$8/5280)) -> 
A181: 4 | B181: 1 | C181: 2 | D181: EdgeOfMedian | E181: PL - C | F181: 0 | G181: 0 | H181: 0 | I181: 0 | J181: =IF(B181="","",VLOOKUP(D181,Severity!$A$4:$H$206,3,FALSE)) -> 0 | K181: =IF(B181="","",VLOOKUP(D181,Severity!$A$4:$H$206,4,FALSE)*F181) -> 0 | U181: =IF(ISNUMBER(R181)=FALSE,"",Q181*10^6/VLOOKUP(P181,'Road Segments'!$A$14:$D$33,4)*('Traffic Information'!$C$8/5280)) -> 
A182: 4 | B182: 1 | C182: 2 | D182: EdgeOfMedian | E182: PL - ATT | F182: 0 | G182: 0 | H182: 0 | I182: 0 | J182: =IF(B182="","",VLOOKUP(D182,Severity!$A$4:$H$206,3,FALSE)) -> 0 | K182: =IF(B182="","",VLOOKUP(D182,Severity!$A$4:$H$206,4,FALSE)*F182) -> 0 | U182: =IF(ISNUMBER(R182)=FALSE,"",Q182*10^6/VLOOKUP(P182,'Road Segments'!$A$14:$D$33,4)*('Traffic Information'!$C$8/5280)) -> 
A183: 4 | B183: 1 | C183: 2 | D183: EdgeOfMedian | E183: PL - ASUT | F183: 0 | G183: 0 | H183: 0 | I183: 0 | J183: =IF(B183="","",VLOOKUP(D183,Severity!$A$4:$H$206,3,FALSE)) -> 0 | K183: =IF(B183="","",VLOOKUP(D183,Severity!$A$4:$H$206,4,FALSE)*F183) -> 0 | U183: =IF(ISNUMBER(R183)=FALSE,"",Q183*10^6/VLOOKUP(P183,'Road Segments'!$A$14:$D$33,4)*('Traffic Information'!$C$8/5280)) -> 
A184: 4 | B184: 1 | C184: 2 | D184: EdgeOfMedian | E184: OL - PU | F184: 0 | G184: 0 | H184: 0 | I184: 0 | J184: =IF(B184="","",VLOOKUP(D184,Severity!$A$4:$H$206,3,FALSE)) -> 0 | K184: =IF(B184="","",VLOOKUP(D184,Severity!$A$4:$H$206,4,FALSE)*F184) -> 0 | U184: =IF(ISNUMBER(R184)=FALSE,"",Q184*10^6/VLOOKUP(P184,'Road Segments'!$A$14:$D$33,4)*('Traffic Information'!$C$8/5280)) -> 
A185: 4 | B185: 1 | C185: 2 | D185: EdgeOfMedian | E185: OL - M | F185: 0 | G185: 0 | H185: 0 | I185: 0 | J185: =IF(B185="","",VLOOKUP(D185,Severity!$A$4:$H$206,3,FALSE)) -> 0 | K185: =IF(B185="","",VLOOKUP(D185,Severity!$A$4:$H$206,4,FALSE)*F185) -> 0 | U185: =IF(ISNUMBER(R185)=FALSE,"",Q185*10^6/VLOOKUP(P185,'Road Segments'!$A$14:$D$33,4)*('Traffic Information'!$C$8/5280)) -> 
A186: 4 | B186: 1 | C186: 2 | D186: EdgeOfMedian | E186: OL - LTT | F186: 0 | G186: 0 | H186: 0 | I186: 0 | J186: =IF(B186="","",VLOOKUP(D186,Severity!$A$4:$H$206,3,FALSE)) -> 0 | K186: =IF(B186="","",VLOOKUP(D186,Severity!$A$4:$H$206,4,FALSE)*F186) -> 0 | U186: =IF(ISNUMBER(R186)=FALSE,"",Q186*10^6/VLOOKUP(P186,'Road Segments'!$A$14:$D$33,4)*('Traffic Information'!$C$8/5280)) -> 
A187: 4 | B187: 1 | C187: 2 | D187: EdgeOfMedian | E187: OL - LSUT | F187: 0 | G187: 0 | H187: 0 | I187: 0 | J187: =IF(B187="","",VLOOKUP(D187,Severity!$A$4:$H$206,3,FALSE)) -> 0 | K187: =IF(B187="","",VLOOKUP(D187,Severity!$A$4:$H$206,4,FALSE)*F187) -> 0 | U187: =IF(ISNUMBER(R187)=FALSE,"",Q187*10^6/VLOOKUP(P187,'Road Segments'!$A$14:$D$33,4)*('Traffic Information'!$C$8/5280)) -> 
A188: 4 | B188: 1 | C188: 2 | D188: EdgeOfMedian | E188: OL - HTT | F188: 0 | G188: 0 | H188: 0 | I188: 0 | J188: =IF(B188="","",VLOOKUP(D188,Severity!$A$4:$H$206,3,FALSE)) -> 0 | K188: =IF(B188="","",VLOOKUP(D188,Severity!$A$4:$H$206,4,FALSE)*F188) -> 0 | U188: =IF(ISNUMBER(R188)=FALSE,"",Q188*10^6/VLOOKUP(P188,'Road Segments'!$A$14:$D$33,4)*('Traffic Information'!$C$8/5280)) -> 
A189: 4 | B189: 1 | C189: 2 | D189: EdgeOfMedian | E189: OL - HSUT | F189: 0 | G189: 0 | H189: 0 | I189: 0 | J189: =IF(B189="","",VLOOKUP(D189,Severity!$A$4:$H$206,3,FALSE)) -> 0 | K189: =IF(B189="","",VLOOKUP(D189,Severity!$A$4:$H$206,4,FALSE)*F189) -> 0 | U189: =IF(ISNUMBER(R189)=FALSE,"",Q189*10^6/VLOOKUP(P189,'Road Segments'!$A$14:$D$33,4)*('Traffic Information'!$C$8/5280)) -> 
A190: 4 | B190: 1 | C190: 2 | D190: EdgeOfMedian | E190: OL - C | F190: 0 | G190: 0 | H190: 0 | I190: 0 | J190: =IF(B190="","",VLOOKUP(D190,Severity!$A$4:$H$206,3,FALSE)) -> 0 | K190: =IF(B190="","",VLOOKUP(D190,Severity!$A$4:$H$206,4,FALSE)*F190) -> 0 | U190: =IF(ISNUMBER(R190)=FALSE,"",Q190*10^6/VLOOKUP(P190,'Road Segments'!$A$14:$D$33,4)*('Traffic Information'!$C$8/5280)) -> 
A191: 4 | B191: 1 | C191: 2 | D191: EdgeOfMedian | E191: OL - ATT | F191: 0 | G191: 0 | H191: 0 | I191: 0 | J191: =IF(B191="","",VLOOKUP(D191,Severity!$A$4:$H$206,3,FALSE)) -> 0 | K191: =IF(B191="","",VLOOKUP(D191,Severity!$A$4:$H$206,4,FALSE)*F191) -> 0 | U191: =IF(ISNUMBER(R191)=FALSE,"",Q191*10^6/VLOOKUP(P191,'Road Segments'!$A$14:$D$33,4)*('Traffic Information'!$C$8/5280)) -> 
A192: 4 | B192: 1 | C192: 2 | D192: EdgeOfMedian | E192: OL - ASUT | F192: 0 | G192: 0 | H192: 0 | I192: 0 | J192: =IF(B192="","",VLOOKUP(D192,Severity!$A$4:$H$206,3,FALSE)) -> 0 | K192: =IF(B192="","",VLOOKUP(D192,Severity!$A$4:$H$206,4,FALSE)*F192) -> 0 | U192: =IF(ISNUMBER(R192)=FALSE,"",Q192*10^6/VLOOKUP(P192,'Road Segments'!$A$14:$D$33,4)*('Traffic Information'!$C$8/5280)) -> 
A193: 4 | B193: 1 | C193: 3 | D193: TL5NJshapeMB | E193: PL - PU | F193: 0.5175153853 | G193: 0 | H193: 0.01035030771 | I193: 6353.556774 | J193: =IF(B193="","",VLOOKUP(D193,Severity!$A$4:$H$206,3,FALSE)) -> 0 | K193: =IF(B193="","",VLOOKUP(D193,Severity!$A$4:$H$206,4,FALSE)*F193) -> 51.75153853 | U193: =IF(ISNUMBER(R193)=FALSE,"",Q193*10^6/VLOOKUP(P193,'Road Segments'!$A$14:$D$33,4)*('Traffic Information'!$C$8/5280)) -> 
A194: 4 | B194: 1 | C194: 3 | D194: TL5NJshapeMB | E194: PL - M | F194: 0 | G194: 0 | H194: 0 | I194: 0 | J194: =IF(B194="","",VLOOKUP(D194,Severity!$A$4:$H$206,3,FALSE)) -> 0 | K194: =IF(B194="","",VLOOKUP(D194,Severity!$A$4:$H$206,4,FALSE)*F194) -> 0 | U194: =IF(ISNUMBER(R194)=FALSE,"",Q194*10^6/VLOOKUP(P194,'Road Segments'!$A$14:$D$33,4)*('Traffic Information'!$C$8/5280)) -> 
A195: 4 | B195: 1 | C195: 3 | D195: TL5NJshapeMB | E195: PL - LTT | F195: 0 | G195: 0 | H195: 0 | I195: 0 | J195: =IF(B195="","",VLOOKUP(D195,Severity!$A$4:$H$206,3,FALSE)) -> 0 | K195: =IF(B195="","",VLOOKUP(D195,Severity!$A$4:$H$206,4,FALSE)*F195) -> 0 | U195: =IF(ISNUMBER(R195)=FALSE,"",Q195*10^6/VLOOKUP(P195,'Road Segments'!$A$14:$D$33,4)*('Traffic Information'!$C$8/5280)) -> 
A196: 4 | B196: 1 | C196: 3 | D196: TL5NJshapeMB | E196: PL - LSUT | F196: 0 | G196: 0 | H196: 0 | I196: 0 | J196: =IF(B196="","",VLOOKUP(D196,Severity!$A$4:$H$206,3,FALSE)) -> 0 | K196: =IF(B196="","",VLOOKUP(D196,Severity!$A$4:$H$206,4,FALSE)*F196) -> 0 | U196: =IF(ISNUMBER(R196)=FALSE,"",Q196*10^6/VLOOKUP(P196,'Road Segments'!$A$14:$D$33,4)*('Traffic Information'!$C$8/5280)) -> 
A197: 4 | B197: 1 | C197: 3 | D197: TL5NJshapeMB | E197: PL - HTT | F197: 0 | G197: 0 | H197: 0 | I197: 0 | J197: =IF(B197="","",VLOOKUP(D197,Severity!$A$4:$H$206,3,FALSE)) -> 0 | K197: =IF(B197="","",VLOOKUP(D197,Severity!$A$4:$H$206,4,FALSE)*F197) -> 0 | U197: =IF(ISNUMBER(R197)=FALSE,"",Q197*10^6/VLOOKUP(P197,'Road Segments'!$A$14:$D$33,4)*('Traffic Information'!$C$8/5280)) -> 
A198: 4 | B198: 1 | C198: 3 | D198: TL5NJshapeMB | E198: PL - HSUT | F198: 0 | G198: 0 | H198: 0 | I198: 0 | J198: =IF(B198="","",VLOOKUP(D198,Severity!$A$4:$H$206,3,FALSE)) -> 0 | K198: =IF(B198="","",VLOOKUP(D198,Severity!$A$4:$H$206,4,FALSE)*F198) -> 0 | U198: =IF(ISNUMBER(R198)=FALSE,"",Q198*10^6/VLOOKUP(P198,'Road Segments'!$A$14:$D$33,4)*('Traffic Information'!$C$8/5280)) -> 
A199: 4 | B199: 1 | C199: 3 | D199: TL5NJshapeMB | E199: PL - C | F199: 1.552546156 | G199: 0 | H199: 0.03105092312 | I199: 19060.67032 | J199: =IF(B199="","",VLOOKUP(D199,Severity!$A$4:$H$206,3,FALSE)) -> 0 | K199: =IF(B199="","",VLOOKUP(D199,Severity!$A$4:$H$206,4,FALSE)*F199) -> 155.2546156 | U199: =IF(ISNUMBER(R199)=FALSE,"",Q199*10^6/VLOOKUP(P199,'Road Segments'!$A$14:$D$33,4)*('Traffic Information'!$C$8/5280)) -> 
A200: 4 | B200: 1 | C200: 3 | D200: TL5NJshapeMB | E200: PL - ATT | F200: 0.1064834486 | G200: 0 | H200: 0.0110987256 | I200: 23344.38149 | J200: =IF(B200="","",VLOOKUP(D200,Severity!$A$4:$H$206,3,FALSE)) -> 0 | K200: =IF(B200="","",VLOOKUP(D200,Severity!$A$4:$H$206,4,FALSE)*F200) -> 10.64834486 | U200: =IF(ISNUMBER(R200)=FALSE,"",Q200*10^6/VLOOKUP(P200,'Road Segments'!$A$14:$D$33,4)*('Traffic Information'!$C$8/5280)) -> 
... 2050 more rows

Sheet Encr Freq and Adj
A1: Base Encro Frequencies | E1: Access Density | I1: Rumble Strips | M1: No. of Lanes in one direction | Q1: Speed Limit | U1: Lane Width | Y1: Shoulder Width | AC1: Terrain Type | AG1: Grade | AK1: Horizontal Curve | AO1: Rollover Prob. | AQ1: Slope-Grade Adjustment | AW1: Slope-Horizontal Curvature (1/R) Adjustment
A2: ADT | B2: 2LN UNDIV | C2: 4LN DIV | D2: Oneway or Ramps | E2: Access Density | F2: 2LN UNDIV | G2: 4LN DIV | H2: Oneway or Ramps | I2: Rumble Strips | J2: 2LN UNDIV | K2: 4LN DIV | L2: Oneway or Ramps | M2: No. Lanes | N2: 2LN UNDIV | O2: 4LN DIV | P2: Oneway or Ramps | Q2: Spd Limit | R2: 2LN UNDIV | S2: 4LN DIV | T2: Oneway or Ramps | U2: Lane Width | V2: 2LN UNDIV | W2: 4LN DIV | X2: Oneway or Ramps | Y2: Shldr Width | Z2: 2LN UNDIV | AA2: 4LN DIV | AB2: Oneway or Ramps | AC2: Terrain Type | AD2: ALL HWY TYPES | AE2: 4LN DIV | AF2: Oneway or Ramps | AG2: Grade | AH2: ALL HWY TYPES | AI2: 4LN DIV | AJ2: Oneway or Ramps | AK2: Curv Rad | AL2: All HWY TYPES | AM2: 4LN DIV | AN2: Oneway or Ramps | AO2: Slope | AP2: P(R|S) | AQ2: Slope | AR2: Vertical Grade | AW2: Slope | AX2: -500 | AY2: -637 | AZ2: -955 | BA2: -1910 | BB2: -100000 | BC2: 500
A3: veh/day | B3: Encr/mi/yr | C3: Encr/mi/yr | D3: Encr/mi/yr | E3: =IF('Project Information'!$B$6="SI","pts/km", "pts/mi") -> pts/mi | F3: Adjustment | I3: T/F | J3: Adjustment | M3: (integer) | N3: Adjustment | Q3: mi/hr | R3: Adjustment | U3: (ft) | V3: Adjustment | Y3: (ft) | Z3: Adjustment | AC3: F/R/M | AD3: Adjustment | AG3: % | AH3: Adjustment | AK3: (ft) | AL3: Adjustment | AP3: 50 | AR3: -0.06 | AS3: -0.03 | AT3: 0 | AU3: 0.03 | AV3: 0.06 | AX3: -0.002 | AY3: -0.001569858713 | AZ3: -0.001047120419 | BA3: -0.0005235602094 | BB3: -1e-05 | BC3: 0.002
A4: Cooper-Miaou Model. See RSAPv3 Engineer's Manual. | E4: Cooper-Miaou Model. See RSAPv3 Engineer's Manual. | I4: See HSM | U4: See HSM Table XX
A5: 0 | B5: 0 | C5: 0 | D5: 0 | E5: 0 | F5: 1 | G5: 1 | H5: =G5 -> 1 | I5: FALSE | J5: 1 | K5: 1 | L5: 1 | M5: 1 | N5: 1 | O5: 1 | P5: 1 | Q5: 15 | R5: 1.423 | S5: 1.179 | T5: 1.179 | U5: 0 | V5: 1.5 | W5: 1.25 | X5: 1.5 | Y5: 0 | Z5: 1 | AA5: 1 | AB5: 1 | AC5: F | AD5: 1 | AE5: 1 | AF5: 1 | AG5: -20 | AH5: 2 | AI5: 2 | AJ5: 2 | AK5: -10000 | AL5: 1 | AM5: 1 | AN5: 1 | AO5: =-1/2 -> -0.5 | AP5: 0.1851818182 | AQ5: -1e+100 | AR5: 1.296511628 | AS5: 1.294850498 | AT5: 1 | AU5: 0.6569767442 | AV5: 0.6179401993 | AW5: -1e+100 | AX5: 1.062292359 | AY5: 1.062292359 | AZ5: 1.144518272 | BA5: 1.21179402 | BB5: 1 | BC5: 1
A6: =A5+1000 -> 1000 | B6: =IF('Project Information'!$B$6="SI", (2*0.784*365*$A6/1000000)*EXP(0.4997-0.2092*($A6/1000)), (2*0.784*1.6*365*$A6/1000000)*EXP(0.4997-0.2092*($A6/1000))) -> 1.224394732 | C6: =IF('Project Information'!$B$6="SI", (2*0.933*365*$A6/1000000)*EXP(-0.2104-0.04128*($A6/1000)), (2*0.933*1.6*365*$A6/1000000)*EXP(-0.2104-0.04128*($A6/1000))) -> 0.8472688725 | D6: =C6/2 -> 0.4236344363 | E6: 1 | F6: =IF('Project Information'!$B$6="SI",EXP(0.6393*$E6), EXP(0.6393*$E6/1.6)) -> 1.491172167 | G6: =IF('Project Information'!$B$6="SI",EXP(1.145*$E6), EXP(1.145*$E6/1.6)) -> 2.045464698 | H6: =G6 -> 2.045464698 | I6: TRUE | J6: 1 | K6: 0.9 | L6: 0.9 | M6: 2 | N6: 0.755 | O6: 1 | P6: 0.91 | Q6: 20 | R6: 1.423 | S6: 1.179 | T6: 1.179 | U6: 9 | V6: 1.5 | W6: 1.25 | X6: 1.5 | Y6: 1 | Z6: =(Z7+Z5)/2 -> 0.935 | AA6: =(AA7+AA5)/2 -> 0.98 | AB6: =(AB7+AB5)/2 -> 0.98 | AC6: R | AD6: 2.759 | AE6: 1.661 | AF6: 1.661 | AG6: -6 | AH6: 2 | AI6: 2 | AJ6: 2 | AK6: -1910 | AL6: 1 | AM6: 1 | AN6: 1 | AO6: =-1/3 -> -0.3333333333 | AP6: 0.1204 | AQ6: =-1/2 -> -0.5 | AR6: 1.296511628 | AS6: 1.294850498 | AT6: 1 | AU6: 0.6569767442 | AV6: 0.6179401993 | AW6: -0.5 | AX6: 1.062292359 | AY6: 1.062292359 | AZ6: 1.144518272 | BA6: 1.21179402 | BB6: 1 | BC6: 1
A7: =A6+1000 -> 2000 | B7: =IF('Project Information'!$B$6="SI", (2*0.784*365*$A7/1000000)*EXP(0.4997-0.2092*($A7/1000)), (2*0.784*1.6*365*$A7/1000000)*EXP(0.4997-0.2092*($A7/1000))) -> 1.986538757 | C7: =IF('Project Information'!$B$6="SI", (2*0.933*365*$A7/1000000)*EXP(-0.2104-0.04128*($A7/1000)), (2*0.933*1.6*365*$A7/1000000)*EXP(-0.2104-0.04128*($A7/1000))) -> 1.626011343 | D7: =C7/2 -> 0.8130056713 | E7: 2 | F7: =IF('Project Information'!$B$6="SI",EXP(0.6393*$E7), EXP(0.6393*$E7/1.6)) -> 2.223594432 | G7: =IF('Project Information'!$B$6="SI",EXP(1.145*$E7), EXP(1.145*$E7/1.6)) -> 4.183925832 | H7: 4.183925832 | M7: 3 | N7: 0.755 | O7: 0.91 | P7: 0.91 | Q7: 25 | R7: 1.423 | S7: 1.179 | T7: 1.179 | U7: 10 | V7: 1.3 | W7: 1.15 | X7: 1.3 | Y7: 2 | Z7: 0.87 | AA7: 0.96 | AB7: 0.96 | AC7: M | AD7: 2.269 | AE7: 1.506 | AF7: 1.506 | AG7: -2 | AH7: 1 | AI7: 1 | AJ7: 1 | AK7: -950 | AL7: 4 | AM7: 4 | AN7: 4 | AO7: =-1/4 -> -0.25 | AP7: 0.0682 | AQ7: =-1/3 -> -0.3333333333 | AR7: 1.296511628 | AS7: 1.294850498 | AT7: 1 | AU7: 0.6569767442 | AV7: 0.6179401993 | AW7: -0.3333333333 | AX7: 1.062292359 | AY7: 1.062292359 | AZ7: 1.144518272 | BA7: 1.21179402 | BB7: 1 | BC7: 1
A8: 3000 | B8: =IF('Project Information'!$B$6="SI", (2*0.784*365*$A8/1000000)*EXP(0.4997-0.2092*($A8/1000)), (2*0.784*1.6*365*$A8/1000000)*EXP(0.4997-0.2092*($A8/1000))) -> 2.417318612 | C8: =IF('Project Information'!$B$6="SI", (2*0.933*365*$A8/1000000)*EXP(-0.2104-0.04128*($A8/1000)), (2*0.933*1.6*365*$A8/1000000)*EXP(-0.2104-0.04128*($A8/1000))) -> 2.340384179 | D8: 1.170192089 | E8: 3 | F8: =IF('Project Information'!$B$6="SI",EXP(0.6393*$E8), EXP(0.6393*$E8/1.6)) -> 3.315762128 | G8: =IF('Project Information'!$B$6="SI",EXP(1.145*$E8), EXP(1.145*$E8/1.6)) -> 8.558072589 | H8: 8.558072589 | M8: 4 | N8: 0.755 | O8: 0.91 | P8: 0.91 | Q8: 30 | R8: 1.423 | S8: 1.179 | T8: 1.179 | U8: 11 | V8: 1.05 | W8: 1.03 | X8: 1.05 | Y8: 3 | Z8: =(Z9+Z7)/2 -> 0.82 | AA8: =(AA9+AA7)/2 -> 0.94 | AB8: =(AB9+AB7)/2 -> 0.94 | AG8: 20 | AH8: 1 | AI8: 1 | AJ8: 1 | AK8: 0 | AL8: 4 | AM8: 4 | AN8: 4 | AO8: =-1/6 -> -0.1666666667 | AP8: 0.0582 | AQ8: =-1/4 -> -0.25 | AR8: 1.782991202 | AS8: 1.527859238 | AT8: 1 | AU8: 1.01026393 | AV8: 0.7991202346 | AW8: -0.25 | AX8: 1.351906158 | AY8: 1.351906158 | AZ8: 1.445747801 | BA8: 1.299120235 | BB8: 1 | BC8: 1
A9: 4000 | B9: =IF('Project Information'!$B$6="SI", (2*0.784*365*$A9/1000000)*EXP(0.4997-0.2092*($A9/1000)), (2*0.784*1.6*365*$A9/1000000)*EXP(0.4997-0.2092*($A9/1000))) -> 2.614678086 | C9: =IF('Project Information'!$B$6="SI", (2*0.933*365*$A9/1000000)*EXP(-0.2104-0.04128*($A9/1000)), (2*0.933*1.6*365*$A9/1000000)*EXP(-0.2104-0.04128*($A9/1000))) -> 2.99432002 | D9: 1.49716001 | E9: 4 | F9: =IF('Project Information'!$B$6="SI",EXP(0.6393*$E9), EXP(0.6393*$E9/1.6)) -> 4.944372198 | G9: =IF('Project Information'!$B$6="SI",EXP(1.145*3), EXP(1.145*3/1.6)) -> 8.558072589 | H9: 8.558072589 | M9: 5 | N9: 0.755 | O9: 0.91 | P9: 0.91 | Q9: 35 | R9: 1.423 | S9: 1.179 | T9: 1.179 | U9: 12 | V9: 1 | W9: 1 | X9: 1 | Y9: 4 | Z9: 0.77 | AA9: 0.92 | AB9: 0.92 | AK9: 0.1 | AL9: 2 | AM9: 2 | AN9: 2 | AO9: =-1/10 -> -0.1 | AP9: 0.0503 | AQ9: =-1/6 -> -0.1666666667 | AR9: 1.577319588 | AS9: 1.085910653 | AT9: 1 | AU9: 0.9570446735 | AV9: 0.7594501718 | AW9: -0.1666666667 | AX9: 0.8470790378 | AY9: 0.8470790378 | AZ9: 0.9450171821 | BA9: 1.06185567 | BB9: 1 | BC9: 1
A10: 5000 | B10: =IF('Project Information'!$B$6="SI", (2*0.784*365*$A10/1000000)*EXP(0.4997-0.2092*($A10/1000)), (2*0.784*1.6*365*$A10/1000000)*EXP(0.4997-0.2092*($A10/1000))) -> 2.651391345 | C10: =IF('Project Information'!$B$6="SI", (2*0.933*365*$A10/1000000)*EXP(-0.2104-0.04128*($A10/1000)), (2*0.933*1.6*365*$A10/1000000)*EXP(-0.2104-0.04128*($A10/1000))) -> 3.591538703 | D10: 1.795769351 | E10: 5 | F10: =IF('Project Information'!$B$6="SI",EXP(0.6393*$E10), EXP(0.6393*$E10/1.6)) -> 7.372910205 | G10: =IF('Project Information'!$B$6="SI",EXP(1.145*3), EXP(1.145*3/1.6)) -> 8.558072589 | H10: 8.558072589 | M10: 6 | N10: 0.755 | O10: 0.91 | P10: 0.91 | Q10: 40 | R10: 1.423 | S10: 1.179 | T10: 1.179 | U10: 40 | V10: 1 | W10: 1 | X10: 1 | Y10: 5 | Z10: =(Z11+Z9)/2 -> 0.72 | AA10: =(AA11+AA9)/2 -> 0.9 | AB10: =(AB11+AB9)/2 -> 0.9 | AK10: 950 | AL10: 2 | AM10: 2 | AN10: 2 | AO10: =0 -> 0 | AP10: 0.0361 | AQ10: =-1/10 -> -0.1 | AR10: 1.149105368 | AS10: 1.069582505 | AT10: 1 | AU10: 0.7157057654 | AV10: 0.5447316103 | AW10: -0.1 | AX10: 0.958250497 | AY10: 0.958250497 | AZ10: 1.06361829 | BA10: 1.007952286 | BB10: 1 | BC10: 1
A11: 6000 | B11: =IF('Project Information'!$B$6="SI", (2*0.784*365*$A11/1000000)*EXP(0.4997-0.2092*($A11/1000)), (2*0.784*1.6*365*$A11/1000000)*EXP(0.4997-0.2092*($A11/1000))) -> 2.5810753 | C11: =IF('Project Information'!$B$6="SI", (2*0.933*365*$A11/1000000)*EXP(-0.2104-0.04128*($A11/1000)), (2*0.933*1.6*365*$A11/1000000)*EXP(-0.2104-0.04128*($A11/1000))) -> 4.135558044 | D11: 2.067779022 | E11: 6 | F11: =IF('Project Information'!$B$6="SI",EXP(0.6393*$E11), EXP(0.6393*$E11/1.6)) -> 10.99427849 | G11: =IF('Project Information'!$B$6="SI",EXP(1.145*3), EXP(1.145*3/1.6)) -> 8.558072589 | H11: 8.558072589 | M11: 30 | N11: 0.755 | O11: 0.91 | P11: 0.91 | Q11: 45 | R11: 1.423 | S11: 1.179 | T11: 1.179 | Y11: 6 | Z11: 0.67 | AA11: 0.88 | AB11: 0.88 | AK11: 1910 | AL11: 1 | AM11: 1 | AN11: 1 | AO11: =1/4 -> 0.25 | AP11: 0.0582 | AQ11: =0 -> 0 | AR11: 1.504155125 | AS11: 1.11634349 | AT11: 1 | AU11: 0.7229916898 | AV11: 0.6315789474 | AW11: 0 | AX11: 1.254847645 | AY11: 1.254847645 | AZ11: 1.180055402 | BA11: 1.083102493 | BB11: 1 | BC11: 1
A12: 7000 | B12: =IF('Project Information'!$B$6="SI", (2*0.784*365*$A12/1000000)*EXP(0.4997-0.2092*($A12/1000)), (2*0.784*1.6*365*$A12/1000000)*EXP(0.4997-0.2092*($A12/1000))) -> 2.442828953 | C12: =IF('Project Information'!$B$6="SI", (2*0.933*365*$A12/1000000)*EXP(-0.2104-0.04128*($A12/1000)), (2*0.933*1.6*365*$A12/1000000)*EXP(-0.2104-0.04128*($A12/1000))) -> 4.629704093 | D12: 2.314852047 | E12: 7 | F12: =IF('Project Information'!$B$6="SI",EXP(0.6393*6), EXP(0.6393*6/1.6)) -> 10.99427849 | G12: =IF('Project Information'!$B$6="SI",EXP(1.145*3), EXP(1.145*3/1.6)) -> 8.558072589 | H12: 8.558072589 | Q12: 50 | R12: 1.423 | S12: 1.179 | T12: 1.179 | Y12: 7 | Z12: =(Z13+Z11)/2 -> 0.625 | AA12: =(AA13+AA11)/2 -> 0.88 | AB12: =(AB13+AB11)/2 -> 0.88 | AK12: 10000 | AL12: 1 | AM12: 1 | AN12: 1 | AO12: =1/3 -> 0.3333333333 | AP12: 0.08994545455 | AQ12: =1/4 -> 0.25 | AR12: 1.504155125 | AS12: 1.11634349 | AT12: 1 | AU12: 0.7229916898 | AV12: 0.6315789474 | AW12: 0.25 | AX12: 1.254847645 | AY12: 1.254847645 | AZ12: 1.180055402 | BA12: 1.083102493 | BB12: 1 | BC12: 1
A13: 8000 | B13: =IF('Project Information'!$B$6="SI", (2*0.784*365*$A13/1000000)*EXP(0.4997-0.2092*($A13/1000)), (2*0.784*1.6*365*$A13/1000000)*EXP(0.4997-0.2092*($A13/1000))) -> 2.264803879 | C13: =IF('Project Information'!$B$6="SI", (2*0.933*365*$A13/1000000)*EXP(-0.2104-0.04128*($A13/1000)), (2*0.933*1.6*365*$A13/1000000)*EXP(-0.2104-0.04128*($A13/1000))) -> 5.077120895 | D13: 2.538560447 | E13: 10 | F13: =IF('Project Information'!$B$6="SI",EXP(0.6393*6), EXP(0.6393*6/1.6)) -> 10.99427849 | G13: =IF('Project Information'!$B$6="SI",EXP(1.145*3), EXP(1.145*3/1.6)) -> 8.558072589 | H13: 8.558072589 | Q13: 55 | R13: 1.423 | S13: 1.179 | T13: 1.179 | Y13: 8 | Z13: 0.58 | AA13: 0.88 | AB13: 0.88 | AO13: =1/2 -> 0.5 | AP13: 0.1322727273 | AQ13: =1/3 -> 0.3333333333 | AR13: 1.504155125 | AS13: 1.11634349 | AT13: 1 | AU13: 0.7229916898 | AV13: 0.6315789474 | AW13: 0.3333333333 | AX13: 1.254847645 | AY13: 1.254847645 | AZ13: 1.180055402 | BA13: 1.083102493 | BB13: 1 | BC13: 1
A14: 9000 | B14: =IF('Project Information'!$B$6="SI", (2*0.784*365*$A14/1000000)*EXP(0.4997-0.2092*($A14/1000)), (2*0.784*1.6*365*$A14/1000000)*EXP(0.4997-0.2092*($A14/1000))) -> 2.066944031 | C14: =IF('Project Information'!$B$6="SI", (2*0.933*365*$A14/1000000)*EXP(-0.2104-0.04128*($A14/1000)), (2*0.933*1.6*365*$A14/1000000)*EXP(-0.2104-0.04128*($A14/1000))) -> 5.480779764 | D14: 2.740389882 | E14: 25 | F14: =IF('Project Information'!$B$6="SI",EXP(0.6393*6), EXP(0.6393*6/1.6)) -> 10.99427849 | G14: =IF('Project Information'!$B$6="SI",EXP(1.145*3), EXP(1.145*3/1.6)) -> 8.558072589 | H14: 8.558072589 | Q14: 60 | R14: 1.423 | S14: 1.179 | T14: 1.179 | Y14: 9 | Z14: 0.58 | AA14: 0.88 | AB14: 0.88 | AQ14: =1/2 -> 0.5 | AR14: 1.504155125 | AS14: 1.11634349 | AT14: 1 | AU14: 0.7229916898 | AV14: 0.6315789474 | AW14: 0.5 | AX14: 1.254847645 | AY14: 1.254847645 | AZ14: 1.180055402 | BA14: 1.083102493 | BB14: 1 | BC14: 1
A15: 10000 | B15: =IF('Project Information'!$B$6="SI", (2*0.784*365*$A15/1000000)*EXP(0.4997-0.2092*($A15/1000)), (2*0.784*1.6*365*$A15/1000000)*EXP(0.4997-0.2092*($A15/1000))) -> 1.863081279 | C15: =IF('Project Information'!$B$6="SI", (2*0.933*365*$A15/1000000)*EXP(-0.2104-0.04128*($A15/1000)), (2*0.933*1.6*365*$A15/1000000)*EXP(-0.2104-0.04128*($A15/1000))) -> 5.843488119 | D15: 2.92174406 | E15: 26 | F15: =IF('Project Information'!$B$6="SI",EXP(0.6393*6), EXP(0.6393*6/1.6)) -> 10.99427849 | G15: =IF('Project Information'!$B$6="SI",EXP(1.145*3), EXP(1.145*3/1.6)) -> 8.558072589 | H15: 8.558072589 | Q15: 65 | R15: 1 | S15: 1 | T15: 1 | Y15: 10 | Z15: 0.58 | AA15: 0.88 | AB15: 0.88 | AQ15: 1e+100 | AR15: 1.504155125 | AS15: 1.11634349 | AT15: 1 | AU15: 0.7229916898 | AV15: 0.6315789474 | AW15: 1e+100 | AX15: 1.254847645 | AY15: 1.254847645 | AZ15: 1.180055402 | BA15: 1.083102493 | BB15: 1 | BC15: 1
A16: 11000 | B16: =IF('Project Information'!$B$6="SI", (2*0.784*365*$A16/1000000)*EXP(0.4997-0.2092*($A16/1000)), (2*0.784*1.6*365*$A16/1000000)*EXP(0.4997-0.2092*($A16/1000))) -> 1.662532261 | C16: =IF('Project Information'!$B$6="SI", (2*0.933*365*$A16/1000000)*EXP(-0.2104-0.04128*($A16/1000)), (2*0.933*1.6*365*$A16/1000000)*EXP(-0.2104-0.04128*($A16/1000))) -> 6.167897876 | D16: 3.083948938 | E16: 47 | F16: =IF('Project Information'!$B$6="SI",EXP(0.6393*6), EXP(0.6393*6/1.6)) -> 10.99427849 | G16: =IF('Project Information'!$B$6="SI",EXP(1.145*3), EXP(1.145*3/1.6)) -> 8.558072589 | H16: 8.558072589 | Q16: 70 | R16: 1 | S16: 1 | T16: 1 | Y16: 11 | Z16: 0.58 | AA16: 0.88 | AB16: 0.88
A17: 12000 | B17: =IF('Project Information'!$B$6="SI", (2*0.784*365*$A17/1000000)*EXP(0.4997-0.2092*($A17/1000)), (2*0.784*1.6*365*$A17/1000000)*EXP(0.4997-0.2092*($A17/1000))) -> 1.471310169 | C17: =IF('Project Information'!$B$6="SI", (2*0.933*365*$A17/1000000)*EXP(-0.2104-0.04128*($A17/1000)), (2*0.933*1.6*365*$A17/1000000)*EXP(-0.2104-0.04128*($A17/1000))) -> 6.456513434 | D17: 3.228256717 | E17: 48 | F17: =IF('Project Information'!$B$6="SI",EXP(0.6393*6), EXP(0.6393*6/1.6)) -> 10.99427849 | G17: =IF('Project Information'!$B$6="SI",EXP(1.145*3), EXP(1.145*3/1.6)) -> 8.558072589 | H17: 8.558072589 | Q17: 75 | R17: 1 | S17: 1 | T17: 1 | Y17: 12 | Z17: 0.58 | AA17: 0.88 | AB17: 0.88
A18: 13000 | B18: =IF('Project Information'!$B$6="SI", (2*0.784*365*$A18/1000000)*EXP(0.4997-0.2092*($A18/1000)), (2*0.784*1.6*365*$A18/1000000)*EXP(0.4997-0.2092*($A18/1000))) -> 1.293039933 | C18: =IF('Project Information'!$B$6="SI", (2*0.933*365*$A18/1000000)*EXP(-0.2104-0.04128*($A18/1000)), (2*0.933*1.6*365*$A18/1000000)*EXP(-0.2104-0.04128*($A18/1000))) -> 6.711699273 | D18: 3.355849636 | E18: 1000000 | F18: =IF('Project Information'!$B$6="SI",EXP(0.6393*6), EXP(0.6393*6/1.6)) -> 10.99427849 | G18: =IF('Project Information'!$B$6="SI",EXP(1.145*3), EXP(1.145*3/1.6)) -> 8.558072589 | H18: 8.558072589 | Y18: 100 | Z18: 0.58 | AA18: 0.88 | AB18: 0.88
A19: 14000 | B19: =IF('Project Information'!$B$6="SI", (2*0.784*365*$A19/1000000)*EXP(0.4997-0.2092*($A19/1000)), (2*0.784*1.6*365*$A19/1000000)*EXP(0.4997-0.2092*($A19/1000))) -> 1.1296456 | C19: =IF('Project Information'!$B$6="SI", (2*0.933*365*$A19/1000000)*EXP(-0.2104-0.04128*($A19/1000)), (2*0.933*1.6*365*$A19/1000000)*EXP(-0.2104-0.04128*($A19/1000))) -> 6.935687169 | D19: 3.467843584
A20: 15000 | B20: =IF('Project Information'!$B$6="SI", (2*0.784*365*$A20/1000000)*EXP(0.4997-0.2092*($A20/1000)), (2*0.784*1.6*365*$A20/1000000)*EXP(0.4997-0.2092*($A20/1000))) -> 0.9818633127 | C20: =IF('Project Information'!$B$6="SI", (2*0.933*365*$A20/1000000)*EXP(-0.2104-0.04128*($A20/1000)), (2*0.933*1.6*365*$A20/1000000)*EXP(-0.2104-0.04128*($A20/1000))) -> 7.130583065 | D20: 3.565291532
A21: 16000 | B21: =IF('Project Information'!$B$6="SI", (2*0.784*365*$A21/1000000)*0.07148, (2*0.784*1.6*365*$A21/1000000)*0.07148) -> 1.0472815 | C21: =IF('Project Information'!$B$6="SI", (2*0.933*365*$A21/1000000)*EXP(-0.2104-0.04128*($A21/1000)), (2*0.933*1.6*365*$A21/1000000)*EXP(-0.2104-0.04128*($A21/1000))) -> 7.298373598 | D21: 3.649186799
A22: 17000 | B22: =IF('Project Information'!$B$6="SI", (2*0.784*365*$A22/1000000)*0.07148, (2*0.784*1.6*365*$A22/1000000)*0.07148) -> 1.112736594 | C22: =IF('Project Information'!$B$6="SI", (2*0.933*365*$A22/1000000)*EXP(-0.2104-0.04128*($A22/1000)), (2*0.933*1.6*365*$A22/1000000)*EXP(-0.2104-0.04128*($A22/1000))) -> 7.440932301 | D22: 3.720466151
A23: 18000 | B23: =IF('Project Information'!$B$6="SI", (2*0.784*365*$A23/1000000)*0.07148, (2*0.784*1.6*365*$A23/1000000)*0.07148) -> 1.178191688 | C23: =IF('Project Information'!$B$6="SI", (2*0.933*365*$A23/1000000)*EXP(-0.2104-0.04128*($A23/1000)), (2*0.933*1.6*365*$A23/1000000)*EXP(-0.2104-0.04128*($A23/1000))) -> 7.560025507 | D23: 3.780012754
A24: 19000 | B24: =IF('Project Information'!$B$6="SI", (2*0.784*365*$A24/1000000)*0.07148, (2*0.784*1.6*365*$A24/1000000)*0.07148) -> 1.243646781 | C24: =IF('Project Information'!$B$6="SI", (2*0.933*365*$A24/1000000)*EXP(-0.2104-0.04128*($A24/1000)), (2*0.933*1.6*365*$A24/1000000)*EXP(-0.2104-0.04128*($A24/1000))) -> 7.657317951 | D24: 3.828658975
A25: 20000 | B25: =IF('Project Information'!$B$6="SI", (2*0.784*365*$A25/1000000)*0.07148, (2*0.784*1.6*365*$A25/1000000)*0.07148) -> 1.309101875 | C25: =IF('Project Information'!$B$6="SI", (2*0.933*365*$A25/1000000)*EXP(-0.2104-0.04128*($A25/1000)), (2*0.933*1.6*365*$A25/1000000)*EXP(-0.2104-0.04128*($A25/1000))) -> 7.734378099 | D25: 3.867189049
A26: 21000 | B26: =IF('Project Information'!$B$6="SI", (2*0.784*365*$A26/1000000)*0.07148, (2*0.784*1.6*365*$A26/1000000)*0.07148) -> 1.374556969 | C26: =IF('Project Information'!$B$6="SI", (2*0.933*365*$A26/1000000)*EXP(-0.2104-0.04128*($A26/1000)), (2*0.933*1.6*365*$A26/1000000)*EXP(-0.2104-0.04128*($A26/1000))) -> 7.792683214 | D26: 3.896341607
A27: 22000 | B27: =IF('Project Information'!$B$6="SI", (2*0.784*365*$A27/1000000)*0.07148, (2*0.784*1.6*365*$A27/1000000)*0.07148) -> 1.440012063 | C27: =IF('Project Information'!$B$6="SI", (2*0.933*365*$A27/1000000)*EXP(-0.2104-0.04128*($A27/1000)), (2*0.933*1.6*365*$A27/1000000)*EXP(-0.2104-0.04128*($A27/1000))) -> 7.833624168 | D27: 3.916812084
A28: 23000 | B28: =IF('Project Information'!$B$6="SI", (2*0.784*365*$A28/1000000)*0.07148, (2*0.784*1.6*365*$A28/1000000)*0.07148) -> 1.505467156 | C28: =IF('Project Information'!$B$6="SI", (2*0.933*365*$A28/1000000)*EXP(-0.2104-0.04128*($A28/1000)), (2*0.933*1.6*365*$A28/1000000)*EXP(-0.2104-0.04128*($A28/1000))) -> 7.858510009 | D28: 3.929255005
A29: 24000 | B29: =IF('Project Information'!$B$6="SI", (2*0.784*365*$A29/1000000)*0.07148, (2*0.784*1.6*365*$A29/1000000)*0.07148) -> 1.57092225 | C29: =IF('Project Information'!$B$6="SI", (2*0.933*365*$A29/1000000)*EXP(-0.2104-0.04128*($A29/1000)), (2*0.933*1.6*365*$A29/1000000)*EXP(-0.2104-0.04128*($A29/1000))) -> 7.868572308 | D29: 3.934286154
A30: 25000 | B30: =IF('Project Information'!$B$6="SI", (2*0.784*365*$A30/1000000)*0.07148, (2*0.784*1.6*365*$A30/1000000)*0.07148) -> 1.636377344 | C30: =IF('Project Information'!$B$6="SI", (2*0.933*365*$A30/1000000)*EXP(-0.2104-0.04128*($A30/1000)), (2*0.933*1.6*365*$A30/1000000)*EXP(-0.2104-0.04128*($A30/1000))) -> 7.864969284 | D30: 3.932484642
A31: 26000 | B31: =IF('Project Information'!$B$6="SI", (2*0.784*365*$A31/1000000)*0.07148, (2*0.784*1.6*365*$A31/1000000)*0.07148) -> 1.701832438 | C31: =IF('Project Information'!$B$6="SI", (2*0.933*365*$A31/1000000)*EXP(-0.2104-0.04128*($A31/1000)), (2*0.933*1.6*365*$A31/1000000)*EXP(-0.2104-0.04128*($A31/1000))) -> 7.848789721 | D31: 3.924394861
A32: 27000 | B32: =IF('Project Information'!$B$6="SI", (2*0.784*365*$A32/1000000)*0.07148, (2*0.784*1.6*365*$A32/1000000)*0.07148) -> 1.767287532 | C32: =IF('Project Information'!$B$6="SI", (2*0.933*365*$A32/1000000)*EXP(-0.2104-0.04128*($A32/1000)), (2*0.933*1.6*365*$A32/1000000)*EXP(-0.2104-0.04128*($A32/1000))) -> 7.821056692 | D32: 3.910528346
A33: 28000 | B33: =IF('Project Information'!$B$6="SI", (2*0.784*365*$A33/1000000)*0.07148, (2*0.784*1.6*365*$A33/1000000)*0.07148) -> 1.832742625 | C33: =IF('Project Information'!$B$6="SI", (2*0.933*365*$A33/1000000)*EXP(-0.2104-0.04128*($A33/1000)), (2*0.933*1.6*365*$A33/1000000)*EXP(-0.2104-0.04128*($A33/1000))) -> 7.78273109 | D33: 3.891365545
A34: 29000 | B34: =IF('Project Information'!$B$6="SI", (2*0.784*365*$A34/1000000)*0.07148, (2*0.784*1.6*365*$A34/1000000)*0.07148) -> 1.898197719 | C34: =IF('Project Information'!$B$6="SI", (2*0.933*365*$A34/1000000)*EXP(-0.2104-0.04128*($A34/1000)), (2*0.933*1.6*365*$A34/1000000)*EXP(-0.2104-0.04128*($A34/1000))) -> 7.734714988 | D34: 3.867357494
A35: 30000 | B35: =IF('Project Information'!$B$6="SI", (2*0.784*365*$A35/1000000)*0.07148, (2*0.784*1.6*365*$A35/1000000)*0.07148) -> 1.963652813 | C35: =IF('Project Information'!$B$6="SI", (2*0.933*365*$A35/1000000)*EXP(-0.2104-0.04128*($A35/1000)), (2*0.933*1.6*365*$A35/1000000)*EXP(-0.2104-0.04128*($A35/1000))) -> 7.677854821 | D35: 3.83892741
A36: 31000 | B36: =IF('Project Information'!$B$6="SI", (2*0.784*365*$A36/1000000)*0.07148, (2*0.784*1.6*365*$A36/1000000)*0.07148) -> 2.029107907 | C36: =IF('Project Information'!$B$6="SI", (2*0.933*365*$A36/1000000)*EXP(-0.2104-0.04128*($A36/1000)), (2*0.933*1.6*365*$A36/1000000)*EXP(-0.2104-0.04128*($A36/1000))) -> 7.612944413 | D36: 3.806472207
A37: 32000 | B37: =IF('Project Information'!$B$6="SI", (2*0.784*365*$A37/1000000)*0.07148, (2*0.784*1.6*365*$A37/1000000)*0.07148) -> 2.094563 | C37: =IF('Project Information'!$B$6="SI", (2*0.933*365*$A37/1000000)*EXP(-0.2104-0.04128*($A37/1000)), (2*0.933*1.6*365*$A37/1000000)*EXP(-0.2104-0.04128*($A37/1000))) -> 7.540727849 | D37: 3.770363925
A38: 33000 | B38: =IF('Project Information'!$B$6="SI", (2*0.784*365*$A38/1000000)*0.07148, (2*0.784*1.6*365*$A38/1000000)*0.07148) -> 2.160018094 | C38: =IF('Project Information'!$B$6="SI", (2*0.933*365*$A38/1000000)*EXP(-0.2104-0.04128*($A38/1000)), (2*0.933*1.6*365*$A38/1000000)*EXP(-0.2104-0.04128*($A38/1000))) -> 7.461902196 | D38: 3.730951098
A39: 34000 | B39: =IF('Project Information'!$B$6="SI", (2*0.784*365*$A39/1000000)*0.07148, (2*0.784*1.6*365*$A39/1000000)*0.07148) -> 2.225473188 | C39: =IF('Project Information'!$B$6="SI", (2*0.933*365*$A39/1000000)*EXP(-0.2104-0.04128*($A39/1000)), (2*0.933*1.6*365*$A39/1000000)*EXP(-0.2104-0.04128*($A39/1000))) -> 7.377120091 | D39: 3.688560046
A40: 35000 | B40: =IF('Project Information'!$B$6="SI", (2*0.784*365*$A40/1000000)*0.07148, (2*0.784*1.6*365*$A40/1000000)*0.07148) -> 2.290928282 | C40: =IF('Project Information'!$B$6="SI", (2*0.933*365*$A40/1000000)*EXP(-0.2104-0.04128*($A40/1000)), (2*0.933*1.6*365*$A40/1000000)*EXP(-0.2104-0.04128*($A40/1000))) -> 7.286992196 | D40: 3.643496098
A41: 36000 | B41: =IF('Project Information'!$B$6="SI", (2*0.784*365*$A41/1000000)*0.07148, (2*0.784*1.6*365*$A41/1000000)*0.07148) -> 2.356383375 | C41: =IF('Project Information'!$B$6="SI", (2*0.933*365*$A41/1000000)*EXP(-0.2104-0.04128*($A41/1000)), (2*0.933*1.6*365*$A41/1000000)*EXP(-0.2104-0.04128*($A41/1000))) -> 7.192089523 | D41: 3.596044762
A42: 37000 | B42: =IF('Project Information'!$B$6="SI", (2*0.784*365*$A42/1000000)*0.07148, (2*0.784*1.6*365*$A42/1000000)*0.07148) -> 2.421838469 | C42: =IF('Project Information'!$B$6="SI", (2*0.933*365*$A42/1000000)*EXP(-0.2104-0.04128*($A42/1000)), (2*0.933*1.6*365*$A42/1000000)*EXP(-0.2104-0.04128*($A42/1000))) -> 7.092945644 | D42: 3.546472822
A43: 38000 | B43: =IF('Project Information'!$B$6="SI", (2*0.784*365*$A43/1000000)*0.07148, (2*0.784*1.6*365*$A43/1000000)*0.07148) -> 2.487293563 | C43: =IF('Project Information'!$B$6="SI", (2*0.933*365*$A43/1000000)*EXP(-0.2104-0.04128*($A43/1000)), (2*0.933*1.6*365*$A43/1000000)*EXP(-0.2104-0.04128*($A43/1000))) -> 6.990058784 | D43: 3.495029392
A44: 39000 | B44: =IF('Project Information'!$B$6="SI", (2*0.784*365*$A44/1000000)*0.07148, (2*0.784*1.6*365*$A44/1000000)*0.07148) -> 2.552748657 | C44: =IF('Project Information'!$B$6="SI", (2*0.933*365*$A44/1000000)*EXP(-0.2104-0.04128*($A44/1000)), (2*0.933*1.6*365*$A44/1000000)*EXP(-0.2104-0.04128*($A44/1000))) -> 6.883893809 | D44: 3.441946904
A45: 40000 | B45: =IF('Project Information'!$B$6="SI", (2*0.784*365*$A45/1000000)*0.07148, (2*0.784*1.6*365*$A45/1000000)*0.07148) -> 2.61820375 | C45: =IF('Project Information'!$B$6="SI", (2*0.933*365*$A45/1000000)*EXP(-0.2104-0.04128*($A45/1000)), (2*0.933*1.6*365*$A45/1000000)*EXP(-0.2104-0.04128*($A45/1000))) -> 6.774884105 | D45: 3.387442053
A46: 41000 | B46: =IF('Project Information'!$B$6="SI", (2*0.784*365*$A46/1000000)*0.07148, (2*0.784*1.6*365*$A46/1000000)*0.07148) -> 2.683658844 | C46: =IF('Project Information'!$B$6="SI", (2*0.933*365*$A46/1000000)*0.1554, (2*0.933*1.6*365*$A46/1000000)*0.1554) -> 6.943194922 | D46: 3.471597461
A47: 42000 | B47: =IF('Project Information'!$B$6="SI", (2*0.784*365*$A47/1000000)*0.07148, (2*0.784*1.6*365*$A47/1000000)*0.07148) -> 2.749113938 | C47: =IF('Project Information'!$B$6="SI", (2*0.933*365*$A47/1000000)*0.1554, (2*0.933*1.6*365*$A47/1000000)*0.1554) -> 7.112541139 | D47: 3.55627057
A48: 43000 | B48: =IF('Project Information'!$B$6="SI", (2*0.784*365*$A48/1000000)*0.07148, (2*0.784*1.6*365*$A48/1000000)*0.07148) -> 2.814569032 | C48: =IF('Project Information'!$B$6="SI", (2*0.933*365*$A48/1000000)*0.1554, (2*0.933*1.6*365*$A48/1000000)*0.1554) -> 7.281887357 | D48: 3.640943678
A49: 44000 | B49: =IF('Project Information'!$B$6="SI", (2*0.784*365*$A49/1000000)*0.07148, (2*0.784*1.6*365*$A49/1000000)*0.07148) -> 2.880024125 | C49: =IF('Project Information'!$B$6="SI", (2*0.933*365*$A49/1000000)*0.1554, (2*0.933*1.6*365*$A49/1000000)*0.1554) -> 7.451233574 | D49: 3.725616787
A50: 45000 | B50: =IF('Project Information'!$B$6="SI", (2*0.784*365*$A50/1000000)*0.07148, (2*0.784*1.6*365*$A50/1000000)*0.07148) -> 2.945479219 | C50: =IF('Project Information'!$B$6="SI", (2*0.933*365*$A50/1000000)*0.1554, (2*0.933*1.6*365*$A50/1000000)*0.1554) -> 7.620579792 | D50: 3.810289896
A51: 46000 | B51: =IF('Project Information'!$B$6="SI", (2*0.784*365*$A51/1000000)*0.07148, (2*0.784*1.6*365*$A51/1000000)*0.07148) -> 3.010934313 | C51: =IF('Project Information'!$B$6="SI", (2*0.933*365*$A51/1000000)*0.1554, (2*0.933*1.6*365*$A51/1000000)*0.1554) -> 7.78992601 | D51: 3.894963005
A52: 47000 | B52: =IF('Project Information'!$B$6="SI", (2*0.784*365*$A52/1000000)*0.07148, (2*0.784*1.6*365*$A52/1000000)*0.07148) -> 3.076389407 | C52: =IF('Project Information'!$B$6="SI", (2*0.933*365*$A52/1000000)*0.1554, (2*0.933*1.6*365*$A52/1000000)*0.1554) -> 7.959272227 | D52: 3.979636114
A53: 48000 | B53: =IF('Project Information'!$B$6="SI", (2*0.784*365*$A53/1000000)*0.07148, (2*0.784*1.6*365*$A53/1000000)*0.07148) -> 3.1418445 | C53: =IF('Project Information'!$B$6="SI", (2*0.933*365*$A53/1000000)*0.1554, (2*0.933*1.6*365*$A53/1000000)*0.1554) -> 8.128618445 | D53: 4.064309222
A54: 49000 | B54: =IF('Project Information'!$B$6="SI", (2*0.784*365*$A54/1000000)*0.07148, (2*0.784*1.6*365*$A54/1000000)*0.07148) -> 3.207299594 | C54: =IF('Project Information'!$B$6="SI", (2*0.933*365*$A54/1000000)*0.1554, (2*0.933*1.6*365*$A54/1000000)*0.1554) -> 8.297964662 | D54: 4.148982331
A55: 50000 | B55: =IF('Project Information'!$B$6="SI", (2*0.784*365*$A55/1000000)*0.07148, (2*0.784*1.6*365*$A55/1000000)*0.07148) -> 3.272754688 | C55: =IF('Project Information'!$B$6="SI", (2*0.933*365*$A55/1000000)*0.1554, (2*0.933*1.6*365*$A55/1000000)*0.1554) -> 8.46731088 | D55: 4.23365544
A56: 51000 | B56: =IF('Project Information'!$B$6="SI", (2*0.784*365*$A56/1000000)*0.07148, (2*0.784*1.6*365*$A56/1000000)*0.07148) -> 3.338209782 | C56: =IF('Project Information'!$B$6="SI", (2*0.933*365*$A56/1000000)*0.1554, (2*0.933*1.6*365*$A56/1000000)*0.1554) -> 8.636657098 | D56: 4.318328549
A57: 52000 | B57: =IF('Project Information'!$B$6="SI", (2*0.784*365*$A57/1000000)*0.07148, (2*0.784*1.6*365*$A57/1000000)*0.07148) -> 3.403664876 | C57: =IF('Project Information'!$B$6="SI", (2*0.933*365*$A57/1000000)*0.1554, (2*0.933*1.6*365*$A57/1000000)*0.1554) -> 8.806003315 | D57: 4.403001658
A58: 53000 | B58: =IF('Project Information'!$B$6="SI", (2*0.784*365*$A58/1000000)*0.07148, (2*0.784*1.6*365*$A58/1000000)*0.07148) -> 3.469119969 | C58: =IF('Project Information'!$B$6="SI", (2*0.933*365*$A58/1000000)*0.1554, (2*0.933*1.6*365*$A58/1000000)*0.1554) -> 8.975349533 | D58: 4.487674766
A59: 54000 | B59: =IF('Project Information'!$B$6="SI", (2*0.784*365*$A59/1000000)*0.07148, (2*0.784*1.6*365*$A59/1000000)*0.07148) -> 3.534575063 | C59: =IF('Project Information'!$B$6="SI", (2*0.933*365*$A59/1000000)*0.1554, (2*0.933*1.6*365*$A59/1000000)*0.1554) -> 9.14469575 | D59: 4.572347875
A60: 55000 | B60: =IF('Project Information'!$B$6="SI", (2*0.784*365*$A60/1000000)*0.07148, (2*0.784*1.6*365*$A60/1000000)*0.07148) -> 3.600030157 | C60: =IF('Project Information'!$B$6="SI", (2*0.933*365*$A60/1000000)*0.1554, (2*0.933*1.6*365*$A60/1000000)*0.1554) -> 9.314041968 | D60: 4.657020984
A61: 56000 | B61: =IF('Project Information'!$B$6="SI", (2*0.784*365*$A61/1000000)*0.07148, (2*0.784*1.6*365*$A61/1000000)*0.07148) -> 3.665485251 | C61: =IF('Project Information'!$B$6="SI", (2*0.933*365*$A61/1000000)*0.1554, (2*0.933*1.6*365*$A61/1000000)*0.1554) -> 9.483388186 | D61: 4.741694093
A62: 57000 | B62: =IF('Project Information'!$B$6="SI", (2*0.784*365*$A62/1000000)*0.07148, (2*0.784*1.6*365*$A62/1000000)*0.07148) -> 3.730940344 | C62: =IF('Project Information'!$B$6="SI", (2*0.933*365*$A62/1000000)*0.1554, (2*0.933*1.6*365*$A62/1000000)*0.1554) -> 9.652734403 | D62: 4.826367202
A63: 58000 | B63: =IF('Project Information'!$B$6="SI", (2*0.784*365*$A63/1000000)*0.07148, (2*0.784*1.6*365*$A63/1000000)*0.07148) -> 3.796395438 | C63: =IF('Project Information'!$B$6="SI", (2*0.933*365*$A63/1000000)*0.1554, (2*0.933*1.6*365*$A63/1000000)*0.1554) -> 9.822080621 | D63: 4.91104031
A64: 59000 | B64: =IF('Project Information'!$B$6="SI", (2*0.784*365*$A64/1000000)*0.07148, (2*0.784*1.6*365*$A64/1000000)*0.07148) -> 3.861850532 | C64: =IF('Project Information'!$B$6="SI", (2*0.933*365*$A64/1000000)*0.1554, (2*0.933*1.6*365*$A64/1000000)*0.1554) -> 9.991426838 | D64: 4.995713419
A65: 60000 | B65: =IF('Project Information'!$B$6="SI", (2*0.784*365*$A65/1000000)*0.07148, (2*0.784*1.6*365*$A65/1000000)*0.07148) -> 3.927305626 | C65: =IF('Project Information'!$B$6="SI", (2*0.933*365*$A65/1000000)*0.1554, (2*0.933*1.6*365*$A65/1000000)*0.1554) -> 10.16077306 | D65: 5.080386528
A66: 61000 | B66: =IF('Project Information'!$B$6="SI", (2*0.784*365*$A66/1000000)*0.07148, (2*0.784*1.6*365*$A66/1000000)*0.07148) -> 3.992760719 | C66: =IF('Project Information'!$B$6="SI", (2*0.933*365*$A66/1000000)*0.1554, (2*0.933*1.6*365*$A66/1000000)*0.1554) -> 10.33011927 | D66: 5.165059637
A67: 62000 | B67: =IF('Project Information'!$B$6="SI", (2*0.784*365*$A67/1000000)*0.07148, (2*0.784*1.6*365*$A67/1000000)*0.07148) -> 4.058215813 | C67: =IF('Project Information'!$B$6="SI", (2*0.933*365*$A67/1000000)*0.1554, (2*0.933*1.6*365*$A67/1000000)*0.1554) -> 10.49946549 | D67: 5.249732746
A68: 63000 | B68: =IF('Project Information'!$B$6="SI", (2*0.784*365*$A68/1000000)*0.07148, (2*0.784*1.6*365*$A68/1000000)*0.07148) -> 4.123670907 | C68: =IF('Project Information'!$B$6="SI", (2*0.933*365*$A68/1000000)*0.1554, (2*0.933*1.6*365*$A68/1000000)*0.1554) -> 10.66881171 | D68: 5.334405854
A69: 64000 | B69: =IF('Project Information'!$B$6="SI", (2*0.784*365*$A69/1000000)*0.07148, (2*0.784*1.6*365*$A69/1000000)*0.07148) -> 4.189126001 | C69: =IF('Project Information'!$B$6="SI", (2*0.933*365*$A69/1000000)*0.1554, (2*0.933*1.6*365*$A69/1000000)*0.1554) -> 10.83815793 | D69: 5.419078963
A70: 65000 | B70: =IF('Project Information'!$B$6="SI", (2*0.784*365*$A70/1000000)*0.07148, (2*0.784*1.6*365*$A70/1000000)*0.07148) -> 4.254581094 | C70: =IF('Project Information'!$B$6="SI", (2*0.933*365*$A70/1000000)*0.1554, (2*0.933*1.6*365*$A70/1000000)*0.1554) -> 11.00750414 | D70: 5.503752072
A71: =A70+1000 -> 66000 | B71: =IF('Project Information'!$B$6="SI", (2*0.784*365*$A71/1000000)*0.07148, (2*0.784*1.6*365*$A71/1000000)*0.07148) -> 4.320036188 | C71: =IF('Project Information'!$B$6="SI", (2*0.933*365*$A71/1000000)*0.1554, (2*0.933*1.6*365*$A71/1000000)*0.1554) -> 11.17685036 | D71: =C71/2 -> 5.588425181
A72: 67000 | B72: =IF('Project Information'!$B$6="SI", (2*0.784*365*$A72/1000000)*0.07148, (2*0.784*1.6*365*$A72/1000000)*0.07148) -> 4.385491282 | C72: =IF('Project Information'!$B$6="SI", (2*0.933*365*$A72/1000000)*0.1554, (2*0.933*1.6*365*$A72/1000000)*0.1554) -> 11.34619658 | D72: 5.67309829
A73: 68000 | B73: =IF('Project Information'!$B$6="SI", (2*0.784*365*$A73/1000000)*0.07148, (2*0.784*1.6*365*$A73/1000000)*0.07148) -> 4.450946376 | C73: =IF('Project Information'!$B$6="SI", (2*0.933*365*$A73/1000000)*0.1554, (2*0.933*1.6*365*$A73/1000000)*0.1554) -> 11.5155428 | D73: 5.757771398
A74: 69000 | B74: =IF('Project Information'!$B$6="SI", (2*0.784*365*$A74/1000000)*0.07148, (2*0.784*1.6*365*$A74/1000000)*0.07148) -> 4.516401469 | C74: =IF('Project Information'!$B$6="SI", (2*0.933*365*$A74/1000000)*0.1554, (2*0.933*1.6*365*$A74/1000000)*0.1554) -> 11.68488901 | D74: 5.842444507
A75: 70000 | B75: =IF('Project Information'!$B$6="SI", (2*0.784*365*$A75/1000000)*0.07148, (2*0.784*1.6*365*$A75/1000000)*0.07148) -> 4.581856563 | C75: =IF('Project Information'!$B$6="SI", (2*0.933*365*$A75/1000000)*0.1554, (2*0.933*1.6*365*$A75/1000000)*0.1554) -> 11.85423523 | D75: 5.927117616
A76: 71000 | B76: =IF('Project Information'!$B$6="SI", (2*0.784*365*$A76/1000000)*0.07148, (2*0.784*1.6*365*$A76/1000000)*0.07148) -> 4.647311657 | C76: =IF('Project Information'!$B$6="SI", (2*0.933*365*$A76/1000000)*0.1554, (2*0.933*1.6*365*$A76/1000000)*0.1554) -> 12.02358145 | D76: 6.011790725
A77: 72000 | B77: =IF('Project Information'!$B$6="SI", (2*0.784*365*$A77/1000000)*0.07148, (2*0.784*1.6*365*$A77/1000000)*0.07148) -> 4.712766751 | C77: =IF('Project Information'!$B$6="SI", (2*0.933*365*$A77/1000000)*0.1554, (2*0.933*1.6*365*$A77/1000000)*0.1554) -> 12.19292767 | D77: 6.096463834
A78: 73000 | B78: =IF('Project Information'!$B$6="SI", (2*0.784*365*$A78/1000000)*0.07148, (2*0.784*1.6*365*$A78/1000000)*0.07148) -> 4.778221844 | C78: =IF('Project Information'!$B$6="SI", (2*0.933*365*$A78/1000000)*0.1554, (2*0.933*1.6*365*$A78/1000000)*0.1554) -> 12.36227388 | D78: 6.181136942
A79: 74000 | B79: =IF('Project Information'!$B$6="SI", (2*0.784*365*$A79/1000000)*0.07148, (2*0.784*1.6*365*$A79/1000000)*0.07148) -> 4.843676938 | C79: =IF('Project Information'!$B$6="SI", (2*0.933*365*$A79/1000000)*0.1554, (2*0.933*1.6*365*$A79/1000000)*0.1554) -> 12.5316201 | D79: 6.265810051
A80: 75000 | B80: =IF('Project Information'!$B$6="SI", (2*0.784*365*$A80/1000000)*0.07148, (2*0.784*1.6*365*$A80/1000000)*0.07148) -> 4.909132032 | C80: =IF('Project Information'!$B$6="SI", (2*0.933*365*$A80/1000000)*0.1554, (2*0.933*1.6*365*$A80/1000000)*0.1554) -> 12.70096632 | D80: 6.35048316
A81: 76000 | B81: =IF('Project Information'!$B$6="SI", (2*0.784*365*$A81/1000000)*0.07148, (2*0.784*1.6*365*$A81/1000000)*0.07148) -> 4.974587126 | C81: =IF('Project Information'!$B$6="SI", (2*0.933*365*$A81/1000000)*0.1554, (2*0.933*1.6*365*$A81/1000000)*0.1554) -> 12.87031254 | D81: 6.435156269
A82: 77000 | B82: =IF('Project Information'!$B$6="SI", (2*0.784*365*$A82/1000000)*0.07148, (2*0.784*1.6*365*$A82/1000000)*0.07148) -> 5.04004222 | C82: =IF('Project Information'!$B$6="SI", (2*0.933*365*$A82/1000000)*0.1554, (2*0.933*1.6*365*$A82/1000000)*0.1554) -> 13.03965876 | D82: 6.519829378
A83: 78000 | B83: =IF('Project Information'!$B$6="SI", (2*0.784*365*$A83/1000000)*0.07148, (2*0.784*1.6*365*$A83/1000000)*0.07148) -> 5.105497313 | C83: =IF('Project Information'!$B$6="SI", (2*0.933*365*$A83/1000000)*0.1554, (2*0.933*1.6*365*$A83/1000000)*0.1554) -> 13.20900497 | D83: 6.604502486
A84: 79000 | B84: =IF('Project Information'!$B$6="SI", (2*0.784*365*$A84/1000000)*0.07148, (2*0.784*1.6*365*$A84/1000000)*0.07148) -> 5.170952407 | C84: =IF('Project Information'!$B$6="SI", (2*0.933*365*$A84/1000000)*0.1554, (2*0.933*1.6*365*$A84/1000000)*0.1554) -> 13.37835119 | D84: 6.689175595
A85: 80000 | B85: =IF('Project Information'!$B$6="SI", (2*0.784*365*$A85/1000000)*0.07148, (2*0.784*1.6*365*$A85/1000000)*0.07148) -> 5.236407501 | C85: =IF('Project Information'!$B$6="SI", (2*0.933*365*$A85/1000000)*0.1554, (2*0.933*1.6*365*$A85/1000000)*0.1554) -> 13.54769741 | D85: 6.773848704
A86: 81000 | B86: =IF('Project Information'!$B$6="SI", (2*0.784*365*$A86/1000000)*0.07148, (2*0.784*1.6*365*$A86/1000000)*0.07148) -> 5.301862595 | C86: =IF('Project Information'!$B$6="SI", (2*0.933*365*$A86/1000000)*0.1554, (2*0.933*1.6*365*$A86/1000000)*0.1554) -> 13.71704363 | D86: 6.858521813
A87: 82000 | B87: =IF('Project Information'!$B$6="SI", (2*0.784*365*$A87/1000000)*0.07148, (2*0.784*1.6*365*$A87/1000000)*0.07148) -> 5.367317688 | C87: =IF('Project Information'!$B$6="SI", (2*0.933*365*$A87/1000000)*0.1554, (2*0.933*1.6*365*$A87/1000000)*0.1554) -> 13.88638984 | D87: 6.943194922
A88: 83000 | B88: =IF('Project Information'!$B$6="SI", (2*0.784*365*$A88/1000000)*0.07148, (2*0.784*1.6*365*$A88/1000000)*0.07148) -> 5.432772782 | C88: =IF('Project Information'!$B$6="SI", (2*0.933*365*$A88/1000000)*0.1554, (2*0.933*1.6*365*$A88/1000000)*0.1554) -> 14.05573606 | D88: 7.02786803
A89: 84000 | B89: =IF('Project Information'!$B$6="SI", (2*0.784*365*$A89/1000000)*0.07148, (2*0.784*1.6*365*$A89/1000000)*0.07148) -> 5.498227876 | C89: =IF('Project Information'!$B$6="SI", (2*0.933*365*$A89/1000000)*0.1554, (2*0.933*1.6*365*$A89/1000000)*0.1554) -> 14.22508228 | D89: 7.112541139
A90: 85000 | B90: =IF('Project Information'!$B$6="SI", (2*0.784*365*$A90/1000000)*0.07148, (2*0.784*1.6*365*$A90/1000000)*0.07148) -> 5.56368297 | C90: =IF('Project Information'!$B$6="SI", (2*0.933*365*$A90/1000000)*0.1554, (2*0.933*1.6*365*$A90/1000000)*0.1554) -> 14.3944285 | D90: 7.197214248
A91: 86000 | B91: =IF('Project Information'!$B$6="SI", (2*0.784*365*$A91/1000000)*0.07148, (2*0.784*1.6*365*$A91/1000000)*0.07148) -> 5.629138063 | C91: =IF('Project Information'!$B$6="SI", (2*0.933*365*$A91/1000000)*0.1554, (2*0.933*1.6*365*$A91/1000000)*0.1554) -> 14.56377471 | D91: 7.281887357
A92: 87000 | B92: =IF('Project Information'!$B$6="SI", (2*0.784*365*$A92/1000000)*0.07148, (2*0.784*1.6*365*$A92/1000000)*0.07148) -> 5.694593157 | C92: =IF('Project Information'!$B$6="SI", (2*0.933*365*$A92/1000000)*0.1554, (2*0.933*1.6*365*$A92/1000000)*0.1554) -> 14.73312093 | D92: 7.366560466
A93: 88000 | B93: =IF('Project Information'!$B$6="SI", (2*0.784*365*$A93/1000000)*0.07148, (2*0.784*1.6*365*$A93/1000000)*0.07148) -> 5.760048251 | C93: =IF('Project Information'!$B$6="SI", (2*0.933*365*$A93/1000000)*0.1554, (2*0.933*1.6*365*$A93/1000000)*0.1554) -> 14.90246715 | D93: 7.451233574
A94: 89000 | B94: =IF('Project Information'!$B$6="SI", (2*0.784*365*$A94/1000000)*0.07148, (2*0.784*1.6*365*$A94/1000000)*0.07148) -> 5.825503345 | C94: =IF('Project Information'!$B$6="SI", (2*0.933*365*$A94/1000000)*0.1554, (2*0.933*1.6*365*$A94/1000000)*0.1554) -> 15.07181337 | D94: 7.535906683
A95: 90000 | B95: =IF('Project Information'!$B$6="SI", (2*0.784*365*$A95/1000000)*0.07148, (2*0.784*1.6*365*$A95/1000000)*0.07148) -> 5.890958438 | C95: =IF('Project Information'!$B$6="SI", (2*0.933*365*$A95/1000000)*0.1554, (2*0.933*1.6*365*$A95/1000000)*0.1554) -> 15.24115958 | D95: 7.620579792
A96: 91000 | B96: =IF('Project Information'!$B$6="SI", (2*0.784*365*$A96/1000000)*0.07148, (2*0.784*1.6*365*$A96/1000000)*0.07148) -> 5.956413532 | C96: =IF('Project Information'!$B$6="SI", (2*0.933*365*$A96/1000000)*0.1554, (2*0.933*1.6*365*$A96/1000000)*0.1554) -> 15.4105058 | D96: 7.705252901
A97: 92000 | B97: =IF('Project Information'!$B$6="SI", (2*0.784*365*$A97/1000000)*0.07148, (2*0.784*1.6*365*$A97/1000000)*0.07148) -> 6.021868626 | C97: =IF('Project Information'!$B$6="SI", (2*0.933*365*$A97/1000000)*0.1554, (2*0.933*1.6*365*$A97/1000000)*0.1554) -> 15.57985202 | D97: 7.78992601
A98: 93000 | B98: =IF('Project Information'!$B$6="SI", (2*0.784*365*$A98/1000000)*0.07148, (2*0.784*1.6*365*$A98/1000000)*0.07148) -> 6.08732372 | C98: =IF('Project Information'!$B$6="SI", (2*0.933*365*$A98/1000000)*0.1554, (2*0.933*1.6*365*$A98/1000000)*0.1554) -> 15.74919824 | D98: 7.874599118
A99: 94000 | B99: =IF('Project Information'!$B$6="SI", (2*0.784*365*$A99/1000000)*0.07148, (2*0.784*1.6*365*$A99/1000000)*0.07148) -> 6.152778813 | C99: =IF('Project Information'!$B$6="SI", (2*0.933*365*$A99/1000000)*0.1554, (2*0.933*1.6*365*$A99/1000000)*0.1554) -> 15.91854445 | D99: 7.959272227
A100: 95000 | B100: =IF('Project Information'!$B$6="SI", (2*0.784*365*$A100/1000000)*0.07148, (2*0.784*1.6*365*$A100/1000000)*0.07148) -> 6.218233907 | C100: =IF('Project Information'!$B$6="SI", (2*0.933*365*$A100/1000000)*0.1554, (2*0.933*1.6*365*$A100/1000000)*0.1554) -> 16.08789067 | D100: 8.043945336
A101: 96000 | B101: =IF('Project Information'!$B$6="SI", (2*0.784*365*$A101/1000000)*0.07148, (2*0.784*1.6*365*$A101/1000000)*0.07148) -> 6.283689001 | C101: =IF('Project Information'!$B$6="SI", (2*0.933*365*$A101/1000000)*0.1554, (2*0.933*1.6*365*$A101/1000000)*0.1554) -> 16.25723689 | D101: 8.128618445
A102: 97000 | B102: =IF('Project Information'!$B$6="SI", (2*0.784*365*$A102/1000000)*0.07148, (2*0.784*1.6*365*$A102/1000000)*0.07148) -> 6.349144095 | C102: =IF('Project Information'!$B$6="SI", (2*0.933*365*$A102/1000000)*0.1554, (2*0.933*1.6*365*$A102/1000000)*0.1554) -> 16.42658311 | D102: 8.213291554
A103: 98000 | B103: =IF('Project Information'!$B$6="SI", (2*0.784*365*$A103/1000000)*0.07148, (2*0.784*1.6*365*$A103/1000000)*0.07148) -> 6.414599188 | C103: =IF('Project Information'!$B$6="SI", (2*0.933*365*$A103/1000000)*0.1554, (2*0.933*1.6*365*$A103/1000000)*0.1554) -> 16.59592932 | D103: 8.297964662
A104: 99000 | B104: =IF('Project Information'!$B$6="SI", (2*0.784*365*$A104/1000000)*0.07148, (2*0.784*1.6*365*$A104/1000000)*0.07148) -> 6.480054282 | C104: =IF('Project Information'!$B$6="SI", (2*0.933*365*$A104/1000000)*0.1554, (2*0.933*1.6*365*$A104/1000000)*0.1554) -> 16.76527554 | D104: 8.382637771
A105: 100000 | B105: =IF('Project Information'!$B$6="SI", (2*0.784*365*$A105/1000000)*0.07148, (2*0.784*1.6*365*$A105/1000000)*0.07148) -> 6.545509376 | C105: =IF('Project Information'!$B$6="SI", (2*0.933*365*$A105/1000000)*0.1554, (2*0.933*1.6*365*$A105/1000000)*0.1554) -> 16.93462176 | D105: 8.46731088
A106: 101000 | B106: =IF('Project Information'!$B$6="SI", (2*0.784*365*$A106/1000000)*0.07148, (2*0.784*1.6*365*$A106/1000000)*0.07148) -> 6.61096447 | C106: =IF('Project Information'!$B$6="SI", (2*0.933*365*$A106/1000000)*0.1554, (2*0.933*1.6*365*$A106/1000000)*0.1554) -> 17.10396798 | D106: 8.551983989
A107: 102000 | B107: =IF('Project Information'!$B$6="SI", (2*0.784*365*$A107/1000000)*0.07148, (2*0.784*1.6*365*$A107/1000000)*0.07148) -> 6.676419564 | C107: =IF('Project Information'!$B$6="SI", (2*0.933*365*$A107/1000000)*0.1554, (2*0.933*1.6*365*$A107/1000000)*0.1554) -> 17.2733142 | D107: 8.636657098
A108: 103000 | B108: =IF('Project Information'!$B$6="SI", (2*0.784*365*$A108/1000000)*0.07148, (2*0.784*1.6*365*$A108/1000000)*0.07148) -> 6.741874657 | C108: =IF('Project Information'!$B$6="SI", (2*0.933*365*$A108/1000000)*0.1554, (2*0.933*1.6*365*$A108/1000000)*0.1554) -> 17.44266041 | D108: 8.721330206
A109: 104000 | B109: =IF('Project Information'!$B$6="SI", (2*0.784*365*$A109/1000000)*0.07148, (2*0.784*1.6*365*$A109/1000000)*0.07148) -> 6.807329751 | C109: =IF('Project Information'!$B$6="SI", (2*0.933*365*$A109/1000000)*0.1554, (2*0.933*1.6*365*$A109/1000000)*0.1554) -> 17.61200663 | D109: 8.806003315
A110: 105000 | B110: =IF('Project Information'!$B$6="SI", (2*0.784*365*$A110/1000000)*0.07148, (2*0.784*1.6*365*$A110/1000000)*0.07148) -> 6.872784845 | C110: =IF('Project Information'!$B$6="SI", (2*0.933*365*$A110/1000000)*0.1554, (2*0.933*1.6*365*$A110/1000000)*0.1554) -> 17.78135285 | D110: 8.890676424
A111: 106000 | B111: =IF('Project Information'!$B$6="SI", (2*0.784*365*$A111/1000000)*0.07148, (2*0.784*1.6*365*$A111/1000000)*0.07148) -> 6.938239939 | C111: =IF('Project Information'!$B$6="SI", (2*0.933*365*$A111/1000000)*0.1554, (2*0.933*1.6*365*$A111/1000000)*0.1554) -> 17.95069907 | D111: 8.975349533
A112: 107000 | B112: =IF('Project Information'!$B$6="SI", (2*0.784*365*$A112/1000000)*0.07148, (2*0.784*1.6*365*$A112/1000000)*0.07148) -> 7.003695032 | C112: =IF('Project Information'!$B$6="SI", (2*0.933*365*$A112/1000000)*0.1554, (2*0.933*1.6*365*$A112/1000000)*0.1554) -> 18.12004528 | D112: 9.060022642
A113: 108000 | B113: =IF('Project Information'!$B$6="SI", (2*0.784*365*$A113/1000000)*0.07148, (2*0.784*1.6*365*$A113/1000000)*0.07148) -> 7.069150126 | C113: =IF('Project Information'!$B$6="SI", (2*0.933*365*$A113/1000000)*0.1554, (2*0.933*1.6*365*$A113/1000000)*0.1554) -> 18.2893915 | D113: 9.14469575
A114: 109000 | B114: =IF('Project Information'!$B$6="SI", (2*0.784*365*$A114/1000000)*0.07148, (2*0.784*1.6*365*$A114/1000000)*0.07148) -> 7.13460522 | C114: =IF('Project Information'!$B$6="SI", (2*0.933*365*$A114/1000000)*0.1554, (2*0.933*1.6*365*$A114/1000000)*0.1554) -> 18.45873772 | D114: 9.229368859
A115: 110000 | B115: =IF('Project Information'!$B$6="SI", (2*0.784*365*$A115/1000000)*0.07148, (2*0.784*1.6*365*$A115/1000000)*0.07148) -> 7.200060314 | C115: =IF('Project Information'!$B$6="SI", (2*0.933*365*$A115/1000000)*0.1554, (2*0.933*1.6*365*$A115/1000000)*0.1554) -> 18.62808394 | D115: 9.314041968
A116: 111000 | B116: =IF('Project Information'!$B$6="SI", (2*0.784*365*$A116/1000000)*0.07148, (2*0.784*1.6*365*$A116/1000000)*0.07148) -> 7.265515407 | C116: =IF('Project Information'!$B$6="SI", (2*0.933*365*$A116/1000000)*0.1554, (2*0.933*1.6*365*$A116/1000000)*0.1554) -> 18.79743015 | D116: 9.398715077
A117: 112000 | B117: =IF('Project Information'!$B$6="SI", (2*0.784*365*$A117/1000000)*0.07148, (2*0.784*1.6*365*$A117/1000000)*0.07148) -> 7.330970501 | C117: =IF('Project Information'!$B$6="SI", (2*0.933*365*$A117/1000000)*0.1554, (2*0.933*1.6*365*$A117/1000000)*0.1554) -> 18.96677637 | D117: 9.483388186
A118: 113000 | B118: =IF('Project Information'!$B$6="SI", (2*0.784*365*$A118/1000000)*0.07148, (2*0.784*1.6*365*$A118/1000000)*0.07148) -> 7.396425595 | C118: =IF('Project Information'!$B$6="SI", (2*0.933*365*$A118/1000000)*0.1554, (2*0.933*1.6*365*$A118/1000000)*0.1554) -> 19.13612259 | D118: 9.568061294
A119: 114000 | B119: =IF('Project Information'!$B$6="SI", (2*0.784*365*$A119/1000000)*0.07148, (2*0.784*1.6*365*$A119/1000000)*0.07148) -> 7.461880689 | C119: =IF('Project Information'!$B$6="SI", (2*0.933*365*$A119/1000000)*0.1554, (2*0.933*1.6*365*$A119/1000000)*0.1554) -> 19.30546881 | D119: 9.652734403
A120: 115000 | B120: =IF('Project Information'!$B$6="SI", (2*0.784*365*$A120/1000000)*0.07148, (2*0.784*1.6*365*$A120/1000000)*0.07148) -> 7.527335782 | C120: =IF('Project Information'!$B$6="SI", (2*0.933*365*$A120/1000000)*0.1554, (2*0.933*1.6*365*$A120/1000000)*0.1554) -> 19.47481502 | D120: 9.737407512
A121: 116000 | B121: =IF('Project Information'!$B$6="SI", (2*0.784*365*$A121/1000000)*0.07148, (2*0.784*1.6*365*$A121/1000000)*0.07148) -> 7.592790876 | C121: =IF('Project Information'!$B$6="SI", (2*0.933*365*$A121/1000000)*0.1554, (2*0.933*1.6*365*$A121/1000000)*0.1554) -> 19.64416124 | D121: 9.822080621
A122: 117000 | B122: =IF('Project Information'!$B$6="SI", (2*0.784*365*$A122/1000000)*0.07148, (2*0.784*1.6*365*$A122/1000000)*0.07148) -> 7.65824597 | C122: =IF('Project Information'!$B$6="SI", (2*0.933*365*$A122/1000000)*0.1554, (2*0.933*1.6*365*$A122/1000000)*0.1554) -> 19.81350746 | D122: 9.90675373
A123: 118000 | B123: =IF('Project Information'!$B$6="SI", (2*0.784*365*$A123/1000000)*0.07148, (2*0.784*1.6*365*$A123/1000000)*0.07148) -> 7.723701064 | C123: =IF('Project Information'!$B$6="SI", (2*0.933*365*$A123/1000000)*0.1554, (2*0.933*1.6*365*$A123/1000000)*0.1554) -> 19.98285368 | D123: 9.991426838
A124: 119000 | B124: =IF('Project Information'!$B$6="SI", (2*0.784*365*$A124/1000000)*0.07148, (2*0.784*1.6*365*$A124/1000000)*0.07148) -> 7.789156157 | C124: =IF('Project Information'!$B$6="SI", (2*0.933*365*$A124/1000000)*0.1554, (2*0.933*1.6*365*$A124/1000000)*0.1554) -> 20.15219989 | D124: 10.07609995
A125: 120000 | B125: =IF('Project Information'!$B$6="SI", (2*0.784*365*$A125/1000000)*0.07148, (2*0.784*1.6*365*$A125/1000000)*0.07148) -> 7.854611251 | C125: =IF('Project Information'!$B$6="SI", (2*0.933*365*$A125/1000000)*0.1554, (2*0.933*1.6*365*$A125/1000000)*0.1554) -> 20.32154611 | D125: 10.16077306
A126: 121000 | B126: =IF('Project Information'!$B$6="SI", (2*0.784*365*$A126/1000000)*0.07148, (2*0.784*1.6*365*$A126/1000000)*0.07148) -> 7.920066345 | C126: =IF('Project Information'!$B$6="SI", (2*0.933*365*$A126/1000000)*0.1554, (2*0.933*1.6*365*$A126/1000000)*0.1554) -> 20.49089233 | D126: 10.24544616
A127: 122000 | B127: =IF('Project Information'!$B$6="SI", (2*0.784*365*$A127/1000000)*0.07148, (2*0.784*1.6*365*$A127/1000000)*0.07148) -> 7.985521439 | C127: =IF('Project Information'!$B$6="SI", (2*0.933*365*$A127/1000000)*0.1554, (2*0.933*1.6*365*$A127/1000000)*0.1554) -> 20.66023855 | D127: 10.33011927
A128: 123000 | B128: =IF('Project Information'!$B$6="SI", (2*0.784*365*$A128/1000000)*0.07148, (2*0.784*1.6*365*$A128/1000000)*0.07148) -> 8.050976532 | C128: =IF('Project Information'!$B$6="SI", (2*0.933*365*$A128/1000000)*0.1554, (2*0.933*1.6*365*$A128/1000000)*0.1554) -> 20.82958476 | D128: 10.41479238
A129: 124000 | B129: =IF('Project Information'!$B$6="SI", (2*0.784*365*$A129/1000000)*0.07148, (2*0.784*1.6*365*$A129/1000000)*0.07148) -> 8.116431626 | C129: =IF('Project Information'!$B$6="SI", (2*0.933*365*$A129/1000000)*0.1554, (2*0.933*1.6*365*$A129/1000000)*0.1554) -> 20.99893098 | D129: 10.49946549
A130: 125000 | B130: =IF('Project Information'!$B$6="SI", (2*0.784*365*$A130/1000000)*0.07148, (2*0.784*1.6*365*$A130/1000000)*0.07148) -> 8.18188672 | C130: =IF('Project Information'!$B$6="SI", (2*0.933*365*$A130/1000000)*0.1554, (2*0.933*1.6*365*$A130/1000000)*0.1554) -> 21.1682772 | D130: 10.5841386
A131: 126000 | B131: =IF('Project Information'!$B$6="SI", (2*0.784*365*$A131/1000000)*0.07148, (2*0.784*1.6*365*$A131/1000000)*0.07148) -> 8.247341814 | C131: =IF('Project Information'!$B$6="SI", (2*0.933*365*$A131/1000000)*0.1554, (2*0.933*1.6*365*$A131/1000000)*0.1554) -> 21.33762342 | D131: 10.66881171
A132: 127000 | B132: =IF('Project Information'!$B$6="SI", (2*0.784*365*$A132/1000000)*0.07148, (2*0.784*1.6*365*$A132/1000000)*0.07148) -> 8.312796908 | C132: =IF('Project Information'!$B$6="SI", (2*0.933*365*$A132/1000000)*0.1554, (2*0.933*1.6*365*$A132/1000000)*0.1554) -> 21.50696964 | D132: 10.75348482
A133: 128000 | B133: =IF('Project Information'!$B$6="SI", (2*0.784*365*$A133/1000000)*0.07148, (2*0.784*1.6*365*$A133/1000000)*0.07148) -> 8.378252001 | C133: =IF('Project Information'!$B$6="SI", (2*0.933*365*$A133/1000000)*0.1554, (2*0.933*1.6*365*$A133/1000000)*0.1554) -> 21.67631585 | D133: 10.83815793
A134: 129000 | B134: =IF('Project Information'!$B$6="SI", (2*0.784*365*$A134/1000000)*0.07148, (2*0.784*1.6*365*$A134/1000000)*0.07148) -> 8.443707095 | C134: =IF('Project Information'!$B$6="SI", (2*0.933*365*$A134/1000000)*0.1554, (2*0.933*1.6*365*$A134/1000000)*0.1554) -> 21.84566207 | D134: 10.92283104
A135: =A134+1000 -> 130000 | B135: =IF('Project Information'!$B$6="SI", (2*0.784*365*$A135/1000000)*0.07148, (2*0.784*1.6*365*$A135/1000000)*0.07148) -> 8.509162189 | C135: =IF('Project Information'!$B$6="SI", (2*0.933*365*$A135/1000000)*0.1554, (2*0.933*1.6*365*$A135/1000000)*0.1554) -> 22.01500829 | D135: =C135/2 -> 11.00750414
A136: 131000 | B136: =IF('Project Information'!$B$6="SI", (2*0.784*365*$A136/1000000)*0.07148, (2*0.784*1.6*365*$A136/1000000)*0.07148) -> 8.574617283 | C136: =IF('Project Information'!$B$6="SI", (2*0.933*365*$A136/1000000)*0.1554, (2*0.933*1.6*365*$A136/1000000)*0.1554) -> 22.18435451 | D136: 11.09217725
A137: 132000 | B137: =IF('Project Information'!$B$6="SI", (2*0.784*365*$A137/1000000)*0.07148, (2*0.784*1.6*365*$A137/1000000)*0.07148) -> 8.640072376 | C137: =IF('Project Information'!$B$6="SI", (2*0.933*365*$A137/1000000)*0.1554, (2*0.933*1.6*365*$A137/1000000)*0.1554) -> 22.35370072 | D137: 11.17685036
A138: 133000 | B138: =IF('Project Information'!$B$6="SI", (2*0.784*365*$A138/1000000)*0.07148, (2*0.784*1.6*365*$A138/1000000)*0.07148) -> 8.70552747 | C138: =IF('Project Information'!$B$6="SI", (2*0.933*365*$A138/1000000)*0.1554, (2*0.933*1.6*365*$A138/1000000)*0.1554) -> 22.52304694 | D138: 11.26152347
A139: 134000 | B139: =IF('Project Information'!$B$6="SI", (2*0.784*365*$A139/1000000)*0.07148, (2*0.784*1.6*365*$A139/1000000)*0.07148) -> 8.770982564 | C139: =IF('Project Information'!$B$6="SI", (2*0.933*365*$A139/1000000)*0.1554, (2*0.933*1.6*365*$A139/1000000)*0.1554) -> 22.69239316 | D139: 11.34619658
A140: 135000 | B140: =IF('Project Information'!$B$6="SI", (2*0.784*365*$A140/1000000)*0.07148, (2*0.784*1.6*365*$A140/1000000)*0.07148) -> 8.836437658 | C140: =IF('Project Information'!$B$6="SI", (2*0.933*365*$A140/1000000)*0.1554, (2*0.933*1.6*365*$A140/1000000)*0.1554) -> 22.86173938 | D140: 11.43086969
A141: 136000 | B141: =IF('Project Information'!$B$6="SI", (2*0.784*365*$A141/1000000)*0.07148, (2*0.784*1.6*365*$A141/1000000)*0.07148) -> 8.901892751 | C141: =IF('Project Information'!$B$6="SI", (2*0.933*365*$A141/1000000)*0.1554, (2*0.933*1.6*365*$A141/1000000)*0.1554) -> 23.03108559 | D141: 11.5155428
A142: 137000 | B142: =IF('Project Information'!$B$6="SI", (2*0.784*365*$A142/1000000)*0.07148, (2*0.784*1.6*365*$A142/1000000)*0.07148) -> 8.967347845 | C142: =IF('Project Information'!$B$6="SI", (2*0.933*365*$A142/1000000)*0.1554, (2*0.933*1.6*365*$A142/1000000)*0.1554) -> 23.20043181 | D142: 11.60021591
A143: 138000 | B143: =IF('Project Information'!$B$6="SI", (2*0.784*365*$A143/1000000)*0.07148, (2*0.784*1.6*365*$A143/1000000)*0.07148) -> 9.032802939 | C143: =IF('Project Information'!$B$6="SI", (2*0.933*365*$A143/1000000)*0.1554, (2*0.933*1.6*365*$A143/1000000)*0.1554) -> 23.36977803 | D143: 11.68488901
A144: 139000 | B144: =IF('Project Information'!$B$6="SI", (2*0.784*365*$A144/1000000)*0.07148, (2*0.784*1.6*365*$A144/1000000)*0.07148) -> 9.098258033 | C144: =IF('Project Information'!$B$6="SI", (2*0.933*365*$A144/1000000)*0.1554, (2*0.933*1.6*365*$A144/1000000)*0.1554) -> 23.53912425 | D144: 11.76956212
A145: 140000 | B145: =IF('Project Information'!$B$6="SI", (2*0.784*365*$A145/1000000)*0.07148, (2*0.784*1.6*365*$A145/1000000)*0.07148) -> 9.163713126 | C145: =IF('Project Information'!$B$6="SI", (2*0.933*365*$A145/1000000)*0.1554, (2*0.933*1.6*365*$A145/1000000)*0.1554) -> 23.70847046 | D145: 11.85423523
A146: 141000 | B146: =IF('Project Information'!$B$6="SI", (2*0.784*365*$A146/1000000)*0.07148, (2*0.784*1.6*365*$A146/1000000)*0.07148) -> 9.22916822 | C146: =IF('Project Information'!$B$6="SI", (2*0.933*365*$A146/1000000)*0.1554, (2*0.933*1.6*365*$A146/1000000)*0.1554) -> 23.87781668 | D146: 11.93890834
A147: 142000 | B147: =IF('Project Information'!$B$6="SI", (2*0.784*365*$A147/1000000)*0.07148, (2*0.784*1.6*365*$A147/1000000)*0.07148) -> 9.294623314 | C147: =IF('Project Information'!$B$6="SI", (2*0.933*365*$A147/1000000)*0.1554, (2*0.933*1.6*365*$A147/1000000)*0.1554) -> 24.0471629 | D147: 12.02358145
A148: 143000 | B148: =IF('Project Information'!$B$6="SI", (2*0.784*365*$A148/1000000)*0.07148, (2*0.784*1.6*365*$A148/1000000)*0.07148) -> 9.360078408 | C148: =IF('Project Information'!$B$6="SI", (2*0.933*365*$A148/1000000)*0.1554, (2*0.933*1.6*365*$A148/1000000)*0.1554) -> 24.21650912 | D148: 12.10825456
A149: 144000 | B149: =IF('Project Information'!$B$6="SI", (2*0.784*365*$A149/1000000)*0.07148, (2*0.784*1.6*365*$A149/1000000)*0.07148) -> 9.425533501 | C149: =IF('Project Information'!$B$6="SI", (2*0.933*365*$A149/1000000)*0.1554, (2*0.933*1.6*365*$A149/1000000)*0.1554) -> 24.38585533 | D149: 12.19292767
A150: 145000 | B150: =IF('Project Information'!$B$6="SI", (2*0.784*365*$A150/1000000)*0.07148, (2*0.784*1.6*365*$A150/1000000)*0.07148) -> 9.490988595 | C150: =IF('Project Information'!$B$6="SI", (2*0.933*365*$A150/1000000)*0.1554, (2*0.933*1.6*365*$A150/1000000)*0.1554) -> 24.55520155 | D150: 12.27760078
A151: 500000 | B151: =IF('Project Information'!$B$6="SI", (2*0.784*365*$A151/1000000)*0.07148, (2*0.784*1.6*365*$A151/1000000)*0.07148) -> 32.72754688 | C151: =IF('Project Information'!$B$6="SI", (2*0.933*365*$A151/1000000)*0.1554, (2*0.933*1.6*365*$A151/1000000)*0.1554) -> 84.6731088 | D151: =C151/2 -> 42.3365544

Sheet Profile (hidden)
